﻿Body Name,Date Paid,Transaction Number,Amount,Supplier Name,Service Area Categorisation ,Service Division Categorisation ,Expense Type
Milton Keynes Council,03-Oct-22,51500778147,"-£37,642.86",Florinee Homes Ltd,Children's Services,Corporate Parenting,Residential Care
Milton Keynes Council,03-Oct-22,51500798338,£510.50,Redacted Personal Data,Children's Services,Corporate Parenting,Professional Fees and Hired Services
Milton Keynes Council,03-Oct-22,51500788270,£517.37,Askews & Holts Library Services Ltd,Children's Services,"Sufficiency, Access and Attendance",Books and Multimedia Supplies
Milton Keynes Council,03-Oct-22,51500792907,£525.58,Redacted Personal Data,Environment & Property,Head of Service - Env and Waste,Right of Ways Maintenance
Milton Keynes Council,03-Oct-22,51500798126,£540.54,Personal Security Service Limited,Children's Services,Special Education Needs & Disabilities,Social Care Transport
Milton Keynes Council,03-Oct-22,51500796358,£566.49,Golden Living Property Consultants Ltd,Children's Services,Children's Social Work,Professional Fees and Hired Services
Milton Keynes Council,03-Oct-22,51500788207,£570.00,Cornerstone Barristers,Adult Services,Director - Adult Services,External Legal Fees
Milton Keynes Council,03-Oct-22,51500789637,£572.48,Computacenter (UK) Limited,Children's Services,Group Head – Children and Families,Computer hardware - purchase
Milton Keynes Council,03-Oct-22,51500794726,£593.64,Kingdom Coffee,Children's Services,"Sufficiency, Access and Attendance",Catering Provisions
Milton Keynes Council,03-Oct-22,51500788879,£674.57,National World Publishing Limited,Environment & Property,Head of Service - Env and Waste,Advertising / Publicity (non Recruitment)
Milton Keynes Council,03-Oct-22,51500789393,£680.64,Redacted Personal Data,Environment & Property,Head of Service - Env and Waste,Right of Ways Maintenance
Milton Keynes Council,03-Oct-22,51500788682,£770.51,Post Office Limited,Finance & Resources - Services,Lead Authority Shared Services,Professional Fees and Hired Services
Milton Keynes Council,03-Oct-22,51500788788,£815.02,Premier Paper Group Ltd T/a Premier Beswick Northampton,Finance & Resources - Services,ICT,Printing
Milton Keynes Council,03-Oct-22,51500798225,£894.92,Milton Keynes Christian Centre,Children's Services,Corporate Parenting,Support and Grants to Foster Carers
Milton Keynes Council,03-Oct-22,51500788710,£990.00,Carrington West Ltd,Environment & Property,Head of Service - Highways,Professional Fees and Hired Services
Milton Keynes Council,03-Oct-22,51500788882,"£1,053.00",Tunstall Healthcare (UK) Ltd,Adult Services,Sheltered Housing and Care and Response,Security Equipment
Milton Keynes Council,03-Oct-22,51500788363,"£1,125.00",The Oyster Partnership Ltd,Customer and Community Services,Community Safety,Recruitment Costs
Milton Keynes Council,03-Oct-22,51500788740,"£1,152.00",Reed Elsevier (UK) Limited T/a Lexis Nexis,Law & Governance,Legal,Subscriptions
Milton Keynes Council,03-Oct-22,51500789100,"£1,192.76",CCS Media Limited,Law & Governance,Legal,Computer hardware - purchase
Milton Keynes Council,03-Oct-22,51500788673,"£1,210.80",Independent Community Care Management Ltd (ICCM),Children's Services,Special Education Needs & Disabilities,Day Care
Milton Keynes Council,03-Oct-22,51500788350,"£1,289.09",The Oyster Partnership Ltd,Adult Services,Homeless Prevention + Access,Agency Staff
Milton Keynes Council,03-Oct-22,51500788167,"£1,289.30",Cabinet Office - Digital,Finance & Resources - Services,ICT,Computer hardware - maintenance
Milton Keynes Council,03-Oct-22,51500798085,"£1,315.65",Alliance Foster Care Limited,Children's Services,Corporate Parenting,Residential Care
Milton Keynes Council,03-Oct-22,51500757473,"£1,369.66",The Oyster Partnership Ltd,Adult Services,Homeless Prevention + Access,Agency Staff
Milton Keynes Council,03-Oct-22,51500759749,"£1,369.66",The Oyster Partnership Ltd,Adult Services,Homeless Prevention + Access,Agency Staff
Milton Keynes Council,03-Oct-22,51500788709,"£1,416.22",Carrington West Ltd,Environment & Property,Head of Service - Highways,Agency Staff
Milton Keynes Council,03-Oct-22,51500789534,"£1,454.40",HelpHandz CIC/Zodeq Ltd,Children's Services,Children's Social Work,Grants and Support for other Service Users
Milton Keynes Council,03-Oct-22,51500754282,"£1,530.79",The Oyster Partnership Ltd,Adult Services,Homeless Prevention + Access,Agency Staff
Milton Keynes Council,03-Oct-22,51500796989,"£1,537.74",Hays Specialist Recruitment Limited,Finance & Resources - Services,ICT,Agency Staff
Milton Keynes Council,03-Oct-22,51500711886,"£1,574.10",The Oyster Partnership Ltd,Adult Services,Homeless Prevention + Access,Agency Staff
Milton Keynes Council,03-Oct-22,51500751300,"£1,574.30",The Oyster Partnership Ltd,Adult Services,Homeless Prevention + Access,Agency Staff
Milton Keynes Council,03-Oct-22,51500747737,"£1,583.16",The Oyster Partnership Ltd,Adult Services,Homeless Prevention + Access,Agency Staff
Milton Keynes Council,03-Oct-22,51500777737,"£1,591.22",The Oyster Partnership Ltd,Adult Services,Homeless Prevention + Access,Agency Staff
Milton Keynes Council,03-Oct-22,51500798443,"£1,600.00",South East Midlands Local Enterprise Partnership,Planning and Placemaking,Head of Economic Development,Grants
Milton Keynes Council,03-Oct-22,51500796780,"£1,603.87",Deekay Technical Recruitment Ltd,Environment & Property,Head of Service - Highways,Agency Staff
Milton Keynes Council,03-Oct-22,51500770875,"£1,611.36",The Oyster Partnership Ltd,Adult Services,Homeless Prevention + Access,Agency Staff
Milton Keynes Council,03-Oct-22,51500737741,"£1,631.51",The Oyster Partnership Ltd,Adult Services,Homeless Prevention + Access,Agency Staff
Milton Keynes Council,03-Oct-22,51500770851,"£1,640.36",The Oyster Partnership Ltd,Adult Services,Homeless Prevention + Access,Agency Staff
Milton Keynes Council,03-Oct-22,51500712040,"£1,704.52",The Oyster Partnership Ltd,Adult Services,Homeless Prevention + Access,Agency Staff
Milton Keynes Council,03-Oct-22,51500788362,"£1,716.50",The Oyster Partnership Ltd,Adult Services (HRA),Housing Operations (HRA),Recruitment Costs
Milton Keynes Council,03-Oct-22,51500788159,"£1,998.75",T. J. Fire & Security,Children's Services,"Sufficiency, Access and Attendance",Building Repair and Maintenance
Milton Keynes Council,03-Oct-22,51500787986,"£2,000.00",Balliol College,Children's Services,Corporate Parenting,Other Service User Support
Milton Keynes Council,03-Oct-22,51500787937,"£2,000.00",The Association Of Electoral Administrators Ltd,Finance & Resources - Services,HR,Staff Training & Development
Milton Keynes Council,03-Oct-22,51500788219,"£2,085.00","Vivid Resourcing, a division of G2V Recruitment Group Limited",Planning and Placemaking,Planning,Agency Staff
Milton Keynes Council,03-Oct-22,51500797892,"£2,100.00",Broughton Fields  School,Children's Services,Education Improvement and Effectiveness Service,Educational visits
Milton Keynes Council,03-Oct-22,51500798119,"£2,185.74",Caring Hearts Fostering,Children's Services,Corporate Parenting,Residential Care
Milton Keynes Council,03-Oct-22,51500798301,"£2,244.00",Build Recruitment,Env & Prop (HRA),HRA Asset Management and Investment,Agency Staff
Milton Keynes Council,03-Oct-22,51500788032,"£2,400.00",Number 10 Interim Ltd,Adult Services,Commissioning & Contracts,Agency Staff
Milton Keynes Council,03-Oct-22,51500788881,"£2,548.37",National World Publishing Limited,Environment & Property,Head of Service - Highways,Advertising / Publicity (non Recruitment)
Milton Keynes Council,03-Oct-22,51500788215,"£2,572.80","Vivid Resourcing, a division of G2V Recruitment Group Limited",Planning and Placemaking,Planning,Agency Staff
Milton Keynes Council,03-Oct-22,51500787952,"£2,592.43",Health Management Ltd,Finance & Resources - Services,HR,Professional Fees and Hired Services
Milton Keynes Council,03-Oct-22,51500789581,"£3,456.00",Macdonald & Company Freelance Ltd,Environment & Property,Property,Agency Staff
Milton Keynes Council,03-Oct-22,51500785085,"£3,774.87",Foster Care Associates Limited,Children's Services,Corporate Parenting,Residential Care
Milton Keynes Council,03-Oct-22,51500789778,"£3,825.60",Apex Acoustics Limited,Environment & Property,Major Schemes,Acquistions - External Professional Fees
Milton Keynes Council,03-Oct-22,51500798373,"£3,861.38",Nationwide Fostering,Children's Services,Corporate Parenting,Residential Care
Milton Keynes Council,03-Oct-22,51500785286,"£4,500.00",Progressive Futures Care Limited,Children's Services,Corporate Parenting,Residential Care
Milton Keynes Council,03-Oct-22,51500798558,"£5,160.00",Mitchell Access Control Systems Ltd,Environment & Property,Head of Service - Env and Waste,Building Repair and Maintenance
Milton Keynes Council,03-Oct-22,51500798421,"£5,357.84",Lavendon Parish Council,Corporate Codes,Planning Obligations,S106 Expenditure
Milton Keynes Council,03-Oct-22,51500797305,"£5,469.41",Samantha Knight T/A Affinity Lettings - maint. Amb Hse & Qway,Adult Services,Homeless Prevention + Access,Other Service User Support
Milton Keynes Council,03-Oct-22,51500798380,"£6,642.99",Nationwide Fostering,Children's Services,Corporate Parenting,Residential Care
Milton Keynes Council,03-Oct-22,51500797304,"£7,755.90",Samantha Knight T/A Affinity Lettings - maint. Amb Hse & Qway,Adult Services,Homeless Prevention + Access,Other Service User Support
Milton Keynes Council,03-Oct-22,51500797306,"£7,755.90",Samantha Knight T/A Affinity Lettings - maint. Amb Hse & Qway,Adult Services,Homeless Prevention + Access,Other Service User Support
Milton Keynes Council,03-Oct-22,51500787943,"£7,800.60",MLL Telecom Limited,Resources,ICT,IT Hardware
Milton Keynes Council,03-Oct-22,51500788683,"£8,278.68",Morgan Law,Finance & Resources - Services,Professional Finance,Agency Staff
Milton Keynes Council,03-Oct-22,51500798533,"£8,333.30",Ngage Solutions ltd.,Planning and Placemaking,Head of Economic Development,Grants
Milton Keynes Council,03-Oct-22,51500788177,"£8,709.76",Precisely Software Ltd,Finance & Resources - Services,ICT,Computer software - annual licence agreement
Milton Keynes Council,03-Oct-22,51500788208,"£10,600.80",Lisclare Ltd,Adult Services,"Day Services, Short Breaks and Shared Lives",Specialist Equipment For Service Delivery
Milton Keynes Council,03-Oct-22,51500785466,"£14,990.00",Progressive Futures Care Limited,Children's Services,Corporate Parenting,Residential Care
Milton Keynes Council,03-Oct-22,51500798343,"£15,785.71",Swan Children's Homes Limited,Children's Services,Corporate Parenting,Residential Care
Milton Keynes Council,03-Oct-22,51500788909,"£17,418.00",The Royal National College for The Blind,Children's Services,High Needs Block,Professional Fees and Hired Services
Milton Keynes Council,03-Oct-22,51500792632,"£17,910.23",Pitney Bowes PrePay,Environment & Property,Property,Postage & Carriage
Milton Keynes Council,03-Oct-22,51500788152,"£18,144.00",Tile Hill Interim & Executive Ltd,Finance & Resources - Services,Lead Authority Shared Services,Consultancy
Milton Keynes Council,03-Oct-22,51500787976,"£19,042.68",Harriston Homes Ltd t/a Florence House,Children's Services,Corporate Parenting,Residential Care
Milton Keynes Council,03-Oct-22,51500788154,"£21,528.00",Tile Hill Interim & Executive Ltd,Environment & Property,Head of Service - Highways,Agency Staff
Milton Keynes Council,03-Oct-22,51500789008,"£24,000.00",AECOM Infrastructure & Environment UK Limited,Planning and Placemaking,Planning,Specialist Equipment For Service Delivery
Milton Keynes Council,03-Oct-22,51500788250,"£25,300.00",London Pensions Fund Authority,Customer and Community Services,Leisure & Community,Building Repair and Maintenance
Milton Keynes Council,03-Oct-22,51500798121,"£32,200.00",Florinee Homes Ltd,Children's Services,Corporate Parenting,Residential Care
Milton Keynes Council,03-Oct-22,51500796435,"£37,642.86",Florinee Homes Ltd,Children's Services,Corporate Parenting,Residential Care
Milton Keynes Council,03-Oct-22,51500797237,"£40,505.45",Bloom Procurement Services Limited,Housing & Regeneration - HRA,Regeneration HRA,"New Construction, Conversion and Renovation"
Milton Keynes Council,03-Oct-22,51500788708,"£54,095.41",Biffa Waste Services Limited,Environment & Property,Head of Service - Env and Waste,Waste Disposal
Milton Keynes Council,03-Oct-22,51500796797,"£67,290.00",Bloom Procurement Services Limited,Housing & Regeneration - HRA,Regeneration HRA,"New Construction, Conversion and Renovation"
Milton Keynes Council,03-Oct-22,51500798248,"£160,825.97",Opus LGSS People Solutions Ltd,Finance & Resources - Services,Lead Authority Shared Services,Miscellaneous Control Accounts
Milton Keynes Council,03-Oct-22,51500792808,"£183,790.07",Npower Ltd,Environment & Property,Head of Service - Highways,Electricity
Milton Keynes Council,03-Oct-22,51500798411,"£250,000.00",Community Action MK,Corporate Codes,Planning Obligations,Expenditure on Grants
Milton Keynes Council,05-Oct-22,51500800821,"-£24,255.14",DP Designs Ltd,Environment & Property,Property Management,"Fixtures, Fittings and Furnishings"
Milton Keynes Council,05-Oct-22,51500796910,"-£3,310.49",Sarmey Healthcare Ltd,Children's Services,Corporate Parenting,Residential Care
Milton Keynes Council,05-Oct-22,65500005565,"-£1,279.35",0,Finance & Resources - Holding Accounts,Holding Accounts,Collection Fund Refunds
Milton Keynes Council,05-Oct-22,51500800719,"-£1,189.40",Redacted Personal Data,Adult Services,Mental Health,Direct Payments
Milton Keynes Council,05-Oct-22,51500800723,"-£1,189.40",Redacted Personal Data,Adult Services,Mental Health,Direct Payments
Milton Keynes Council,05-Oct-22,51500800707,"-£1,189.40",Redacted Personal Data,Adult Services,Mental Health,Direct Payments
Milton Keynes Council,05-Oct-22,51500800727,"-£1,189.40",Redacted Personal Data,Adult Services,Mental Health,Direct Payments
Milton Keynes Council,05-Oct-22,51500800729,"-£1,189.40",Redacted Personal Data,Adult Services,Mental Health,Direct Payments
Milton Keynes Council,05-Oct-22,51500800711,"-£1,189.40",Redacted Personal Data,Adult Services,Mental Health,Direct Payments
Milton Keynes Council,05-Oct-22,51500800715,"-£1,189.40",Redacted Personal Data,Adult Services,Mental Health,Direct Payments
Milton Keynes Council,05-Oct-22,51500799022,-£720.20,Redacted Personal Data,Children's Services,Corporate Parenting,Mandatory Student Awards
Milton Keynes Council,05-Oct-22,51500800664,-£602.68,Redacted Personal Data,Adult Services,"Assessment, Review and Hospital Discharge",Client Care Contributions
Milton Keynes Council,05-Oct-22,51500798410,-£585.60,John Gillman & Sons (Electrical) Ltd t/a D.A.D.,Finance & Resources - Services,Revenue & Benefits,Furniture
Milton Keynes Council,05-Oct-22,51500796960,-£568.80,John Gillman & Sons (Electrical) Ltd t/a D.A.D.,Finance & Resources - Services,Revenue & Benefits,Furniture
Milton Keynes Council,05-Oct-22,51500800630,-£562.80,Redacted Personal Data,Adult Services,Learning Disability,Client Care Contributions
Milton Keynes Council,05-Oct-22,51500800662,-£509.64,Redacted Personal Data,Adult Services,"Assessment, Review and Hospital Discharge",Client Care Contributions
Milton Keynes Council,05-Oct-22,51500800621,£511.88,Redacted Personal Data,Adult Services,Mental Health,Direct Payments
Milton Keynes Council,05-Oct-22,51500800496,£525.32,Redacted Personal Data,Adult Services,Physical Disability,Direct Payments
Milton Keynes Council,05-Oct-22,51500798879,£525.50,Redacted Personal Data,Children's Services,Corporate Parenting,Mandatory Student Awards
Milton Keynes Council,05-Oct-22,51500799807,£528.00,Redacted Personal Data,Children's Services,Special Education Needs & Disabilities,Mandatory Student Awards
Milton Keynes Council,05-Oct-22,51500800504,£537.04,Redacted Personal Data,Adult Services,Learning Disability,Direct Payments
Milton Keynes Council,05-Oct-22,51500789371,£538.80,Zaynah Carpets & Furniture Limited,Children's Services,Children's Social Work,"Fixtures, Fittings and Furnishings"
Milton Keynes Council,05-Oct-22,51500799515,£540.68,Redacted Personal Data,Children's Services,Corporate Parenting,Mandatory Student Awards
Milton Keynes Council,05-Oct-22,51500799190,£540.68,Redacted Personal Data,Children's Services,Corporate Parenting,Mandatory Student Awards
Milton Keynes Council,05-Oct-22,51500799193,£540.68,Redacted Personal Data,Children's Services,Corporate Parenting,Mandatory Student Awards
Milton Keynes Council,05-Oct-22,51500800579,£541.48,Redacted Personal Data,Adult Services,Learning Disability,Direct Payments
Milton Keynes Council,05-Oct-22,51500800569,£541.52,Redacted Personal Data,Adult Services,Physical Disability,Direct Payments
Milton Keynes Council,05-Oct-22,51500799950,£559.87,Redacted Personal Data,Children's Services,Special Education Needs & Disabilities,Mandatory Student Awards
Milton Keynes Council,05-Oct-22,51500798609,£563.76,C S Cleaning (Milton Keynes) Ltd,Environment & Property,Property,Cleaning and Domestic Supplies
Milton Keynes Council,05-Oct-22,51500798611,£563.76,C S Cleaning (Milton Keynes) Ltd,Environment & Property,Property,Cleaning and Domestic Supplies
Milton Keynes Council,05-Oct-22,51500798610,£563.76,C S Cleaning (Milton Keynes) Ltd,Environment & Property,Property,Cleaning and Domestic Supplies
Milton Keynes Council,05-Oct-22,51500799232,£568.40,Redacted Personal Data,Children's Services,Special Education Needs & Disabilities,Mandatory Student Awards
Milton Keynes Council,05-Oct-22,51500789342,£568.80,John Gillman & Sons (Electrical) Ltd t/a D.A.D.,Finance & Resources - Services,Revenue & Benefits,Furniture
Milton Keynes Council,05-Oct-22,51500800507,£569.20,Redacted Personal Data,Adult Services,Learning Disability,Direct Payments
Milton Keynes Council,05-Oct-22,51500800919,£570.00,The Yaboo Company Limited T/a Wesley Music,Customer and Community Services,Head of Service - Regulatory,Specialist Supplies and Materials
Milton Keynes Council,05-Oct-22,51500800448,£570.24,Expert In Mind Ltd,Law & Governance,Legal,Testing
Milton Keynes Council,05-Oct-22,51500799756,£578.56,Redacted Personal Data,Children's Services,Corporate Parenting,Mandatory Student Awards
Milton Keynes Council,05-Oct-22,51500800211,£581.40,Redacted Personal Data,Children's Services,Special Education Needs & Disabilities,Mandatory Student Awards
Milton Keynes Council,05-Oct-22,51500800520,£582.48,Redacted Personal Data,Adult Services,Autism,Direct Payments
Milton Keynes Council,05-Oct-22,51500800823,£588.84,Milton Keynes YMCA Ltd,Adult Services,Homeless Prevention + Access,Grants
Milton Keynes Council,05-Oct-22,51500800116,£596.82,Redacted Personal Data,Children's Services,Special Education Needs & Disabilities,Mandatory Student Awards
Milton Keynes Council,05-Oct-22,51500799999,£600.00,Redacted Personal Data,Children's Services,Special Education Needs & Disabilities,Mandatory Student Awards
Milton Keynes Council,05-Oct-22,51500800786,£600.00,Redacted Personal Data,Children's Services,High Needs Block,Professional Fees and Hired Services
Milton Keynes Council,05-Oct-22,51500800600,£618.56,Redacted Personal Data,Adult Services,Learning Disability,Direct Payments
Milton Keynes Council,05-Oct-22,51500800583,£618.88,Redacted Personal Data,Adult Services,Learning Disability,Direct Payments
Milton Keynes Council,05-Oct-22,51500800553,£626.12,Redacted Personal Data,Adult Services,Autism,Direct Payments
Milton Keynes Council,05-Oct-22,51500800554,£626.12,Redacted Personal Data,Adult Services,Autism,Direct Payments
Milton Keynes Council,05-Oct-22,51500800551,£626.12,Redacted Personal Data,Adult Services,Autism,Direct Payments
Milton Keynes Council,05-Oct-22,51500800552,£626.12,Redacted Personal Data,Adult Services,Autism,Direct Payments
Milton Keynes Council,05-Oct-22,51500800555,£626.12,Redacted Personal Data,Adult Services,Autism,Direct Payments
Milton Keynes Council,05-Oct-22,51500800556,£626.12,Redacted Personal Data,Adult Services,Autism,Direct Payments
Milton Keynes Council,05-Oct-22,51500800550,£626.12,Redacted Personal Data,Adult Services,Autism,Direct Payments
Milton Keynes Council,05-Oct-22,51500800629,£626.12,Redacted Personal Data,Adult Services,Autism,Direct Payments
Milton Keynes Council,05-Oct-22,51500800601,£655.28,Redacted Personal Data,Adult Services,Learning Disability,Direct Payments
Milton Keynes Council,05-Oct-22,51500799276,£676.08,Redacted Personal Data,Children's Services,Special Education Needs & Disabilities,Mandatory Student Awards
Milton Keynes Council,05-Oct-22,51500800502,£683.04,Redacted Personal Data,Adult Services,Learning Disability,Direct Payments
Milton Keynes Council,05-Oct-22,51500800573,£683.04,Redacted Personal Data,Adult Services,Physical Disability,Direct Payments
Milton Keynes Council,05-Oct-22,51500799430,£687.14,Redacted Personal Data,Children's Services,Corporate Parenting,Mandatory Student Awards
Milton Keynes Council,05-Oct-22,51500800772,£692.50,Redacted Personal Data,Children's Services,High Needs Block,Professional Fees and Hired Services
Milton Keynes Council,05-Oct-22,51500800610,£696.24,Redacted Personal Data,Adult Services,"Assessment, Review and Hospital Discharge",Direct Payments
Milton Keynes Council,05-Oct-22,51500800957,£720.00,Landmark Chambers,Planning and Placemaking,Planning,External Legal Fees
Milton Keynes Council,05-Oct-22,51500799901,£729.36,Redacted Personal Data,Children's Services,Special Education Needs & Disabilities,Mandatory Student Awards
Milton Keynes Council,05-Oct-22,51500800228,£730.28,Redacted Personal Data,Children's Services,Corporate Parenting,Mandatory Student Awards
Milton Keynes Council,05-Oct-22,51500800430,£745.92,Phoenix Forensic Consultants Ltd,Law & Governance,Legal,Testing
Milton Keynes Council,05-Oct-22,51500798781,£751.24,Redacted Personal Data,Adult Services,"Day Services, Short Breaks and Shared Lives",Domiciliary Care
Milton Keynes Council,05-Oct-22,51500800580,£773.52,Redacted Personal Data,Adult Services,Learning Disability,Direct Payments
Milton Keynes Council,05-Oct-22,51500800603,£773.52,Redacted Personal Data,Adult Services,Learning Disability,Direct Payments
Milton Keynes Council,05-Oct-22,51500799973,£792.00,Redacted Personal Data,Children's Services,Special Education Needs & Disabilities,Mandatory Student Awards
Milton Keynes Council,05-Oct-22,51500800509,£792.92,Redacted Personal Data,Adult Services,Learning Disability,Direct Payments
Milton Keynes Council,05-Oct-22,51500800501,£792.92,Redacted Personal Data,Adult Services,Learning Disability,Direct Payments
Milton Keynes Council,05-Oct-22,51500800217,£800.00,Redacted Personal Data,Children's Services,Corporate Parenting,Mandatory Student Awards
Milton Keynes Council,05-Oct-22,51500800820,£800.00,Milton Keynes Museum,Chief Executive,Chief Executive,Grants
Milton Keynes Council,05-Oct-22,51500799029,£837.00,Redacted Personal Data,Children's Services,Corporate Parenting,Mandatory Student Awards
Milton Keynes Council,05-Oct-22,51500800945,£845.17,Dr Grange & Associates,Law & Governance,Legal,Testing
Milton Keynes Council,05-Oct-22,51500800081,£868.00,Redacted Personal Data,Children's Services,Corporate Parenting,Mandatory Student Awards
Milton Keynes Council,05-Oct-22,51500800598,£883.52,Redacted Personal Data,Adult Services,Learning Disability,Direct Payments
Milton Keynes Council,05-Oct-22,51500798784,£898.78,Redacted Personal Data,Adult Services,"Day Services, Short Breaks and Shared Lives",Domiciliary Care
Milton Keynes Council,05-Oct-22,51500798878,£900.00,Redacted Personal Data,Children's Services,Corporate Parenting,Mandatory Student Awards
Milton Keynes Council,05-Oct-22,51500799105,£900.00,Redacted Personal Data,Children's Services,Corporate Parenting,Mandatory Student Awards
Milton Keynes Council,05-Oct-22,51500798625,£900.00,Falconhurst School,Children's Services,"Group Head - Education, Learning and Inclusion",Professional Fees and Hired Services
Milton Keynes Council,05-Oct-22,51500798626,£900.00,Jubilee Wood Primary School,Children's Services,"Group Head - Education, Learning and Inclusion",Professional Fees and Hired Services
Milton Keynes Council,05-Oct-22,51500800784,£920.00,Phoenix Rising MK C.I.C,Children's Services,High Needs Block,Professional Fees and Hired Services
Milton Keynes Council,05-Oct-22,51500800074,£922.00,Redacted Personal Data,Children's Services,Special Education Needs & Disabilities,Mandatory Student Awards
Milton Keynes Council,05-Oct-22,51500800499,£928.16,Redacted Personal Data,Adult Services,Learning Disability,Direct Payments
Milton Keynes Council,05-Oct-22,51500800506,"£1,011.28",Redacted Personal Data,Adult Services,Learning Disability,Direct Payments
Milton Keynes Council,05-Oct-22,51500800937,"£1,020.00",Redacted Personal Data,Law & Governance,Legal,External Legal Fees
Milton Keynes Council,05-Oct-22,51500800958,"£1,047.60",Skyline Taxi & Private Hire,Children's Services,"Sufficiency, Access and Attendance",Social Care Transport
Milton Keynes Council,05-Oct-22,51500800514,"£1,083.04",Redacted Personal Data,Adult Services,"Assessment, Review and Hospital Discharge",Direct Payments
Milton Keynes Council,05-Oct-22,51500800512,"£1,083.04",Redacted Personal Data,Adult Services,"Assessment, Review and Hospital Discharge",Direct Payments
Milton Keynes Council,05-Oct-22,51500800611,"£1,083.04",Redacted Personal Data,Adult Services,"Assessment, Review and Hospital Discharge",Direct Payments
Milton Keynes Council,05-Oct-22,51500800604,"£1,083.04",Redacted Personal Data,Adult Services,"Assessment, Review and Hospital Discharge",Direct Payments
Milton Keynes Council,05-Oct-22,51500800586,"£1,149.36",Redacted Personal Data,Adult Services,Learning Disability,Direct Payments
Milton Keynes Council,05-Oct-22,51500800592,"£1,164.92",Redacted Personal Data,Adult Services,Learning Disability,Direct Payments
Milton Keynes Council,05-Oct-22,51500800565,"£1,166.88",Redacted Personal Data,Adult Services,Physical Disability,Direct Payments
Milton Keynes Council,05-Oct-22,51500800487,"£1,195.32",Redacted Personal Data,Adult Services,Physical Disability,Direct Payments
Milton Keynes Council,05-Oct-22,51500800622,"£1,195.48",Redacted Personal Data,Adult Services,Mental Health,Direct Payments
Milton Keynes Council,05-Oct-22,51500800788,"£1,200.00",Redacted Personal Data,Children's Services,High Needs Block,Professional Fees and Hired Services
Milton Keynes Council,05-Oct-22,51500788960,"£1,200.00",CACI Limited,Children's Services,Group Head – Children and Families,Computer software - purchase
Milton Keynes Council,05-Oct-22,51500799825,"£1,201.92",Redacted Personal Data,Children's Services,Special Education Needs & Disabilities,Mandatory Student Awards
Milton Keynes Council,05-Oct-22,51500800585,"£1,207.64",Redacted Personal Data,Adult Services,Learning Disability,Direct Payments
Milton Keynes Council,05-Oct-22,51500800567,"£1,223.80",Redacted Personal Data,Adult Services,Physical Disability,Direct Payments
Milton Keynes Council,05-Oct-22,51500800730,"£1,246.36",Redacted Personal Data,Adult Services,Mental Health,Direct Payments
Milton Keynes Council,05-Oct-22,51500800722,"£1,246.36",Redacted Personal Data,Adult Services,Mental Health,Direct Payments
Milton Keynes Council,05-Oct-22,51500800731,"£1,246.36",Redacted Personal Data,Adult Services,Mental Health,Direct Payments
Milton Keynes Council,05-Oct-22,51500800714,"£1,246.36",Redacted Personal Data,Adult Services,Mental Health,Direct Payments
Milton Keynes Council,05-Oct-22,51500800710,"£1,246.36",Redacted Personal Data,Adult Services,Mental Health,Direct Payments
Milton Keynes Council,05-Oct-22,51500800726,"£1,246.36",Redacted Personal Data,Adult Services,Mental Health,Direct Payments
Milton Keynes Council,05-Oct-22,51500800728,"£1,246.36",Redacted Personal Data,Adult Services,Mental Health,Direct Payments
Milton Keynes Council,05-Oct-22,51500800718,"£1,246.36",Redacted Personal Data,Adult Services,Mental Health,Direct Payments
Milton Keynes Council,05-Oct-22,51500800623,"£1,252.24",Redacted Personal Data,Adult Services,Mental Health,Direct Payments
Milton Keynes Council,05-Oct-22,51500800510,"£1,278.40",Redacted Personal Data,Adult Services,Learning Disability,Direct Payments
Milton Keynes Council,05-Oct-22,51500800560,"£1,279.28",Redacted Personal Data,Adult Services,Physical Disability,Direct Payments
Milton Keynes Council,05-Oct-22,65500005563,"£1,279.35",0,Finance & Resources - Corporate Codes,Corporate Codes,Bank Account - Payables
Milton Keynes Council,05-Oct-22,51500800595,"£1,402.96",Redacted Personal Data,Adult Services,Learning Disability,Direct Payments
Milton Keynes Council,05-Oct-22,51500799398,"£1,421.00",Redacted Personal Data,Children's Services,Special Education Needs & Disabilities,Mandatory Student Awards
Milton Keynes Council,05-Oct-22,51500800593,"£1,431.16",Redacted Personal Data,Adult Services,Learning Disability,Direct Payments
Milton Keynes Council,05-Oct-22,51500800486,"£1,436.44",Redacted Personal Data,Adult Services,Physical Disability,Direct Payments
Milton Keynes Council,05-Oct-22,51500800924,"£1,475.00",Land Investment Property Services Limited,Customer and Community Services,Policy & Performance,Rents and Leases
Milton Keynes Council,05-Oct-22,51500800608,"£1,489.20",Redacted Personal Data,Adult Services,"Assessment, Review and Hospital Discharge",Direct Payments
Milton Keynes Council,05-Oct-22,51500800564,"£1,536.84",Redacted Personal Data,Adult Services,Physical Disability,Direct Payments
Milton Keynes Council,05-Oct-22,51500798212,"£1,550.40",Freeths LLP,Environment & Property,Property,External Legal Fees
Milton Keynes Council,05-Oct-22,51500800574,"£1,594.00",Redacted Personal Data,Adult Services,Physical Disability,Direct Payments
Milton Keynes Council,05-Oct-22,51500800628,"£1,641.60",Redacted Personal Data,Adult Services,Learning Disability,Direct Payments
Milton Keynes Council,05-Oct-22,51500800822,"£1,645.49",Redacted Personal Data,Adult Services,Homeless Prevention + Access,Grants
Milton Keynes Council,05-Oct-22,51500800575,"£1,656.60",Redacted Personal Data,Adult Services,Physical Disability,Direct Payments
Milton Keynes Council,05-Oct-22,51500800591,"£1,691.20",Redacted Personal Data,Adult Services,Learning Disability,Direct Payments
Milton Keynes Council,05-Oct-22,51500800311,"£1,705.20",Redacted Personal Data,Children's Services,Special Education Needs & Disabilities,Mandatory Student Awards
Milton Keynes Council,05-Oct-22,51500800597,"£1,747.40",Redacted Personal Data,Adult Services,Learning Disability,Direct Payments
Milton Keynes Council,05-Oct-22,51500800615,"£1,759.96",Redacted Personal Data,Adult Services,"Assessment, Review and Hospital Discharge",Direct Payments
Milton Keynes Council,05-Oct-22,51500800925,"£1,780.00",Redacted Personal Data,Customer and Community Services,Policy & Performance,Rents and Leases
Milton Keynes Council,05-Oct-22,51500800491,"£1,791.64",Redacted Personal Data,Adult Services,Physical Disability,Direct Payments
Milton Keynes Council,05-Oct-22,51500800614,"£1,895.32",Redacted Personal Data,Adult Services,"Assessment, Review and Hospital Discharge",Direct Payments
Milton Keynes Council,05-Oct-22,51500798790,"£1,947.36",Redacted Personal Data,Adult Services,"Day Services, Short Breaks and Shared Lives",Domiciliary Care
Milton Keynes Council,05-Oct-22,51500800484,"£1,992.20",Redacted Personal Data,Adult Services,Physical Disability,Direct Payments
Milton Keynes Council,05-Oct-22,51500800513,"£1,992.20",Redacted Personal Data,Adult Services,"Assessment, Review and Hospital Discharge",Direct Payments
Milton Keynes Council,05-Oct-22,51500799903,"£2,000.00",Redacted Personal Data,Children's Services,Special Education Needs & Disabilities,Mandatory Student Awards
Milton Keynes Council,05-Oct-22,51500800620,"£2,056.68",Redacted Personal Data,Adult Services,Mental Health,Direct Payments
Milton Keynes Council,05-Oct-22,51500800588,"£2,088.72",Redacted Personal Data,Adult Services,Learning Disability,Direct Payments
Milton Keynes Council,05-Oct-22,51500800515,"£2,166.08",Redacted Personal Data,Adult Services,"Assessment, Review and Hospital Discharge",Direct Payments
Milton Keynes Council,05-Oct-22,51500800582,"£2,184.24",Redacted Personal Data,Adult Services,Learning Disability,Direct Payments
Milton Keynes Council,05-Oct-22,51500800819,"£2,200.00",The Living Archive Project,Chief Executive,Chief Executive,Grants
Milton Keynes Council,05-Oct-22,51500800572,"£2,276.80",Redacted Personal Data,Adult Services,Physical Disability,Direct Payments
Milton Keynes Council,05-Oct-22,51500800624,"£2,361.52",Redacted Personal Data,Adult Services,Mental Health,Direct Payments
Milton Keynes Council,05-Oct-22,51500800492,"£2,390.64",Redacted Personal Data,Adult Services,Physical Disability,Direct Payments
Milton Keynes Council,05-Oct-22,51500798788,"£2,399.18",Redacted Personal Data,Adult Services,"Day Services, Short Breaks and Shared Lives",Domiciliary Care
Milton Keynes Council,05-Oct-22,51500800926,"£2,400.00",Redacted Personal Data,Customer and Community Services,Policy & Performance,Rents and Leases
Milton Keynes Council,05-Oct-22,51500800516,"£2,500.00",Redacted Personal Data,Adult Services,"Assessment, Review and Hospital Discharge",Direct Payments
Milton Keynes Council,05-Oct-22,51500800326,"£2,663.96",Redacted Personal Data,Children's Services,Special Education Needs & Disabilities,Mandatory Student Awards
Milton Keynes Council,05-Oct-22,51500800748,"£2,700.00",My Resourcing Group Limited,Finance & Resources - Services,Professional Finance,Agency Staff
Milton Keynes Council,05-Oct-22,51500800790,"£2,700.00",Redacted Personal Data,Children's Services,Group Head – Children and Families,Other Travel Allowances
Milton Keynes Council,05-Oct-22,51500800558,"£2,784.96",Redacted Personal Data,Adult Services,Physical Disability,Direct Payments
Milton Keynes Council,05-Oct-22,51500799904,"£2,880.00",Redacted Personal Data,Children's Services,Special Education Needs & Disabilities,Mandatory Student Awards
Milton Keynes Council,05-Oct-22,51500800607,"£2,978.36",Redacted Personal Data,Adult Services,"Assessment, Review and Hospital Discharge",Direct Payments
Milton Keynes Council,05-Oct-22,51500800495,"£3,176.52",Redacted Personal Data,Adult Services,Physical Disability,Direct Payments
Milton Keynes Council,05-Oct-22,51500797916,"£3,310.49",Sarmey Healthcare Ltd,Children's Services,Corporate Parenting,Residential Care
Milton Keynes Council,05-Oct-22,51500798556,"£3,310.49",Sarmey Healthcare Ltd,Children's Services,Corporate Parenting,Residential Care
Milton Keynes Council,05-Oct-22,51500800500,"£3,674.60",Redacted Personal Data,Adult Services,Learning Disability,Direct Payments
Milton Keynes Council,05-Oct-22,51500800508,"£3,674.60",Redacted Personal Data,Adult Services,Learning Disability,Direct Payments
Milton Keynes Council,05-Oct-22,51500800612,"£3,790.64",Redacted Personal Data,Adult Services,"Assessment, Review and Hospital Discharge",Direct Payments
Milton Keynes Council,05-Oct-22,51500800857,"£3,840.00",My Resourcing Group Limited,Finance & Resources - Services,Professional Finance,Agency Staff
Milton Keynes Council,05-Oct-22,51500800578,"£4,332.96",Redacted Personal Data,Adult Services,Physical Disability,Direct Payments
Milton Keynes Council,05-Oct-22,51500106208,"£5,515.04",Redacted Personal Data,Finance & Resources - Corporate Codes,Corporate Codes,ICON Contra Net-Nil
Milton Keynes Council,05-Oct-22,51500800563,"£5,535.84",Redacted Personal Data,Adult Services,Physical Disability,Direct Payments
Milton Keynes Council,05-Oct-22,51500800566,"£5,578.16",Redacted Personal Data,Adult Services,Physical Disability,Direct Payments
Milton Keynes Council,05-Oct-22,51500800505,"£6,173.08",Redacted Personal Data,Adult Services,Learning Disability,Direct Payments
Milton Keynes Council,05-Oct-22,51500800902,"£6,420.00",Redacted Personal Data,Law & Governance,Legal,External Legal Fees
Milton Keynes Council,05-Oct-22,51500800948,"£6,540.00",Redacted Personal Data,Law & Governance,Legal,External Legal Fees
Milton Keynes Council,05-Oct-22,51500800584,"£6,916.64",Redacted Personal Data,Adult Services,Learning Disability,Direct Payments
Milton Keynes Council,05-Oct-22,51500798739,"£7,248.00",C S Cleaning (Milton Keynes) Ltd,Adult Services (HRA),Housing Operations (HRA),Professional Fees and Hired Services
Milton Keynes Council,05-Oct-22,51500800863,"£8,547.36",AmeyCespa MK (SPV) Ltd,Environment & Property,Waste,Buildings - Mechanical and Electrical
Milton Keynes Council,05-Oct-22,51500789368,"£21,190.36",Benjamin UK Ltd,Children's Services,Corporate Parenting,Residential Care
Milton Keynes Council,05-Oct-22,51500789366,"£23,978.40",Benjamin UK Ltd,Children's Services,Corporate Parenting,Residential Care
Milton Keynes Council,05-Oct-22,51500788039,"£104,226.04",DP Designs Ltd,Environment & Property,Property Management,"Fixtures, Fittings and Furnishings"
Milton Keynes Council,05-Oct-22,51500789251,"£113,818.97",Goody Demolition Ltd,Environment & Property,Land Development,Construction - External Professional Fees
Milton Keynes Council,07-Oct-22,51500801530,"-£6,552.68",One Hermitage,Adult Services,Learning Disability,Living support grants
Milton Keynes Council,07-Oct-22,51500801526,"-£6,552.68",One Hermitage,Adult Services,Learning Disability,Living support grants
Milton Keynes Council,07-Oct-22,51500801523,"-£3,042.32",One Hermitage,Adult Services,Learning Disability,Living support grants
Milton Keynes Council,07-Oct-22,51500801525,"-£2,293.44",One Hermitage,Adult Services,Learning Disability,Living support grants
Milton Keynes Council,07-Oct-22,51500801529,"-£2,293.44",One Hermitage,Adult Services,Learning Disability,Living support grants
Milton Keynes Council,07-Oct-22,51500801524,"-£1,064.81",One Hermitage,Adult Services,Learning Disability,Living support grants
Milton Keynes Council,07-Oct-22,51500801435,-£924.72,Janes Care Homes Ltd T/A The White House,Adult Services,Commissioning & Contracts,Client Care Contributions
Milton Keynes Council,07-Oct-22,51500801433,-£721.44,VGCare Ltd,Adult Services,Commissioning & Contracts,Client Care Contributions
Milton Keynes Council,07-Oct-22,51500798004,£509.43,Adam HTT Limited T/A Adam,Adult Services,Physical Disability,Homecare
Milton Keynes Council,07-Oct-22,51500801073,£516.63,Apollo Home Healthcare Limited,Children's Services,Special Education Needs & Disabilities,Day Care
Milton Keynes Council,07-Oct-22,51500789194,£518.40,Matchtech,Environment & Property,Head of Service - Highways,Professional Fees and Hired Services
Milton Keynes Council,07-Oct-22,51500796734,£522.00,The Colour Crew LLP,Customer and Community Services,Communications,Professional Fees and Hired Services
Milton Keynes Council,07-Oct-22,51500801480,£530.28,One Hermitage,Adult Services,Learning Disability,Living support grants
Milton Keynes Council,07-Oct-22,51500801014,£533.60,Redacted Personal Data,Children's Services,"Sufficiency, Access and Attendance",Car mileage and allowances - other
Milton Keynes Council,07-Oct-22,51500789552,£540.00,Tunstall Healthcare (UK) Ltd,Adult Services,Community Alarm & Sheltered Housing,Equipment and Tools
Milton Keynes Council,07-Oct-22,51500801483,£542.48,One Hermitage,Adult Services,Learning Disability,Living support grants
Milton Keynes Council,07-Oct-22,51500801484,£542.48,One Hermitage,Adult Services,Learning Disability,Living support grants
Milton Keynes Council,07-Oct-22,51500801490,£542.48,One Hermitage,Adult Services,Learning Disability,Living support grants
Milton Keynes Council,07-Oct-22,51500801062,£547.02,Apollo Home Healthcare Limited,Children's Services,Special Education Needs & Disabilities,Day Care
Milton Keynes Council,07-Oct-22,51500801070,£567.28,Apollo Home Healthcare Limited,Children's Services,Special Education Needs & Disabilities,Day Care
Milton Keynes Council,07-Oct-22,51500797875,£568.80,John Gillman & Sons (Electrical) Ltd t/a D.A.D.,Finance & Resources - Services,Revenue & Benefits,Furniture
Milton Keynes Council,07-Oct-22,51500797881,£568.80,John Gillman & Sons (Electrical) Ltd t/a D.A.D.,Finance & Resources - Services,Revenue & Benefits,Furniture
Milton Keynes Council,07-Oct-22,51500801543,£579.00,Redacted Personal Data,Children's Services,"Sufficiency, Access and Attendance",Car mileage and allowances - other
Milton Keynes Council,07-Oct-22,51500796649,£598.80,Bernwood ECS Ltd,Environment & Property,Bridge Programme,Construction - External Professional Fees
Milton Keynes Council,07-Oct-22,51500789617,£599.59,CCS Media Limited,Resources,ICT,IT Hardware
Milton Keynes Council,07-Oct-22,51500789601,£610.00,Towergate Insurance Brokers Cardiff,Housing & Regeneration - HRA,Regeneration HRA,Construction - External Professional Fees
Milton Keynes Council,07-Oct-22,51500801661,£612.00,Supreme Linguistic Services Ltd,Law & Governance,Legal,Testing
Milton Keynes Council,07-Oct-22,51500801633,£617.30,JSE LTD T/A Essentials,Law & Governance,Director - Law & Governance,Other Service User Support
Milton Keynes Council,07-Oct-22,51500801450,£619.28,One Hermitage,Adult Services,Learning Disability,Living support grants
Milton Keynes Council,07-Oct-22,51500796176,£628.97,Redacted Personal Data,Customer and Community Services,Leisure & Community,Professional Fees and Hired Services
Milton Keynes Council,07-Oct-22,51500801047,£629.33,HSS Hire service group,Chief Executive,Chief Executive,Professional Fees and Hired Services
Milton Keynes Council,07-Oct-22,51500801645,£635.80,The Villager minibus (Sharnbrook) LTD,Environment & Property,Director Environment and Property,Concessions - payments to transport operators
Milton Keynes Council,07-Oct-22,51500800732,£650.00,Futebol De Salao MKLB Ltd SOCATOTS,Children's Services,Children's Centres Services,Care & Ed Childcare Settings
Milton Keynes Council,07-Oct-22,51500797271,£656.04,Edgar Catering Ltd t/a Jaspers Corporate Catering,Environment & Property,Property,Catering Provisions
Milton Keynes Council,07-Oct-22,51500801367,£656.53,Pinnacle Group,Adult Services,Homeless Prevention + Access,Grants
Milton Keynes Council,07-Oct-22,51500801348,£671.12,Redacted Personal Data,Housing & Regeneration - GF,Disabled adaptations  GF,Expenditure on Grants
Milton Keynes Council,07-Oct-22,51500801001,£672.00,Golden Living Property Consultants Ltd,Adult Services,Physical Disability,Rents and Leases
Milton Keynes Council,07-Oct-22,51500801329,£675.60,Expert Security Services,Environment & Property,Head of Service - Env and Waste,Security Equipment
Milton Keynes Council,07-Oct-22,51500801463,£696.56,One Hermitage,Adult Services,Learning Disability,Living support grants
Milton Keynes Council,07-Oct-22,51500801470,£696.80,One Hermitage,Adult Services,Learning Disability,Living support grants
Milton Keynes Council,07-Oct-22,51500801516,£696.80,One Hermitage,Adult Services,Learning Disability,Living support grants
Milton Keynes Council,07-Oct-22,51500801472,£696.80,One Hermitage,Adult Services,Learning Disability,Living support grants
Milton Keynes Council,07-Oct-22,51500797845,£699.06,Posturite (UK) Ltd,Adult Services,"Assessment, Review and Hospital Discharge",Specialist Supplies and Materials
Milton Keynes Council,07-Oct-22,51500801499,£723.24,One Hermitage,Adult Services,Learning Disability,Living support grants
Milton Keynes Council,07-Oct-22,51500801502,£725.84,One Hermitage,Adult Services,Learning Disability,Living support grants
Milton Keynes Council,07-Oct-22,51500798247,£750.00,Kind Minds,Finance & Resources - Services,HR,Staff Training & Development
Milton Keynes Council,07-Oct-22,51500798367,£750.00,Kind Minds,Finance & Resources - Services,HR,Staff Training & Development
Milton Keynes Council,07-Oct-22,51500798083,£762.17,Adam HTT Limited T/A Adam,Adult Services,Mental Health,Domiciliary Care
Milton Keynes Council,07-Oct-22,51500801437,£773.92,One Hermitage,Adult Services,Learning Disability,Living support grants
Milton Keynes Council,07-Oct-22,51500801475,£774.24,One Hermitage,Adult Services,Learning Disability,Living support grants
Milton Keynes Council,07-Oct-22,51500801013,£798.20,Redacted Personal Data,Children's Services,"Sufficiency, Access and Attendance",Car mileage and allowances - other
Milton Keynes Council,07-Oct-22,51500789241,£810.00,Matchtech,Environment & Property,Head of Service - Highways,Professional Fees and Hired Services
Milton Keynes Council,07-Oct-22,51500800869,£828.00,Acumen Waste Services Ltd,Customer and Community Services,Head of Service - Regulatory,Building Repair and Maintenance
Milton Keynes Council,07-Oct-22,51500769239,£871.20,Wagstaff Brothers Ltd T/a Wagstaff Interiors Group,Environment & Property,Property,"Fixtures, Fittings and Furnishings"
Milton Keynes Council,07-Oct-22,51500796385,£872.00,NSSE Ltd,Finance & Resources - Services,ICT,Computer hardware - maintenance
Milton Keynes Council,07-Oct-22,51500801035,£894.00,The Contact Hub Ltd,Children's Services,Children's Social Work,Grants and Support for other Service Users
Milton Keynes Council,07-Oct-22,51500798008,£908.98,Adam HTT Limited T/A Adam,Adult Services,Learning Disability,Domiciliary Care
Milton Keynes Council,07-Oct-22,51500801033,£924.00,The Contact Hub Ltd,Children's Services,Children's Social Work,Grants and Support for other Service Users
Milton Keynes Council,07-Oct-22,51500801034,£924.00,The Contact Hub Ltd,Children's Services,Children's Social Work,Grants and Support for other Service Users
Milton Keynes Council,07-Oct-22,51500801471,£929.16,One Hermitage,Adult Services,Learning Disability,Living support grants
Milton Keynes Council,07-Oct-22,51500801080,£960.00,Freshwhip,Adult Services (HRA),Housing Operations (HRA),Professional Fees and Hired Services
Milton Keynes Council,07-Oct-22,51500797843,£985.20,Clymac Ltd,Children's Services,Children's Centres Services,Security Equipment
Milton Keynes Council,07-Oct-22,51500798087,"£1,000.00",Tesco Stores Limited re Gift Card for Business,Children's Services,Corporate Parenting,Other Service User Support
Milton Keynes Council,07-Oct-22,51500801017,"£1,000.00",Redacted Personal Data,Children's Services,"Sufficiency, Access and Attendance",Car mileage and allowances - other
Milton Keynes Council,07-Oct-22,51500801016,"£1,000.00",Redacted Personal Data,Children's Services,"Sufficiency, Access and Attendance",Car mileage and allowances - other
Milton Keynes Council,07-Oct-22,51500801439,"£1,006.16",One Hermitage,Adult Services,Learning Disability,Living support grants
Milton Keynes Council,07-Oct-22,51500801441,"£1,006.16",One Hermitage,Adult Services,Learning Disability,Living support grants
Milton Keynes Council,07-Oct-22,51500801461,"£1,006.52",One Hermitage,Adult Services,Learning Disability,Living support grants
Milton Keynes Council,07-Oct-22,51500801521,"£1,007.37",One Hermitage,Adult Services,Learning Disability,Living support grants
Milton Keynes Council,07-Oct-22,51500800899,"£1,020.00",Redacted Personal Data,Law & Governance,Legal,External Legal Fees
Milton Keynes Council,07-Oct-22,51500796572,"£1,046.47",Posturite (UK) Ltd,Adult Services,"Reablement, OT and Home Care",Furniture
Milton Keynes Council,07-Oct-22,51500801489,"£1,084.92",One Hermitage,Adult Services,Learning Disability,Living support grants
Milton Keynes Council,07-Oct-22,51500801514,"£1,084.92",One Hermitage,Adult Services,Learning Disability,Living support grants
Milton Keynes Council,07-Oct-22,51500801488,"£1,084.92",One Hermitage,Adult Services,Learning Disability,Living support grants
Milton Keynes Council,07-Oct-22,51500801486,"£1,084.92",One Hermitage,Adult Services,Learning Disability,Living support grants
Milton Keynes Council,07-Oct-22,51500801503,"£1,084.92",One Hermitage,Adult Services,Learning Disability,Living support grants
Milton Keynes Council,07-Oct-22,51500801505,"£1,084.92",One Hermitage,Adult Services,Learning Disability,Living support grants
Milton Keynes Council,07-Oct-22,51500801513,"£1,084.92",One Hermitage,Adult Services,Learning Disability,Living support grants
Milton Keynes Council,07-Oct-22,51500798076,"£1,129.37",Adam HTT Limited T/A Adam,Adult Services,Physical Disability,Homecare
Milton Keynes Council,07-Oct-22,51500801646,"£1,131.30",Grant Palmer Limited t/a Grant Palmer Passenger Services,Environment & Property,Director Environment and Property,Concessions - payments to transport operators
Milton Keynes Council,07-Oct-22,51500789187,"£1,176.00",Arriva The Shires Limited,Children's Services,"Sufficiency, Access and Attendance",Home to School - Public Transport
Milton Keynes Council,07-Oct-22,51500800927,"£1,200.00",Redacted Personal Data,Customer and Community Services,Policy & Performance,Rents and Leases
Milton Keynes Council,07-Oct-22,51500801438,"£1,238.32",One Hermitage,Adult Services,Learning Disability,Living support grants
Milton Keynes Council,07-Oct-22,51500800428,"£1,242.32",The Psychology Clinic of East Anglia Ltd,Law & Governance,Legal,Testing
Milton Keynes Council,07-Oct-22,51500801537,"£1,300.00",Prevention and Recovery Care and Support (PARCS) Ltd,Adult Services,Mental Health,Living support grants
Milton Keynes Council,07-Oct-22,51500798009,"£1,303.68",Adam HTT Limited T/A Adam,Adult Services,Autism,Domiciliary Care
Milton Keynes Council,07-Oct-22,51500801494,"£1,310.56",One Hermitage,Adult Services,Learning Disability,Living support grants
Milton Keynes Council,07-Oct-22,51500801634,"£1,320.00",JSE LTD T/A Essentials,Law & Governance,Director - Law & Governance,Other Service User Support
Milton Keynes Council,07-Oct-22,51500798122,"£1,364.00",Westbury Arts Centre,Children's Services,"Sufficiency, Access and Attendance",Casual hire of facilities
Milton Keynes Council,07-Oct-22,51500801167,"£1,375.36",Mrs Helen Hobbs T/A Wellies Day Nursery,Children's Services,High Needs Block,Professional Fees and Hired Services
Milton Keynes Council,07-Oct-22,51500801477,"£1,393.68",One Hermitage,Adult Services,Learning Disability,Living support grants
Milton Keynes Council,07-Oct-22,51500801690,"£1,482.78",Redacted Personal Data,Children's Services,Safeguarding,Other Travel Allowances
Milton Keynes Council,07-Oct-22,51500801012,"£1,500.00",HAVILAH CARE LTD,Children's Services,Corporate Parenting,Other Service User Support
Milton Keynes Council,07-Oct-22,51500798745,"£1,500.00",County Private Client Ltd,Adult Services,"Assessment, Review and Hospital Discharge",Rents and Leases
Milton Keynes Council,07-Oct-22,51500801453,"£1,548.24",One Hermitage,Adult Services,Learning Disability,Living support grants
Milton Keynes Council,07-Oct-22,51500801465,"£1,548.60",One Hermitage,Adult Services,Learning Disability,Living support grants
Milton Keynes Council,07-Oct-22,51500801507,"£1,550.08",One Hermitage,Adult Services,Learning Disability,Living support grants
Milton Keynes Council,07-Oct-22,51500789591,"£1,703.56",Grand Union Housing Group,Adult Services,Learning Disability,Rents and Leases
Milton Keynes Council,07-Oct-22,51500789365,"£1,727.14",Benjamin UK Ltd,Children's Services,Corporate Parenting,Residential Care
Milton Keynes Council,07-Oct-22,51500801389,"£1,755.00",North Northamptonshire Council,Planning and Placemaking,Planning,Professional Fees and Hired Services
Milton Keynes Council,07-Oct-22,51500801539,"£1,794.20",Prevention and Recovery Care and Support (PARCS) Ltd,Adult Services,Mental Health,Living support grants
Milton Keynes Council,07-Oct-22,51500801536,"£1,796.24",Prevention and Recovery Care and Support (PARCS) Ltd,Adult Services,Mental Health,Living support grants
Milton Keynes Council,07-Oct-22,51500801538,"£1,912.40",Prevention and Recovery Care and Support (PARCS) Ltd,Adult Services,Mental Health,Living support grants
Milton Keynes Council,07-Oct-22,51500789243,"£1,914.00",Matchtech,Planning and Placemaking,Transport Projects,Professional Fees and Hired Services
Milton Keynes Council,07-Oct-22,51500776066,"£1,922.22",Sarmey Healthcare Ltd,Children's Services,Corporate Parenting,Residential Care
Milton Keynes Council,07-Oct-22,51500801540,"£1,954.20",Prevention and Recovery Care and Support (PARCS) Ltd,Adult Services,Mental Health,Living support grants
Milton Keynes Council,07-Oct-22,51500800987,"£1,990.55",Redacted Personal Data,Children's Services,Safeguarding,Other Travel Allowances
Milton Keynes Council,07-Oct-22,51500794701,"£2,040.00",Toxicology UK Ltd,Customer and Community Services,Head of Service - Regulatory,Testing
Milton Keynes Council,07-Oct-22,51500801213,"£2,071.15",Land Investment Property Services Limited,Customer and Community Services,Policy & Performance,Rents and Leases
Milton Keynes Council,07-Oct-22,51500801644,"£2,098.69",Britannia Bus T/A Meridian Bus,Environment & Property,Director Environment and Property,Concessions - payments to transport operators
Milton Keynes Council,07-Oct-22,51500801533,"£2,169.72",One Hermitage,Adult Services,Learning Disability,Living support grants
Milton Keynes Council,07-Oct-22,51500801527,"£2,169.72",One Hermitage,Adult Services,Learning Disability,Living support grants
Milton Keynes Council,07-Oct-22,51500801531,"£2,169.72",One Hermitage,Adult Services,Learning Disability,Living support grants
Milton Keynes Council,07-Oct-22,51500801487,"£2,169.92",One Hermitage,Adult Services,Learning Disability,Living support grants
Milton Keynes Council,07-Oct-22,51500801200,"£2,201.10",ADT Fire And Security Plc,Environment & Property,Property,Security Equipment
Milton Keynes Council,07-Oct-22,51500789242,"£2,211.00",Matchtech,Planning and Placemaking,Transport Projects,Professional Fees and Hired Services
Milton Keynes Council,07-Oct-22,51500789244,"£2,211.00",Matchtech,Planning and Placemaking,Transport Projects,Professional Fees and Hired Services
Milton Keynes Council,07-Oct-22,51500801168,"£2,234.96",Mrs Helen Hobbs T/A Wellies Day Nursery,Children's Services,High Needs Block,Professional Fees and Hired Services
Milton Keynes Council,07-Oct-22,51500789193,"£2,277.00",Matchtech,Planning and Placemaking,Transport Projects,Professional Fees and Hired Services
Milton Keynes Council,07-Oct-22,51500801509,"£2,293.20",One Hermitage,Adult Services,Learning Disability,Living support grants
Milton Keynes Council,07-Oct-22,51500801448,"£2,321.84",One Hermitage,Adult Services,Learning Disability,Living support grants
Milton Keynes Council,07-Oct-22,51500796774,"£2,349.00",C S Cleaning (Milton Keynes) Ltd,Environment & Property,Property,Building Cleaning
Milton Keynes Council,07-Oct-22,51500801165,"£2,394.60",Tippytoes Stantonbury Nursery Ltd,Children's Services,High Needs Block,Professional Fees and Hired Services
Milton Keynes Council,07-Oct-22,51500801515,"£2,398.16",One Hermitage,Adult Services,Learning Disability,Living support grants
Milton Keynes Council,07-Oct-22,51500789192,"£2,409.00",Matchtech,Planning and Placemaking,Transport Projects,Professional Fees and Hired Services
Milton Keynes Council,07-Oct-22,51500801492,"£2,437.96",One Hermitage,Adult Services,Learning Disability,Living support grants
Milton Keynes Council,07-Oct-22,51500789240,"£2,475.00",Matchtech,Planning and Placemaking,Transport Projects,Professional Fees and Hired Services
Milton Keynes Council,07-Oct-22,51500801443,"£2,554.04",One Hermitage,Adult Services,Learning Disability,Living support grants
Milton Keynes Council,07-Oct-22,51500801535,"£2,592.52",Prevention and Recovery Care and Support (PARCS) Ltd,Adult Services,Autism,Living support grants
Milton Keynes Council,07-Oct-22,51500798569,"£2,760.00",Currie & Brown UK Ltd,Housing & Regeneration - HRA,Regeneration HRA,Construction - External Professional Fees
Milton Keynes Council,07-Oct-22,51500789574,"£2,772.00",Clearwater People Ltd,Environment & Property,Property,Professional Fees and Hired Services
Milton Keynes Council,07-Oct-22,51500789555,"£2,784.00",Macildowie Associates Ltd,Finance & Resources - Services,Professional Finance,Agency Staff
Milton Keynes Council,07-Oct-22,51500801373,"£2,800.00",AJH Business Solutions Limited,Finance & Resources (HRA),Finance - Housing (HRA),Consultancy
Milton Keynes Council,07-Oct-22,51500801432,"£3,048.00",VGCare Ltd,Adult Services,Commissioning & Contracts,Nursing Care
Milton Keynes Council,07-Oct-22,51500801434,"£3,200.00",Janes Care Homes Ltd T/A The White House,Adult Services,Commissioning & Contracts,Residential Care
Milton Keynes Council,07-Oct-22,51500801456,"£3,250.64",One Hermitage,Adult Services,Learning Disability,Living support grants
Milton Keynes Council,07-Oct-22,51500789628,"£3,283.95",Cambridgeshire & Peterborough Combined Authority,Environment & Property,Director Environment and Property,Computer software - annual licence agreement
Milton Keynes Council,07-Oct-22,51500801451,"£3,348.32",One Hermitage,Adult Services,Learning Disability,Living support grants
Milton Keynes Council,07-Oct-22,51500800739,"£3,450.00",Bill's Minibus and Coach Hire Ltd,Customer and Community Services,Leisure & Community,Transport Contract Payments
Milton Keynes Council,07-Oct-22,51500789554,"£3,480.00",Macildowie Associates Ltd,Finance & Resources - Services,Professional Finance,Agency Staff
Milton Keynes Council,07-Oct-22,51500801430,"£3,500.00",The Red House Nursing Home,Adult Services,Commissioning & Contracts,Nursing Care
Milton Keynes Council,07-Oct-22,51500801429,"£3,572.00",Jasmine Healthcare  Ltd T/A Avenue House,Adult Services,Commissioning & Contracts,Nursing Care
Milton Keynes Council,07-Oct-22,51500801161,"£3,724.66",Iron Mountain (Uk) Ltd,Environment & Property,Property,Storage and Archiving
Milton Keynes Council,07-Oct-22,51500801500,"£3,751.92",One Hermitage,Adult Services,Learning Disability,Living support grants
Milton Keynes Council,07-Oct-22,51500798007,"£3,756.08",Adam HTT Limited T/A Adam,Children's Services,Special Education Needs & Disabilities,Day Care
Milton Keynes Council,07-Oct-22,51500801522,"£3,771.30",One Hermitage,Adult Services,Learning Disability,Living support grants
Milton Keynes Council,07-Oct-22,51500801166,"£3,782.24",Mrs Helen Hobbs T/A Wellies Day Nursery,Children's Services,High Needs Block,Professional Fees and Hired Services
Milton Keynes Council,07-Oct-22,51500800984,"£3,782.40",MK Gallery Enterprises Ltd,Chief Executive,Chief Executive,Professional Fees and Hired Services
Milton Keynes Council,07-Oct-22,51500801050,"£4,147.20",Stantec UK Limited,Planning and Placemaking,Planning,Consultancy
Milton Keynes Council,07-Oct-22,51500798006,"£4,392.37",Adam HTT Limited T/A Adam,Adult Services,Learning Disability,Domiciliary Care
Milton Keynes Council,07-Oct-22,51500801440,"£4,411.52",One Hermitage,Adult Services,Learning Disability,Living support grants
Milton Keynes Council,07-Oct-22,51500801501,"£4,651.76",One Hermitage,Adult Services,Learning Disability,Living support grants
Milton Keynes Council,07-Oct-22,51500801428,"£4,707.64",Conifers Residential Care Home,Adult Services,Learning Disability,Residential Care
Milton Keynes Council,07-Oct-22,51500801447,"£4,863.68",One Hermitage,Adult Services,Learning Disability,Living support grants
Milton Keynes Council,07-Oct-22,51500801493,"£4,875.92",One Hermitage,Adult Services,Learning Disability,Living support grants
Milton Keynes Council,07-Oct-22,51500789181,"£5,100.00",Church House Hotel Ltd,Adult Services,Homeless Prevention + Access,Rents and Leases
Milton Keynes Council,07-Oct-22,51500801497,"£5,339.00",One Hermitage,Adult Services,Learning Disability,Living support grants
Milton Keynes Council,07-Oct-22,51500801504,"£5,572.44",One Hermitage,Adult Services,Learning Disability,Living support grants
Milton Keynes Council,07-Oct-22,51500801169,"£5,833.00",Acorn Day Nursery @ YMCA,Children's Services,High Needs Block,Professional Fees and Hired Services
Milton Keynes Council,07-Oct-22,51500801444,"£6,036.84",One Hermitage,Adult Services,Learning Disability,Living support grants
Milton Keynes Council,07-Oct-22,51500801449,"£6,075.52",One Hermitage,Adult Services,Learning Disability,Living support grants
Milton Keynes Council,07-Oct-22,51500801445,"£6,121.76",One Hermitage,Adult Services,Learning Disability,Living support grants
Milton Keynes Council,07-Oct-22,51500801454,"£6,554.16",One Hermitage,Adult Services,Learning Disability,Living support grants
Milton Keynes Council,07-Oct-22,51500800982,"£6,600.00",Backlogs Limited,Customer and Community Services,Head of Service - Regulatory,Testing
Milton Keynes Council,07-Oct-22,51500798003,"£6,658.81",Adam HTT Limited T/A Adam,Adult Services,Mental Health,Domiciliary Care
Milton Keynes Council,07-Oct-22,51500798075,"£6,709.40",Adam HTT Limited T/A Adam,Children's Services,"Sufficiency, Access and Attendance",Home to School - Contract
Milton Keynes Council,07-Oct-22,51500801442,"£6,733.40",One Hermitage,Adult Services,Learning Disability,Living support grants
Milton Keynes Council,07-Oct-22,51500801464,"£7,200.64",One Hermitage,Adult Services,Learning Disability,Living support grants
Milton Keynes Council,07-Oct-22,51500801647,"£7,212.84",Stagecoach Services Ltd,Environment & Property,Director Environment and Property,Concessions - payments to transport operators
Milton Keynes Council,07-Oct-22,51500801427,"£7,230.60",Heathcotes M Ltd Re: Heathcotes Moulton,Adult Services,Learning Disability,Residential Care
Milton Keynes Council,07-Oct-22,51500801498,"£7,349.20",One Hermitage,Adult Services,Learning Disability,Living support grants
Milton Keynes Council,07-Oct-22,51500801455,"£7,352.44",One Hermitage,Adult Services,Learning Disability,Living support grants
Milton Keynes Council,07-Oct-22,51500798081,"£7,910.48",Adam HTT Limited T/A Adam,Adult Services,Physical Disability,Domiciliary Care
Milton Keynes Council,07-Oct-22,51500798735,"£8,035.50",Synergy Fostering Ltd,Children's Services,Corporate Parenting,Residential Care
Milton Keynes Council,07-Oct-22,51500789184,"£8,100.00",Link Treasury Services Limited,Finance & Resources - Services,Professional Finance,Consultancy
Milton Keynes Council,07-Oct-22,51500801528,"£8,122.80",One Hermitage,Adult Services,Learning Disability,Living support grants
Milton Keynes Council,07-Oct-22,51500801534,"£8,122.80",One Hermitage,Adult Services,Learning Disability,Living support grants
Milton Keynes Council,07-Oct-22,51500801532,"£8,122.80",One Hermitage,Adult Services,Learning Disability,Living support grants
Milton Keynes Council,07-Oct-22,51500801512,"£8,135.92",One Hermitage,Adult Services,Learning Disability,Living support grants
Milton Keynes Council,07-Oct-22,51500801040,"£8,302.12",Pell Frischmann Consultants Ltd,Planning and Placemaking,Planning,Consultancy
Milton Keynes Council,07-Oct-22,51500801476,"£8,439.44",One Hermitage,Adult Services,Learning Disability,Living support grants
Milton Keynes Council,07-Oct-22,51500801458,"£8,439.48",One Hermitage,Adult Services,Learning Disability,Living support grants
Milton Keynes Council,07-Oct-22,51500801189,"£9,000.00",Backlogs Limited,Customer and Community Services,Head of Service - Regulatory,Testing
Milton Keynes Council,07-Oct-22,51500801468,"£9,019.76",One Hermitage,Adult Services,Learning Disability,Living support grants
Milton Keynes Council,07-Oct-22,51500801469,"£9,636.92",One Hermitage,Adult Services,Learning Disability,Living support grants
Milton Keynes Council,07-Oct-22,51500788145,"£10,458.21",Redway (Special) School,Children's Services,"Sufficiency, Access and Attendance",Vehicle Running Costs
Milton Keynes Council,07-Oct-22,51500801510,"£10,660.24",One Hermitage,Adult Services,Learning Disability,Living support grants
Milton Keynes Council,07-Oct-22,51500801658,"£11,304.00",Lexicon Linguistics,Law & Governance,Legal,Testing
Milton Keynes Council,07-Oct-22,51500801452,"£11,796.52",One Hermitage,Adult Services,Learning Disability,Living support grants
Milton Keynes Council,07-Oct-22,51500801446,"£16,505.24",One Hermitage,Adult Services,Learning Disability,Living support grants
Milton Keynes Council,07-Oct-22,51500798778,"£17,050.00",Area Camden LTD,Children's Services,Corporate Parenting,Residential Care
Milton Keynes Council,07-Oct-22,51500801431,"£17,825.36",Bedfordshire Supported Housing Limited,Adult Services,Commissioning & Contracts,Residential Care
Milton Keynes Council,07-Oct-22,51500801640,"£18,688.50",Connections Support,Adult Services,Commissioning & Contracts,Other Service User Support
Milton Keynes Council,07-Oct-22,51500801624,"£18,688.50",Connections Support,Adult Services,Commissioning & Contracts,Other Service User Support
Milton Keynes Council,07-Oct-22,51500801642,"£18,688.50",Connections Support,Adult Services,Commissioning & Contracts,Other Service User Support
Milton Keynes Council,07-Oct-22,51500801648,"£18,688.50",Connections Support,Adult Services,Commissioning & Contracts,Other Service User Support
Milton Keynes Council,07-Oct-22,51500801653,"£18,688.50",Connections Support,Adult Services,Commissioning & Contracts,Other Service User Support
Milton Keynes Council,07-Oct-22,51500801152,"£19,120.38",Furlong & Higgs Limited,Children and Families,"Education, Effectiveness & Participation","New Construction, Conversion and Renovation"
Milton Keynes Council,07-Oct-22,51500798161,"£22,586.52",Central Bedfordshire Council,Public Health,Public Health Management & Admin,Staffing Recharges - External
Milton Keynes Council,07-Oct-22,51500798005,"£28,216.11",Adam HTT Limited T/A Adam,Adult Services,Physical Disability,Domiciliary Care
Milton Keynes Council,07-Oct-22,51500801082,"£30,553.42",The Cowper & Newton Museum,Chief Executive,Chief Executive,Grants
Milton Keynes Council,07-Oct-22,51500789176,"£30,900.00",Barnardos Services Ltd Re: Barnardo's South East and Anglia,Children's Services,Special Education Needs & Disabilities,Rehabilitation And Respite Care
Milton Keynes Council,07-Oct-22,51500798598,"£31,887.47",Ivory Cottage Ltd,Children's Services,Corporate Parenting,Residential Care
Milton Keynes Council,07-Oct-22,51500798010,"£36,885.75",Adam HTT Limited T/A Adam,Adult Services,"Assessment, Review and Hospital Discharge",Domiciliary Care
Milton Keynes Council,07-Oct-22,51500800432,"£37,133.68",Stanley J Murphy Glazing Solutions Ltd,Children and Families,"Education, Effectiveness & Participation",Buildings - Externals
Milton Keynes Council,07-Oct-22,51500800936,"£82,810.00",Devon County Council,Children's Services,Corporate Parenting,Residential Care
Milton Keynes Council,07-Oct-22,51500798077,"£115,944.81",Adam HTT Limited T/A Adam,Adult Services,"Assessment, Review and Hospital Discharge",Domiciliary Care
Milton Keynes Council,07-Oct-22,51500798575,"£116,299.70",Gray & Sons Builders Ltd,Environment & Property,Property,"New Construction, Conversion and Renovation"
Milton Keynes Council,07-Oct-22,51500792836,"£127,542.96",Excelcare Holdings PLC Re: The Willows Care Centre,Adult Services,Commissioning & Contracts,Rehabilitation And Respite Care
Milton Keynes Council,07-Oct-22,51500789538,"£128,762.47",AmeyCespa MK (SPV) Ltd,Environment & Property,Head of Service - Env and Waste,Cleaning and Domestic Supplies
Milton Keynes Council,07-Oct-22,51500798218,"£141,284.43",Adam HTT Limited T/A Adam,Children's Services,"Sufficiency, Access and Attendance",Home to School - Contract
Milton Keynes Council,07-Oct-22,51500789575,"£220,442.11",Russell Trew Ltd,Children and Families,"Education, Effectiveness & Participation",Buildings - Roof
Milton Keynes Council,10-Oct-22,51500798382,"-£10,197.75",Home Group Ltd,Adult Services,Commissioning & Contracts,Joint Authorities Payments
Milton Keynes Council,10-Oct-22,65500005620,"-£4,200.00",New Bradwell School,Children's Services,High Needs Block,Use of School Facilities
Milton Keynes Council,10-Oct-22,51500796740,£531.36,Bryan Lecoche Ltd,Adult Services,Homeless Prevention + Access,Professional Fees and Hired Services
Milton Keynes Council,10-Oct-22,51500796793,£531.36,Bryan Lecoche Ltd,Adult Services,Homeless Prevention + Access,Professional Fees and Hired Services
Milton Keynes Council,10-Oct-22,51500792844,£533.48,Tunstall Healthcare (UK) Ltd,Adult Services,Community Alarm & Sheltered Housing,Equipment and Tools
Milton Keynes Council,10-Oct-22,51500796744,£534.24,Bryan Lecoche Ltd,Adult Services,Homeless Prevention + Access,Professional Fees and Hired Services
Milton Keynes Council,10-Oct-22,51500792822,£546.34,JCW Energy Services Ltd,Environment & Property,Property,Building Repair and Maintenance
Milton Keynes Council,10-Oct-22,51500792898,£550.80,Zaynah Carpets & Furniture Limited,Finance & Resources - Services,Revenue & Benefits,Furniture
Milton Keynes Council,10-Oct-22,51500797252,£552.00,The Yaboo Company Limited T/a Wesley Music,Customer and Community Services,Head of Service - Regulatory,Building Repair and Maintenance
Milton Keynes Council,10-Oct-22,51500792927,£568.80,John Gillman & Sons (Electrical) Ltd t/a D.A.D.,Finance & Resources - Services,Revenue & Benefits,Furniture
Milton Keynes Council,10-Oct-22,51500796792,£575.00,Redacted Personal Data,Finance & Resources - Services,HR,Staff Training & Development
Milton Keynes Council,10-Oct-22,51500792902,£586.80,Zaynah Carpets & Furniture Limited,Children's Services,Children's Social Work,"Fixtures, Fittings and Furnishings"
Milton Keynes Council,10-Oct-22,51500796395,£597.96,Print For Business Ltd,Law & Governance,Democratic Services,Printing
Milton Keynes Council,10-Oct-22,51500792809,£601.44,Apollo Home Healthcare Limited,Children's Services,Special Education Needs & Disabilities,Day Care
Milton Keynes Council,10-Oct-22,51500798100,£650.00,Redacted Personal Data,Finance & Resources - Services,HR,Staff Training & Development
Milton Keynes Council,10-Oct-22,51500801823,£660.00,Redacted Personal Data,Law & Governance,Legal,External Legal Fees
Milton Keynes Council,10-Oct-22,51500801010,£674.40,Anthony Collins Solicitors LLP,Children's Services,Group Head – Children and Families,External Legal Fees
Milton Keynes Council,10-Oct-22,51500796995,£734.40,Fingerprint Digital Limited,Finance & Resources - Services,ICT,Printing
Milton Keynes Council,10-Oct-22,51500801675,£750.00,Passco CIC,Environment & Property,Director Environment and Property,Transport Contract Payments
Milton Keynes Council,10-Oct-22,51500789777,£750.00,Intensive Interaction Institute CIC,Children's Services,Special Education Needs & Disabilities,Professional Fees and Hired Services
Milton Keynes Council,10-Oct-22,51500798245,£750.00,Kind Minds,Finance & Resources - Services,HR,Staff Training & Development
Milton Keynes Council,10-Oct-22,51500789543,£770.00,Redacted Personal Data,Law & Governance,Democratic Services,Equipment and Tools - Hire
Milton Keynes Council,10-Oct-22,51500790582,£786.99,Amegreen Complex Homecare Ltd,Children's Services,Special Education Needs & Disabilities,Rehabilitation And Respite Care
Milton Keynes Council,10-Oct-22,51500792618,£792.00,Carrington West Ltd,Environment & Property,Head of Service - Highways,Professional Fees and Hired Services
Milton Keynes Council,10-Oct-22,51500792900,£792.00,Zaynah Carpets & Furniture Limited,Finance & Resources - Services,Revenue & Benefits,Furniture
Milton Keynes Council,10-Oct-22,51500798107,£801.36,"G2 Recruitment Solutions, a division of G2v Recruitment Group",Adult Services,Homeless Prevention + Access,Agency Staff
Milton Keynes Council,10-Oct-22,51500789826,£812.52,The Oyster Partnership Ltd,Adult Services (HRA),Housing Operations (HRA),Agency Staff
Milton Keynes Council,10-Oct-22,51500789881,£827.87,Morgan Law,Finance & Resources - Services,Professional Finance,Agency Staff
Milton Keynes Council,10-Oct-22,51500792625,£834.00,First Response Training and Consultancy Sevices Ltd,Finance & Resources - Services,HR,Staff Training & Development
Milton Keynes Council,10-Oct-22,51500796663,£900.00,C S Cleaning (Milton Keynes) Ltd,Environment & Property,Property,Building Cleaning
Milton Keynes Council,10-Oct-22,51500798746,£960.00,Tri Capital Housing Ltd,Adult Services,Rough Sleeper,Rents and Leases
Milton Keynes Council,10-Oct-22,51500801821,£960.00,Reeds Solicitors Ltd,Law & Governance,Legal,Testing
Milton Keynes Council,10-Oct-22,51500798689,£994.44,Skyline Taxi & Private Hire,Children's Services,"Sufficiency, Access and Attendance",Social Care Transport
Milton Keynes Council,10-Oct-22,51500789644,"£1,008.00",Clearwater People Ltd,Environment & Property,Property,Professional Fees and Hired Services
Milton Keynes Council,10-Oct-22,51500789732,"£1,016.53",Tower Leasing Limited,Customer and Community Services,Head of Service - Regulatory,Specialist Supplies and Materials
Milton Keynes Council,10-Oct-22,51500792850,"£1,111.88",Apetito Ltd,Adult Services,Commissioning & Contracts,Catering Contract
Milton Keynes Council,10-Oct-22,51500792903,"£1,112.40",Zaynah Carpets & Furniture Limited,Finance & Resources - Services,Revenue & Benefits,Furniture
Milton Keynes Council,10-Oct-22,51500801844,"£1,192.28",Redacted Personal Data,Adult Services,Homeless Prevention + Access,Grants
Milton Keynes Council,10-Oct-22,51500792961,"£1,235.19",Apetito Ltd,Adult Services,Commissioning & Contracts,Catering Contract
Milton Keynes Council,10-Oct-22,51500792993,"£1,236.71",National World Publishing Limited,Planning and Placemaking,Planning,Advertising / Publicity (non Recruitment)
Milton Keynes Council,10-Oct-22,51500792962,"£1,254.00",Apetito Ltd,Adult Services,Commissioning & Contracts,Catering Contract
Milton Keynes Council,10-Oct-22,51500796990,"£1,287.24",Chiltern Invadex (UK) Limited,Children's Services,Corporate Parenting,Specialist Servicing and Maintenance
Milton Keynes Council,10-Oct-22,51500801662,"£1,320.00",Redacted Personal Data,Law & Governance,Legal,External Legal Fees
Milton Keynes Council,10-Oct-22,51500789855,"£1,381.80",Matchtech,Environment & Property,Head of Service - Highways,Professional Fees and Hired Services
Milton Keynes Council,10-Oct-22,51500789824,"£1,406.88",The Oyster Partnership Ltd,Customer and Community Services,Community Safety,Recruitment Costs
Milton Keynes Council,10-Oct-22,51500789856,"£1,596.00",Matchtech,Environment & Property,Head of Service - Highways,Professional Fees and Hired Services
Milton Keynes Council,10-Oct-22,51500789823,"£1,601.29",The Oyster Partnership Ltd,Adult Services,Homeless Prevention + Access,Agency Staff
Milton Keynes Council,10-Oct-22,51500796715,"£1,620.00",Build Recruitment,Env & Prop (HRA),HRA Asset Management and Investment,Agency Staff
Milton Keynes Council,10-Oct-22,51500796713,"£1,698.00",Build Recruitment,Env & Prop (HRA),HRA Asset Management and Investment,Agency Staff
Milton Keynes Council,10-Oct-22,51500800776,"£1,721.50",EVASSA Ltd,Children's Services,Education Improvement and Effectiveness Service,Consultancy
Milton Keynes Council,10-Oct-22,51500796778,"£1,779.62",Deekay Technical Recruitment Ltd,Environment & Property,Head of Service - Highways,Agency Staff
Milton Keynes Council,10-Oct-22,51500792992,"£1,811.34",National World Publishing Limited,Environment & Property,Head of Service - Highways,Advertising / Publicity (non Recruitment)
Milton Keynes Council,10-Oct-22,51500789825,"£1,909.20",The Oyster Partnership Ltd,Adult Services (HRA),Housing Operations (HRA),Recruitment Costs
Milton Keynes Council,10-Oct-22,51500792619,"£1,987.68",Carrington West Ltd,Environment & Property,Head of Service - Highways,Agency Staff
Milton Keynes Council,10-Oct-22,51500801074,"£2,026.18",Compass Minerals UK Ltd,Environment & Property,Head of Service - Highways,Winter Maintenance
Milton Keynes Council,10-Oct-22,51500796965,"£2,049.40",Build Recruitment,Env & Prop (HRA),HRA Asset Management and Investment,Agency Staff
Milton Keynes Council,10-Oct-22,51500789801,"£2,224.80",Premier Paper Group Ltd T/a Premier Beswick Northampton,Finance & Resources - Services,ICT,Printing
Milton Keynes Council,10-Oct-22,51500792945,"£2,332.15",Konica Minolta Business Solutions (UK) Ltd,Children's Services,"Sufficiency, Access and Attendance",Photocopier
Milton Keynes Council,10-Oct-22,51500796963,"£2,340.00",Build Recruitment,Env & Prop (HRA),HRA Asset Management and Investment,Agency Staff
Milton Keynes Council,10-Oct-22,51500801835,"£2,381.40",Apetito Ltd,Adult Services,Commissioning & Contracts,Catering Contract
Milton Keynes Council,10-Oct-22,51500801834,"£2,464.56",Apetito Ltd,Adult Services,Commissioning & Contracts,Catering Contract
Milton Keynes Council,10-Oct-22,51500800782,"£2,506.28",Allpay Ltd,Finance & Resources - Services,Revenues and Benefits Service,Bank Charges
Milton Keynes Council,10-Oct-22,51500789739,"£2,520.00","Vivid Resourcing, a division of G2V Recruitment Group Limited",Planning and Placemaking,Planning,Agency Staff
Milton Keynes Council,10-Oct-22,51500792817,"£2,532.60",Apetito Ltd,Adult Services,Commissioning & Contracts,Catering Contract
Milton Keynes Council,10-Oct-22,51500790577,"£2,580.00",PMG Landscapes,Environment & Property,Property,Building Repair and Maintenance
Milton Keynes Council,10-Oct-22,51500792801,"£2,601.00",Barnardo's,Children's Services,Special Education Needs & Disabilities,Rehabilitation And Respite Care
Milton Keynes Council,10-Oct-22,51500801697,"£2,665.41",Redacted Personal Data,Adult Services,Homeless Prevention + Access,Grants
Milton Keynes Council,10-Oct-22,51500789590,"£2,700.00",Number 10 Interim Ltd,Adult Services,Commissioning & Contracts,Agency Staff
Milton Keynes Council,10-Oct-22,51500801374,"£2,800.00",AJH Business Solutions Limited,Finance & Resources (HRA),Finance - Housing (HRA),Consultancy
Milton Keynes Council,10-Oct-22,51500796408,"£2,995.68",Signway Supplies Ltd,Environment & Property,Head of Service - Highways,Right of Ways Maintenance
Milton Keynes Council,10-Oct-22,51500801688,"£3,000.00",Millstream Estate Services Ltd,Environment & Property,Property,"New Construction, Conversion and Renovation"
Milton Keynes Council,10-Oct-22,51500794751,"£3,240.00",Build Recruitment,Env & Prop (HRA),Development and Regeneration,Agency Staff
Milton Keynes Council,10-Oct-22,51500792952,"£3,257.10",Orange Grove Fostercare Limited,Children's Services,Corporate Parenting,Residential Care
Milton Keynes Council,10-Oct-22,51500789738,"£3,316.50","Vivid Resourcing, a division of G2V Recruitment Group Limited",Planning and Placemaking,Planning,Agency Staff
Milton Keynes Council,10-Oct-22,51500792953,"£3,449.07",Orange Grove Fostercare Limited,Children's Services,Corporate Parenting,Residential Care
Milton Keynes Council,10-Oct-22,51500801545,"£3,468.75",Ticehurst Hospital School - Priory Group,Children's Services,High Needs Block,Professional Fees and Hired Services
Milton Keynes Council,10-Oct-22,51500796708,"£3,498.00",Build Recruitment,Env & Prop (HRA),HRA Asset Management and Investment,Agency Staff
Milton Keynes Council,10-Oct-22,51500792847,"£3,535.80",Children First Fostering Agency Ltd,Children's Services,Corporate Parenting,Residential Care
Milton Keynes Council,10-Oct-22,51500792846,"£3,535.80",Children First Fostering Agency Ltd,Children's Services,Corporate Parenting,Residential Care
Milton Keynes Council,10-Oct-22,51500792845,"£3,535.80",Children First Fostering Agency Ltd,Children's Services,Corporate Parenting,Residential Care
Milton Keynes Council,10-Oct-22,51500800761,"£3,616.20",Foster Care Associates Limited,Children's Services,Corporate Parenting,Residential Care
Milton Keynes Council,10-Oct-22,51500800440,"£3,632.40",Foster Care Associates Limited,Children's Services,Corporate Parenting,Residential Care
Milton Keynes Council,10-Oct-22,51500800746,"£3,653.10",Foster Care Associates Limited,Children's Services,Corporate Parenting,Residential Care
Milton Keynes Council,10-Oct-22,51500792852,"£3,663.00",Orange Grove Fostercare Limited,Children's Services,Corporate Parenting,Residential Care
Milton Keynes Council,10-Oct-22,51500800743,"£3,690.00",Foster Care Associates Limited,Children's Services,Corporate Parenting,Residential Care
Milton Keynes Council,10-Oct-22,51500798383,"£3,696.94",Bedford Borough Council,Public Health,Sexual Health,Professional Fees and Hired Services
Milton Keynes Council,10-Oct-22,51500800737,"£3,733.50",Foster Care Associates Limited,Children's Services,Corporate Parenting,Residential Care
Milton Keynes Council,10-Oct-22,51500800758,"£3,733.50",Foster Care Associates Limited,Children's Services,Corporate Parenting,Residential Care
Milton Keynes Council,10-Oct-22,51500800756,"£3,733.50",Foster Care Associates Limited,Children's Services,Corporate Parenting,Residential Care
Milton Keynes Council,10-Oct-22,51500792853,"£3,738.00",Orange Grove Fostercare Limited,Children's Services,Corporate Parenting,Residential Care
Milton Keynes Council,10-Oct-22,51500792851,"£3,738.00",Orange Grove Fostercare Limited,Children's Services,Corporate Parenting,Residential Care
Milton Keynes Council,10-Oct-22,51500792991,"£3,822.55",National World Publishing Limited,Environment & Property,Head of Service - Highways,Advertising / Publicity (non Recruitment)
Milton Keynes Council,10-Oct-22,51500800740,"£4,026.90",Foster Care Associates Limited,Children's Services,Corporate Parenting,Residential Care
Milton Keynes Council,10-Oct-22,51500792951,"£4,089.46",Orange Grove Fostercare Limited,Children's Services,Corporate Parenting,Residential Care
Milton Keynes Council,10-Oct-22,51500792854,"£4,098.00",Orange Grove Fostercare Limited,Children's Services,Corporate Parenting,Residential Care
Milton Keynes Council,10-Oct-22,51500796937,"£4,183.27",Fostering Connections Ltd,Children's Services,Corporate Parenting,Residential Care
Milton Keynes Council,10-Oct-22,51500796939,"£4,183.27",Fostering Connections Ltd,Children's Services,Corporate Parenting,Residential Care
Milton Keynes Council,10-Oct-22,51500796936,"£4,183.27",Fostering Connections Ltd,Children's Services,Corporate Parenting,Residential Care
Milton Keynes Council,10-Oct-22,51500796933,"£4,200.00",Edge Training & Consultancy Ltd,Finance & Resources - Services,HR,Staff Training & Development
Milton Keynes Council,10-Oct-22,51500789844,"£4,200.00",New Bradwell School,Children's Services,High Needs Block,Use of School Facilities
Milton Keynes Council,10-Oct-22,65500005610,"£4,200.00",New Bradwell School,Finance & Resources - Corporate Codes,Corporate Codes,Bank Account - Payables
Milton Keynes Council,10-Oct-22,51500800751,"£4,239.00",Foster Care Associates Limited,Children's Services,Corporate Parenting,Residential Care
Milton Keynes Council,10-Oct-22,51500792855,"£4,249.20",Orange Grove Fostercare Limited,Children's Services,Corporate Parenting,Residential Care
Milton Keynes Council,10-Oct-22,51500792835,"£4,260.00",People Who Foster Ltd,Children's Services,Corporate Parenting,Residential Care
Milton Keynes Council,10-Oct-22,51500801178,"£4,277.70",Arnfield Care Ltd,Children's Services,Corporate Parenting,Residential Care
Milton Keynes Council,10-Oct-22,51500794702,"£4,320.00",Macdonald & Company Freelance Ltd,Environment & Property,Property,Agency Staff
Milton Keynes Council,10-Oct-22,51500789572,"£4,373.91",Grand Union Housing Group,Adult Services,Commissioning & Contracts,Suppported Living
Milton Keynes Council,10-Oct-22,51500789743,"£4,771.20",Clearwater People Ltd,Environment & Property,Property,Professional Fees and Hired Services
Milton Keynes Council,10-Oct-22,51500796392,"£4,785.48",Apetito Ltd,Adult Services,Sheltered Housing and Care and Response,Catering Contract
Milton Keynes Council,10-Oct-22,51500798129,"£5,479.16",Supply Teaching Limited,Children's Services,High Needs Block,Professional Fees and Hired Services
Milton Keynes Council,10-Oct-22,51500801864,"£6,438.23",Royal Mail Group Limited t/a Royal Mail,Environment & Property,Property,Postage & Carriage
Milton Keynes Council,10-Oct-22,51500801716,"£6,892.00",Overdrive Global Limited,Children's Services,"Sufficiency, Access and Attendance",Books and Multimedia Supplies
Milton Keynes Council,10-Oct-22,51500797214,"£7,500.00",Parent and Child Fostering Service Ltd,Children's Services,Corporate Parenting,Residential Care
Milton Keynes Council,10-Oct-22,51500796582,"£8,820.00",GHB Hire Ltd,Customer and Community Services,Leisure & Community,Professional Fees and Hired Services
Milton Keynes Council,10-Oct-22,51500798387,"£10,197.75",Home Group Ltd,Adult Services,Commissioning & Contracts,Joint Authorities Payments
Milton Keynes Council,10-Oct-22,51500798407,"£10,601.89",Perfect Circle JV Limited,Housing & Regeneration - HRA,Regeneration HRA,Construction - External Professional Fees
Milton Keynes Council,10-Oct-22,51500789647,"£12,375.00",Talkback UK Ltd,Adult Services,Commissioning & Contracts,Grants to Voluntary Bodies
Milton Keynes Council,10-Oct-22,51500789795,"£12,934.80",Faithful + Gould Limited,Environment & Property,Waste,Buildings - Structure
Milton Keynes Council,10-Oct-22,51500792947,"£13,105.43",London Borough of Brent,Finance & Resources - Holding Accounts,Holding Accounts,Rents and Leases
Milton Keynes Council,10-Oct-22,51500788136,"£16,500.00",Area Camden LTD,Children's Services,Corporate Parenting,Residential Care
Milton Keynes Council,10-Oct-22,51500801862,"£17,040.00",Link Treasury Services Limited,Finance & Resources - Debt Financing,Net Debt management costs to summary,Professional Fees and Hired Services
Milton Keynes Council,10-Oct-22,51500785421,"£18,214.29",Esland South Ltd,Children's Services,Corporate Parenting,Residential Care
Milton Keynes Council,10-Oct-22,51500796666,"£20,391.50",Home Group Ltd,Adult Services,Commissioning & Contracts,Joint Authorities Payments
Milton Keynes Council,10-Oct-22,51500801732,"£43,787.87",KBZ 2 Ltd,Adult Services,Homeless Prevention + Access,Rents and Leases
Milton Keynes Council,10-Oct-22,51500789798,"£61,650.00",Milton Keynes Development Partnership,Environment & Property,Head of Service - Highways,Rents and Leases
Milton Keynes Council,10-Oct-22,51500801154,"£70,724.49",Furlong & Higgs Limited,Children and Families,"Education, Effectiveness & Participation","New Construction, Conversion and Renovation"
Milton Keynes Council,10-Oct-22,51500794737,"£101,000.00",Volunteering Matters,Adult Services,Commissioning & Contracts,Professional Fees and Hired Services
Milton Keynes Council,10-Oct-22,51500792893,"£109,157.94",Central & North West London NHS Foundation Trust,Public Health,Substance Misuse,Professional Fees and Hired Services
Milton Keynes Council,10-Oct-22,51500801406,"£155,048.30",Opus LGSS People Solutions Ltd,Finance & Resources - Services,Lead Authority Shared Services,Miscellaneous Control Accounts
Milton Keynes Council,10-Oct-22,51500798686,"£209,691.68",Bedford Borough Council,Public Health,Sexual Health,Professional Fees and Hired Services
Milton Keynes Council,10-Oct-22,51500710549,"£636,887.17",Buckinghamshire & Milton Keynes Fire Authority (BMKFA),Finance & Resources - Holding Accounts,Holding Accounts,Precepts - Fire
Milton Keynes Council,10-Oct-22,51500743604,"£1,900,262.41",Thames Valley Police,Finance & Resources - Holding Accounts,Holding Accounts,Precepts - Police
Milton Keynes Council,12-Oct-22,51500802349,"-£3,985.98",St Christopher Homes Ltd,Children's Services,Corporate Parenting,Residential Care
Milton Keynes Council,12-Oct-22,51500796485,"-£1,533.36",Banner Business Services Ltd,Children's Services,Children's Centres Services,Educational Materials
Milton Keynes Council,12-Oct-22,51500792966,£500.54,Operose Health Corporate Management,Public Health,NHS Health Check Programme,Professional Fees and Hired Services
Milton Keynes Council,12-Oct-22,51500801932,£515.02,Brakes Catering Equipment,Adult Services,"Day Services, Short Breaks and Shared Lives",Catering Provisions
Milton Keynes Council,12-Oct-22,51500801063,£553.77,Apollo Home Healthcare Limited,Children's Services,Special Education Needs & Disabilities,Day Care
Milton Keynes Council,12-Oct-22,51500795167,£568.80,John Gillman & Sons (Electrical) Ltd t/a D.A.D.,Finance & Resources - Services,Revenue & Benefits,Furniture
Milton Keynes Council,12-Oct-22,51500795163,£568.80,John Gillman & Sons (Electrical) Ltd t/a D.A.D.,Finance & Resources - Services,Revenue & Benefits,Furniture
Milton Keynes Council,12-Oct-22,51500801943,£627.06,Brakes Catering Equipment,Adult Services,"Day Services, Short Breaks and Shared Lives",Catering Provisions
Milton Keynes Council,12-Oct-22,51500796921,£636.00,Zaynah Carpets & Furniture Limited,Finance & Resources - Services,Revenue & Benefits,Furniture
Milton Keynes Council,12-Oct-22,51500801984,£650.00,Northampton Saints Foundation,Children's Services,High Needs Block,Adoption Agency
Milton Keynes Council,12-Oct-22,51500802142,£665.04,Paradigm Homes Charitable Housing Association,Adult Services,Homeless Prevention + Access,Grants
Milton Keynes Council,12-Oct-22,51500801947,£689.10,Redacted Personal Data,Children's Services,"Sufficiency, Access and Attendance",Car mileage and allowances - other
Milton Keynes Council,12-Oct-22,51500797890,£690.00,BDP Social Care Ltd,Children's Services,Children's Social Work,Grants and Support for other Service Users
Milton Keynes Council,12-Oct-22,51500801822,£780.00,Redacted Personal Data,Law & Governance,Legal,External Legal Fees
Milton Keynes Council,12-Oct-22,51500802113,£800.00,Lakes Estate Residents Association,Adult Services (HRA),Housing Operations (HRA),Grants
Milton Keynes Council,12-Oct-22,51500801930,£827.60,Brakes Catering Equipment,Adult Services,"Day Services, Short Breaks and Shared Lives",Catering Provisions
Milton Keynes Council,12-Oct-22,51500792867,£838.80,South East Employers,Finance & Resources - Services,HR,Staff Training & Development
Milton Keynes Council,12-Oct-22,51500801840,£860.00,Cornerstone (North East) Adoptuion and Fostering Service,Children's Services,Corporate Parenting,Professional Fees and Hired Services
Milton Keynes Council,12-Oct-22,51500801985,£910.00,Northampton Saints Foundation,Children's Services,High Needs Block,Independent School Placements
Milton Keynes Council,12-Oct-22,51500801032,£924.00,The Contact Hub Ltd,Children's Services,Children's Social Work,Grants and Support for other Service Users
Milton Keynes Council,12-Oct-22,51500797211,£927.43,Richard Buckley t/a R & K Panelcraft,Environment & Property,Head of Service - Env and Waste,Vehicle Repairs and maintenance
Milton Keynes Council,12-Oct-22,51500801981,£938.40,University Hospitals of Leicester NHS Trust,Customer and Community Services,Head of Service - Regulatory,Testing
Milton Keynes Council,12-Oct-22,51500801917,£969.68,Brakes Catering Equipment,Adult Services,"Day Services, Short Breaks and Shared Lives",Catering Provisions
Milton Keynes Council,12-Oct-22,51500801918,£981.26,Brakes Catering Equipment,Adult Services,"Day Services, Short Breaks and Shared Lives",Catering Provisions
Milton Keynes Council,12-Oct-22,51500686573,"£1,020.00",Risual Limited,Finance & Resources - Services,ICT,Staff Training & Development
Milton Keynes Council,12-Oct-22,51500801664,"£1,020.00",Redacted Personal Data,Law & Governance,Legal,External Legal Fees
Milton Keynes Council,12-Oct-22,51500802080,"£1,056.44",Acorn Day Nursery @ YMCA,Children's Services,Children's Centres Services,Childcare Costs
Milton Keynes Council,12-Oct-22,51500801401,"£1,063.92",Golden Living Property Consultants Ltd,Adult Services,Physical Disability,Rents and Leases
Milton Keynes Council,12-Oct-22,51500800929,"£1,150.00",Redacted Personal Data,Customer and Community Services,Policy & Performance,Rents and Leases
Milton Keynes Council,12-Oct-22,51500796178,"£1,220.58",Tunstall Healthcare (UK) Ltd,Adult Services (HRA),HRA Sheltered Housing,Specialist Equipment For Service Delivery
Milton Keynes Council,12-Oct-22,51500800934,"£1,250.00",Land Investment Property Services Limited,Customer and Community Services,Policy & Performance,Rents and Leases
Milton Keynes Council,12-Oct-22,51500796390,"£1,329.66",Laundry 365 Limited,Adult Services,Sheltered Housing and Care and Response,Laundry & Clothing Repair
Milton Keynes Council,12-Oct-22,51500802143,"£1,350.00",Redacted Personal Data,Adult Services,Homeless Prevention + Access,Grants
Milton Keynes Council,12-Oct-22,51500802057,"£1,400.00",Redacted Personal Data,Finance & Resources - Services,Insurance,Insurance Claims Paid
Milton Keynes Council,12-Oct-22,51500801973,"£1,444.38",Liquid Recruitment Solutions Limited,Env & Prop (HRA),Property & Facilities (HRA),Agency Staff
Milton Keynes Council,12-Oct-22,51500801331,"£1,533.36",Banner Business Services Ltd,Children's Services,Children's Centres Services,Educational Materials
Milton Keynes Council,12-Oct-22,51500800928,"£1,590.00",Redacted Personal Data,Customer and Community Services,Policy & Performance,Rents and Leases
Milton Keynes Council,12-Oct-22,51500796583,"£1,595.46",GHB Hire Ltd,Customer and Community Services,Leisure & Community,Professional Fees and Hired Services
Milton Keynes Council,12-Oct-22,51500801972,"£1,650.72",Liquid Recruitment Solutions Limited,Env & Prop (HRA),Property & Facilities (HRA),Agency Staff
Milton Keynes Council,12-Oct-22,51500794710,"£1,674.00",The Yaboo Company Limited T/a Wesley Music,Customer and Community Services,Head of Service - Regulatory,Specialist Supplies and Materials
Milton Keynes Council,12-Oct-22,51500796258,"£1,783.44",Dr Khalid and Partners,Public Health,NHS Health Check Programme,Professional Fees and Hired Services
Milton Keynes Council,12-Oct-22,51500802319,"£2,034.47",Allpay Ltd,Finance & Resources (HRA),Revenues & Benefits (HRA),Rents and Leases
Milton Keynes Council,12-Oct-22,51500780984,"£2,040.00",Risual Limited,Finance & Resources - Services,ICT,Staff Training & Development
Milton Keynes Council,12-Oct-22,51500800810,"£2,135.98",Healthy Buildings (IRI) Ltd T/A HBE,Environment & Property,Property,Building Repair and Maintenance
Milton Keynes Council,12-Oct-22,51500802124,"£2,145.60",Sharpe Pritchard LLP,Environment & Property,Land Development,Acquistions - External Professional Fees
Milton Keynes Council,12-Oct-22,51500801398,"£2,208.00",Millstream Estate Services Ltd,Environment & Property,Head of Service - Env and Waste,Landscaping
Milton Keynes Council,12-Oct-22,51500792915,"£2,313.00",Hound Envelopes Ltd,Finance & Resources - Services,Revenues and Benefits Service,Postage & Carriage
Milton Keynes Council,12-Oct-22,51500796250,"£2,400.00",AECOM Infrastructure & Environment UK Limited,Planning and Placemaking,Transport Projects,Consultancy
Milton Keynes Council,12-Oct-22,51500801375,"£3,324.10",AJH Business Solutions Limited,Finance & Resources (HRA),Finance - Housing (HRA),Consultancy
Milton Keynes Council,12-Oct-22,51500801542,"£3,540.00",Moon and Back Foster Care Ltd,Children's Services,Corporate Parenting,Residential Care
Milton Keynes Council,12-Oct-22,51500802357,"£3,545.90",Via Transportation UK Ltd,Environment & Property,Director Environment and Property,Concessions - payments to transport operators
Milton Keynes Council,12-Oct-22,51500801743,"£3,584.22",Fostering Solutions Ltd,Children's Services,Corporate Parenting,Residential Care
Milton Keynes Council,12-Oct-22,51500801745,"£3,653.66",Fostering Solutions Ltd,Children's Services,Corporate Parenting,Residential Care
Milton Keynes Council,12-Oct-22,51500801059,"£3,985.98",St Christopher Homes Ltd,Children's Services,Corporate Parenting,Residential Care
Milton Keynes Council,12-Oct-22,51500802351,"£3,985.98",St Christopher Homes Ltd,Children's Services,Corporate Parenting,Residential Care
Milton Keynes Council,12-Oct-22,51500796251,"£4,063.30",AECOM Infrastructure & Environment UK Limited,Environment & Property,Head of Service - Env and Waste,Consultancy
Milton Keynes Council,12-Oct-22,51500801181,"£4,445.00",Sara Spade Music,Children's Services,High Needs Block,Independent School Placements
Milton Keynes Council,12-Oct-22,51500796721,"£4,992.60",Supply Teaching Limited,Children's Services,High Needs Block,Professional Fees and Hired Services
Milton Keynes Council,12-Oct-22,51500801744,"£5,212.34",Fostering Solutions Ltd,Children's Services,Corporate Parenting,Residential Care
Milton Keynes Council,12-Oct-22,51500801085,"£5,400.00",Richesther Semi Independent Living,Children's Services,Corporate Parenting,Residential Care
Milton Keynes Council,12-Oct-22,51500801541,"£5,550.00",Moon and Back Foster Care Ltd,Children's Services,Corporate Parenting,Residential Care
Milton Keynes Council,12-Oct-22,51500801742,"£5,709.18",Fostering Solutions Ltd,Children's Services,Corporate Parenting,Residential Care
Milton Keynes Council,12-Oct-22,51500796442,"£9,402.20",Blossom Childrens Occupational Therapy,Children's Services,High Needs Block,Professional Fees and Hired Services
Milton Keynes Council,12-Oct-22,51500802189,"£9,474.84",BRG Interim Solutions Ltd,Customer and Community Services,Head of Service - Regulatory,Agency Staff
Milton Keynes Council,12-Oct-22,51500800791,"£9,900.00",Bloom Procurement Services Limited,Housing & Regeneration - HRA,Regeneration HRA,"New Construction, Conversion and Renovation"
Milton Keynes Council,12-Oct-22,51500800770,"£13,988.99",Shell UK Limited,Environment & Property,Head of Service - Env and Waste,Vehicle Fuel
Milton Keynes Council,12-Oct-22,51500801187,"£26,521.74",Arnfield Care Ltd,Children's Services,Corporate Parenting,Residential Care
Milton Keynes Council,12-Oct-22,51500798151,"£29,500.00",Milton Keynes Citizens Advice Bureau,Adult Services,Rough Sleeper,Professional Fees and Hired Services
Milton Keynes Council,12-Oct-22,51500796481,"£41,383.59",Via Transportation UK Ltd,Environment & Property,Director Environment and Property,Public Transport Fares
Milton Keynes Council,14-Oct-22,51500803525,"-£15,023.28",Precious Homes Support Limited,Adult Services,Learning Disability,Living support grants
Milton Keynes Council,14-Oct-22,51500803527,"-£15,023.28",Precious Homes Support Limited,Adult Services,Learning Disability,Living support grants
Milton Keynes Council,14-Oct-22,51500803529,"-£15,023.28",Precious Homes Support Limited,Adult Services,Learning Disability,Living support grants
Milton Keynes Council,14-Oct-22,51500803523,"-£15,023.28",Precious Homes Support Limited,Adult Services,Learning Disability,Living support grants
Milton Keynes Council,14-Oct-22,51500803800,"-£4,000.00",Burlington Care Homes Ltd Re: Burlington Hall Care Home,Adult Services,Commissioning & Contracts,Client Care Contributions
Milton Keynes Council,14-Oct-22,51500803550,"-£3,639.36",Barchester Healthcare Homes Ltd Re: Ashby House Care Home,Adult Services,Commissioning & Contracts,Nursing Care
Milton Keynes Council,14-Oct-22,51500803811,"-£3,249.60",Acer Healthcare Operations Limited,Adult Services,Commissioning & Contracts,Client Care Contributions
Milton Keynes Council,14-Oct-22,51500803888,"-£2,912.60",Acer Healthcare Operations Limited,Adult Services,Commissioning & Contracts,Nursing Care
Milton Keynes Council,14-Oct-22,51500803897,"-£2,900.00",Avery Homes (Nelson) Limited re Milton Court Care Home,Adult Services,Commissioning & Contracts,Client Care Contributions
Milton Keynes Council,14-Oct-22,51500803898,"-£2,900.00",Avery Homes (Nelson) Limited re Milton Court Care Home,Adult Services,Commissioning & Contracts,Client Care Contributions
Milton Keynes Council,14-Oct-22,51500803899,"-£2,900.00",Avery Homes (Nelson) Limited re Milton Court Care Home,Adult Services,Commissioning & Contracts,Client Care Contributions
Milton Keynes Council,14-Oct-22,51500803547,"-£2,735.01",Barchester Healthcare Homes Ltd Re: Ashby House Care Home,Adult Services,Commissioning & Contracts,Client Care Contributions
Milton Keynes Council,14-Oct-22,51500804024,"-£2,680.00",Methodist Homes,Adult Services,Commissioning & Contracts,Client Care Contributions
Milton Keynes Council,14-Oct-22,51500804066,"-£2,680.00",Olney Care Homes Limited T/a Bay House Residential Care Home,Adult Services,Commissioning & Contracts,Client Care Contributions
Milton Keynes Council,14-Oct-22,51500804021,"-£2,680.00",Eminence Care Service (Broomfield) Ltd Re:Broomfield Residential Care,Adult Services,Commissioning & Contracts,Client Care Contributions
Milton Keynes Council,14-Oct-22,51500804018,"-£2,680.00",Eminence Care Service (Broomfield) Ltd Re:Broomfield Residential Care,Adult Services,Commissioning & Contracts,Client Care Contributions
Milton Keynes Council,14-Oct-22,51500803642,"-£2,656.96",HC-One Oval Limited,Adult Services,Commissioning & Contracts,Residential Care
Milton Keynes Council,14-Oct-22,51500803641,"-£2,656.96",HC-One Oval Limited,Adult Services,Commissioning & Contracts,Residential Care
Milton Keynes Council,14-Oct-22,51500803628,"-£2,656.96",HC-One Oval Limited,Adult Services,Commissioning & Contracts,Residential Care
Milton Keynes Council,14-Oct-22,51500803632,"-£2,656.96",HC-One Oval Limited,Adult Services,Commissioning & Contracts,Residential Care
Milton Keynes Council,14-Oct-22,51500803635,"-£2,656.96",HC-One Oval Limited,Adult Services,Commissioning & Contracts,Residential Care
Milton Keynes Council,14-Oct-22,51500803633,"-£2,656.96",HC-One Oval Limited,Adult Services,Commissioning & Contracts,Residential Care
Milton Keynes Council,14-Oct-22,51500803638,"-£2,656.96",HC-One Oval Limited,Adult Services,Commissioning & Contracts,Residential Care
Milton Keynes Council,14-Oct-22,51500803631,"-£2,656.96",HC-One Oval Limited,Adult Services,Commissioning & Contracts,Residential Care
Milton Keynes Council,14-Oct-22,51500803640,"-£2,656.96",HC-One Oval Limited,Adult Services,Commissioning & Contracts,Residential Care
Milton Keynes Council,14-Oct-22,51500803639,"-£2,656.96",HC-One Oval Limited,Adult Services,Commissioning & Contracts,Residential Care
Milton Keynes Council,14-Oct-22,51500803629,"-£2,656.96",HC-One Oval Limited,Adult Services,Commissioning & Contracts,Residential Care
Milton Keynes Council,14-Oct-22,51500803634,"-£2,656.96",HC-One Oval Limited,Adult Services,Commissioning & Contracts,Residential Care
Milton Keynes Council,14-Oct-22,51500803630,"-£2,656.96",HC-One Oval Limited,Adult Services,Commissioning & Contracts,Residential Care
Milton Keynes Council,14-Oct-22,51500803643,"-£2,656.96",HC-One Oval Limited,Adult Services,Commissioning & Contracts,Residential Care
Milton Keynes Council,14-Oct-22,51500803805,"-£2,642.20",P J Care Ltd Re: Mallard House,Adult Services,Commissioning & Contracts,Client Care Contributions
Milton Keynes Council,14-Oct-22,51500803543,"-£2,353.52",Barchester Healthcare Homes Ltd Re: Ashby House Care Home,Adult Services,Commissioning & Contracts,Client Care Contributions
Milton Keynes Council,14-Oct-22,51500803821,"-£2,264.04",Methodist Homes,Adult Services,Commissioning & Contracts,Client Care Contributions
Milton Keynes Council,14-Oct-22,51500803807,"-£2,200.08",P J Care Ltd Re: Mallard House,Adult Services,Commissioning & Contracts,Client Care Contributions
Milton Keynes Council,14-Oct-22,51500803895,"-£2,175.00",Avery Homes (Nelson) Limited re Milton Court Care Home,Adult Services,Commissioning & Contracts,Client Care Contributions
Milton Keynes Council,14-Oct-22,51500804294,"-£1,837.35",K Lodge Care Home Limited,Adult Services,Commissioning & Contracts,Client Care Contributions
Milton Keynes Council,14-Oct-22,51500803545,"-£1,803.84",Barchester Healthcare Homes Ltd Re: Ashby House Care Home,Adult Services,Commissioning & Contracts,Client Care Contributions
Milton Keynes Council,14-Oct-22,51500803559,"-£1,777.04",Barchester Healthcare Homes Ltd Re: Ashby House Care Home,Adult Services,Commissioning & Contracts,Client Care Contributions
Milton Keynes Council,14-Oct-22,51500803802,"-£1,732.40",Burlington Care Homes Ltd Re: Burlington Hall Care Home,Adult Services,Commissioning & Contracts,Client Care Contributions
Milton Keynes Council,14-Oct-22,51500803849,"-£1,718.60",Avery Homes (Nelson) Limited re Milton Court Care Home,Adult Services,Commissioning & Contracts,Client Care Contributions
Milton Keynes Council,14-Oct-22,51500803813,"-£1,710.32",Acer Healthcare Operations Limited,Adult Services,Commissioning & Contracts,Client Care Contributions
Milton Keynes Council,14-Oct-22,51500803843,"-£1,706.20",Avery Homes (Nelson) Limited re Milton Court Care Home,Adult Services,Commissioning & Contracts,Client Care Contributions
Milton Keynes Council,14-Oct-22,51500804026,"-£1,669.36",Methodist Homes,Adult Services,Commissioning & Contracts,Client Care Contributions
Milton Keynes Council,14-Oct-22,51500803575,"-£1,639.04",Valuecare Ltd Re: Lathbury Manor,Adult Services,Commissioning & Contracts,Client Care Contributions
Milton Keynes Council,14-Oct-22,51500803637,"-£1,613.15",HC-One Oval Limited,Adult Services,Commissioning & Contracts,Residential Care
Milton Keynes Council,14-Oct-22,51500804108,"-£1,572.36",Tyringham Care Ltd,Adult Services,Commissioning & Contracts,Client Care Contributions
Milton Keynes Council,14-Oct-22,51500803886,"-£1,545.86",Cinnabar Support and Living Ltd Re: The Stratfords Residential Home,Adult Services,Learning Disability,Residential Care
Milton Keynes Council,14-Oct-22,51500804179,"-£1,469.12",Burlington Care Homes Ltd Re: Burlington Hall Care Home,Adult Services,Commissioning & Contracts,Client Care Contributions
Milton Keynes Council,14-Oct-22,51500803873,"-£1,456.32",Methodist Homes,Adult Services,Commissioning & Contracts,Client Care Contributions
Milton Keynes Council,14-Oct-22,51500803837,"-£1,397.76",Sanctuary Care Ltd Re: Caton House,Adult Services,Commissioning & Contracts,Client Care Contributions
Milton Keynes Council,14-Oct-22,51500803817,"-£1,377.72",Acer Healthcare Operations Limited,Adult Services,Commissioning & Contracts,Client Care Contributions
Milton Keynes Council,14-Oct-22,51500804325,"-£1,342.68",K Lodge Care Home Limited,Adult Services,Commissioning & Contracts,Client Care Contributions
Milton Keynes Council,14-Oct-22,51500803810,"-£1,335.28",Acer Healthcare Operations Limited,Adult Services,Commissioning & Contracts,Client Care Contributions
Milton Keynes Council,14-Oct-22,51500804185,"-£1,314.60",Avery Homes (Nelson) Limited re Milton Court Care Home,Adult Services,Commissioning & Contracts,Client Care Contributions
Milton Keynes Council,14-Oct-22,51500804163,"-£1,305.92",Eminence Care Service (Broomfield) Ltd Re:Broomfield Residential Care,Adult Services,Commissioning & Contracts,Client Care Contributions
Milton Keynes Council,14-Oct-22,51500803949,"-£1,289.96",Avery Homes (Nelson) Limited re Milton Court Care Home,Adult Services,Commissioning & Contracts,Client Care Contributions
Milton Keynes Council,14-Oct-22,51500804112,"-£1,282.72",Tyringham Care Ltd,Adult Services,Commissioning & Contracts,Client Care Contributions
Milton Keynes Council,14-Oct-22,51500803799,"-£1,251.40",Burlington Care Homes Ltd Re: Burlington Hall Care Home,Adult Services,Commissioning & Contracts,Client Care Contributions
Milton Keynes Council,14-Oct-22,51500803842,"-£1,221.32",Avery Homes (Nelson) Limited re Milton Court Care Home,Adult Services,Commissioning & Contracts,Client Care Contributions
Milton Keynes Council,14-Oct-22,51500804178,"-£1,217.86",Burlington Care Homes Ltd Re: Burlington Hall Care Home,Adult Services,Commissioning & Contracts,Client Care Contributions
Milton Keynes Council,14-Oct-22,51500804055,"-£1,208.52",Olney Care Homes Limited T/a Bay House Residential Care Home,Adult Services,Commissioning & Contracts,Client Care Contributions
Milton Keynes Council,14-Oct-22,51500803604,"-£1,195.92",Greensleeves Homes Trust Re: Tickford Abbey,Adult Services,Commissioning & Contracts,Client Care Contributions
Milton Keynes Council,14-Oct-22,51500803578,"-£1,195.44",Valuecare Ltd Re: Lathbury Manor,Adult Services,Commissioning & Contracts,Client Care Contributions
Milton Keynes Council,14-Oct-22,51500803598,"-£1,195.44",Valuecare Ltd Re: Lathbury Manor,Adult Services,Commissioning & Contracts,Client Care Contributions
Milton Keynes Council,14-Oct-22,51500803597,"-£1,195.44",Valuecare Ltd Re: Lathbury Manor,Adult Services,Commissioning & Contracts,Client Care Contributions
Milton Keynes Council,14-Oct-22,51500803503,"-£1,192.94",Macintyre Care,Adult Services,Learning Disability,Living support grants
Milton Keynes Council,14-Oct-22,51500804162,"-£1,185.52",Eminence Care Service (Broomfield) Ltd Re:Broomfield Residential Care,Adult Services,Commissioning & Contracts,Client Care Contributions
Milton Keynes Council,14-Oct-22,51500803485,"-£1,160.40",Intrust Care Ltd,Adult Services,Learning Disability,Living support grants
Milton Keynes Council,14-Oct-22,51500804262,"-£1,145.40",Lansglade Homes Ltd t/a Annandale Lodge,Adult Services,Commissioning & Contracts,Client Care Contributions
Milton Keynes Council,14-Oct-22,51500804109,"-£1,132.56",Tyringham Care Ltd,Adult Services,Commissioning & Contracts,Client Care Contributions
Milton Keynes Council,14-Oct-22,51500803574,"-£1,124.12",Valuecare Ltd Re: Lathbury Manor,Adult Services,Commissioning & Contracts,Client Care Contributions
Milton Keynes Council,14-Oct-22,51500804292,"-£1,105.05",K Lodge Care Home Limited,Adult Services,Commissioning & Contracts,Client Care Contributions
Milton Keynes Council,14-Oct-22,51500804107,"-£1,094.48",Tyringham Care Ltd,Adult Services,Commissioning & Contracts,Client Care Contributions
Milton Keynes Council,14-Oct-22,51500804320,"-£1,083.48",Royal Masonic Benevolent Institution Care Company t/a Cornwallis Court,Adult Services,Commissioning & Contracts,Client Care Contributions
Milton Keynes Council,14-Oct-22,51500803844,"-£1,073.48",Avery Homes (Nelson) Limited re Milton Court Care Home,Adult Services,Commissioning & Contracts,Client Care Contributions
Milton Keynes Council,14-Oct-22,51500803522,"-£1,073.09",Precious Homes Support Limited,Adult Services,Learning Disability,Living support grants
Milton Keynes Council,14-Oct-22,51500803845,"-£1,061.64",Avery Homes (Nelson) Limited re Milton Court Care Home,Adult Services,Commissioning & Contracts,Client Care Contributions
Milton Keynes Council,14-Oct-22,51500803863,"-£1,059.20",Cinnabar Support and Living Ltd Re: The Stratfords Residential Home,Adult Services,Commissioning & Contracts,Client Care Contributions
Milton Keynes Council,14-Oct-22,51500803636,"-£1,043.81",HC-One Oval Limited,Adult Services,Commissioning & Contracts,Residential Care
Milton Keynes Council,14-Oct-22,51500803627,"-£1,043.81",HC-One Oval Limited,Adult Services,Commissioning & Contracts,Residential Care
Milton Keynes Council,14-Oct-22,51500803982,"-£1,043.32",Avery Homes (Nelson) Limited re Milton Court Care Home,Adult Services,Commissioning & Contracts,Client Care Contributions
Milton Keynes Council,14-Oct-22,51500803589,"-£1,017.36",Valuecare Ltd Re: Lathbury Manor,Adult Services,Commissioning & Contracts,Client Care Contributions
Milton Keynes Council,14-Oct-22,51500803548,"-£1,005.88",Barchester Healthcare Homes Ltd Re: Ashby House Care Home,Adult Services,Commissioning & Contracts,Client Care Contributions
Milton Keynes Council,14-Oct-22,51500804085,"-£1,000.44",Olney Care Homes Limited T/a Bay House Residential Care Home,Adult Services,Commissioning & Contracts,Client Care Contributions
Milton Keynes Council,14-Oct-22,51500803809,-£997.24,P J Care Ltd Re: Mallard House,Adult Services,Commissioning & Contracts,Client Care Contributions
Milton Keynes Council,14-Oct-22,51500803830,-£985.60,Sanctuary Care Ltd Re: Caton House,Adult Services,Commissioning & Contracts,Client Care Contributions
Milton Keynes Council,14-Oct-22,51500803484,-£967.00,Intrust Care Ltd,Adult Services,Learning Disability,Living support grants
Milton Keynes Council,14-Oct-22,51500803823,-£966.84,Methodist Homes,Adult Services,Commissioning & Contracts,Client Care Contributions
Milton Keynes Council,14-Oct-22,51500803803,-£947.20,Parklands Nursing Home,Adult Services,Commissioning & Contracts,Client Care Contributions
Milton Keynes Council,14-Oct-22,51500804027,-£927.56,SAH Nursing Homes Ltd Re: Rosalyn House,Adult Services,Commissioning & Contracts,Client Care Contributions
Milton Keynes Council,14-Oct-22,51500803801,-£918.44,Burlington Care Homes Ltd Re: Burlington Hall Care Home,Adult Services,Commissioning & Contracts,Client Care Contributions
Milton Keynes Council,14-Oct-22,51500804301,-£905.40,Gracewell of Maids Moreton,Adult Services,Commissioning & Contracts,Client Care Contributions
Milton Keynes Council,14-Oct-22,51500804309,-£905.28,Simply Carehome Ltd,Adult Services,Commissioning & Contracts,Client Care Contributions
Milton Keynes Council,14-Oct-22,51500803947,-£905.28,Avery Homes (Nelson) Limited re Milton Court Care Home,Adult Services,Commissioning & Contracts,Client Care Contributions
Milton Keynes Council,14-Oct-22,51500804164,-£883.92,Eminence Care Service (Broomfield) Ltd Re:Broomfield Residential Care,Adult Services,Commissioning & Contracts,Client Care Contributions
Milton Keynes Council,14-Oct-22,51500803908,-£873.30,Avery Homes (Nelson) Limited re Milton Court Care Home,Adult Services,Commissioning & Contracts,Residential Care
Milton Keynes Council,14-Oct-22,51500803836,-£873.24,Sanctuary Care Ltd Re: Caton House,Adult Services,Commissioning & Contracts,Client Care Contributions
Milton Keynes Council,14-Oct-22,51500803848,-£869.80,Avery Homes (Nelson) Limited re Milton Court Care Home,Adult Services,Commissioning & Contracts,Client Care Contributions
Milton Keynes Council,14-Oct-22,51500803508,-£861.02,Fremantle Trust,Adult Services,Learning Disability,Living support grants
Milton Keynes Council,14-Oct-22,51500803818,-£860.64,Eminence Care Service (Broomfield) Ltd Re:Broomfield Residential Care,Adult Services,Commissioning & Contracts,Client Care Contributions
Milton Keynes Council,14-Oct-22,51500803812,-£859.80,Acer Healthcare Operations Limited,Adult Services,Commissioning & Contracts,Client Care Contributions
Milton Keynes Council,14-Oct-22,51500804255,-£853.96,Simply Carehome Ltd,Adult Services,Commissioning & Contracts,Client Care Contributions
Milton Keynes Council,14-Oct-22,51500803612,-£852.36,Greensleeves Homes Trust Re: Tickford Abbey,Adult Services,Commissioning & Contracts,Client Care Contributions
Milton Keynes Council,14-Oct-22,51500804299,-£840.73,Gracewell of Maids Moreton,Adult Services,Commissioning & Contracts,Client Care Contributions
Milton Keynes Council,14-Oct-22,51500804023,-£840.16,Methodist Homes,Adult Services,Commissioning & Contracts,Client Care Contributions
Milton Keynes Council,14-Oct-22,51500803513,-£828.22,Infinate Limited,Adult Services,Learning Disability,Living support grants
Milton Keynes Council,14-Oct-22,51500804311,-£827.24,Simply Carehome Ltd,Adult Services,Commissioning & Contracts,Client Care Contributions
Milton Keynes Council,14-Oct-22,51500803851,-£805.72,Avery Homes (Nelson) Limited re Milton Court Care Home,Adult Services,Commissioning & Contracts,Client Care Contributions
Milton Keynes Council,14-Oct-22,51500803603,-£800.04,Greensleeves Homes Trust Re: Tickford Abbey,Adult Services,Commissioning & Contracts,Client Care Contributions
Milton Keynes Council,14-Oct-22,51500804014,-£783.72,Eminence Care Service (Broomfield) Ltd Re:Broomfield Residential Care,Adult Services,Commissioning & Contracts,Client Care Contributions
Milton Keynes Council,14-Oct-22,51500803611,-£775.76,Greensleeves Homes Trust Re: Tickford Abbey,Adult Services,Commissioning & Contracts,Client Care Contributions
Milton Keynes Council,14-Oct-22,51500804064,-£775.48,Olney Care Homes Limited T/a Bay House Residential Care Home,Adult Services,Commissioning & Contracts,Client Care Contributions
Milton Keynes Council,14-Oct-22,51500804065,-£768.16,Olney Care Homes Limited T/a Bay House Residential Care Home,Adult Services,Commissioning & Contracts,Client Care Contributions
Milton Keynes Council,14-Oct-22,51500803945,-£766.48,Avery Homes (Nelson) Limited re Milton Court Care Home,Adult Services,Commissioning & Contracts,Client Care Contributions
Milton Keynes Council,14-Oct-22,51500803950,-£766.32,Avery Homes (Nelson) Limited re Milton Court Care Home,Adult Services,Commissioning & Contracts,Client Care Contributions
Milton Keynes Council,14-Oct-22,51500803596,-£763.89,Valuecare Ltd Re: Lathbury Manor,Adult Services,Commissioning & Contracts,Client Care Contributions
Milton Keynes Council,14-Oct-22,51500803835,-£751.20,Sanctuary Care Ltd Re: Caton House,Adult Services,Commissioning & Contracts,Client Care Contributions
Milton Keynes Council,14-Oct-22,51500803926,-£751.12,Acer Healthcare Operations Limited,Adult Services,Commissioning & Contracts,Client Care Contributions
Milton Keynes Council,14-Oct-22,51500803832,-£748.08,Sanctuary Care Ltd Re: Caton House,Adult Services,Commissioning & Contracts,Client Care Contributions
Milton Keynes Council,14-Oct-22,51500803573,-£736.40,Valuecare Ltd Re: Lathbury Manor,Adult Services,Commissioning & Contracts,Client Care Contributions
Milton Keynes Council,14-Oct-22,51500803647,-£731.28,HC-One Oval Limited,Adult Services,Commissioning & Contracts,Client Care Contributions
Milton Keynes Council,14-Oct-22,51500803887,-£728.15,Acer Healthcare Operations Limited,Adult Services,Commissioning & Contracts,Nursing Care
Milton Keynes Council,14-Oct-22,51500803519,-£728.08,Fremantle Trust,Adult Services,Learning Disability,Living support grants
Milton Keynes Council,14-Oct-22,51500804252,-£724.52,Simply Carehome Ltd,Adult Services,Commissioning & Contracts,Client Care Contributions
Milton Keynes Council,14-Oct-22,51500803948,-£721.64,Avery Homes (Nelson) Limited re Milton Court Care Home,Adult Services,Commissioning & Contracts,Client Care Contributions
Milton Keynes Council,14-Oct-22,51500804016,-£721.28,Eminence Care Service (Broomfield) Ltd Re:Broomfield Residential Care,Adult Services,Commissioning & Contracts,Client Care Contributions
Milton Keynes Council,14-Oct-22,51500803870,-£720.40,Caretech Community Services Ltd,Adult Services,Learning Disability,Client Care Contributions
Milton Keynes Council,14-Oct-22,51500804099,-£716.40,Cinnabar Support and Living Ltd Re: The Beeches,Adult Services,Mental Health,Client Care Contributions
Milton Keynes Council,14-Oct-22,51500804084,-£711.16,Olney Care Homes Limited T/a Bay House Residential Care Home,Adult Services,Commissioning & Contracts,Client Care Contributions
Milton Keynes Council,14-Oct-22,51500803850,-£707.80,Avery Homes (Nelson) Limited re Milton Court Care Home,Adult Services,Commissioning & Contracts,Client Care Contributions
Milton Keynes Council,14-Oct-22,51500804293,-£706.67,K Lodge Care Home Limited,Adult Services,Commissioning & Contracts,Client Care Contributions
Milton Keynes Council,14-Oct-22,51500804022,-£692.08,Methodist Homes,Adult Services,Commissioning & Contracts,Client Care Contributions
Milton Keynes Council,14-Oct-22,51500803576,-£690.60,Valuecare Ltd Re: Lathbury Manor,Adult Services,Commissioning & Contracts,Client Care Contributions
Milton Keynes Council,14-Oct-22,51500803866,-£689.52,Cinnabar Support and Living Ltd Re: The Stratfords Residential Home,Adult Services,Learning Disability,Client Care Contributions
Milton Keynes Council,14-Oct-22,51500803815,-£684.20,Acer Healthcare Operations Limited,Adult Services,Commissioning & Contracts,Client Care Contributions
Milton Keynes Council,14-Oct-22,51500803946,-£680.16,Avery Homes (Nelson) Limited re Milton Court Care Home,Adult Services,Commissioning & Contracts,Client Care Contributions
Milton Keynes Council,14-Oct-22,51500804367,-£679.27,Lansglade Homes Ltd t/a Annandale Lodge,Adult Services,Commissioning & Contracts,Client Care Contributions
Milton Keynes Council,14-Oct-22,51500803577,-£676.08,Valuecare Ltd Re: Lathbury Manor,Adult Services,Commissioning & Contracts,Client Care Contributions
Milton Keynes Council,14-Oct-22,51500803858,-£672.52,Macintyre Care,Adult Services,Learning Disability,Client Care Contributions
Milton Keynes Council,14-Oct-22,51500803822,-£670.60,Methodist Homes,Adult Services,Commissioning & Contracts,Client Care Contributions
Milton Keynes Council,14-Oct-22,51500803944,-£668.80,Avery Homes (Nelson) Limited re Milton Court Care Home,Adult Services,Commissioning & Contracts,Client Care Contributions
Milton Keynes Council,14-Oct-22,51500804013,-£665.80,Eminence Care Service (Broomfield) Ltd Re:Broomfield Residential Care,Adult Services,Commissioning & Contracts,Client Care Contributions
Milton Keynes Council,14-Oct-22,51500803560,-£665.00,Barchester Healthcare Homes Ltd Re: Ashby House Care Home,Adult Services,Commissioning & Contracts,Client Care Contributions
Milton Keynes Council,14-Oct-22,51500804015,-£663.00,Eminence Care Service (Broomfield) Ltd Re:Broomfield Residential Care,Adult Services,Commissioning & Contracts,Client Care Contributions
Milton Keynes Council,14-Oct-22,51500804359,-£661.82,GCH (Hertfordshire) Ltd,Adult Services,Commissioning & Contracts,Client Care Contributions
Milton Keynes Council,14-Oct-22,51500803804,-£652.80,Amberley Healthcare Ltd Re: Devon Lodge Retirement Home,Adult Services,Commissioning & Contracts,Client Care Contributions
Milton Keynes Council,14-Oct-22,51500804194,-£645.40,Salutem LD Bidco IV Limited,Adult Services,Commissioning & Contracts,Client Care Contributions
Milton Keynes Council,14-Oct-22,51500803820,-£639.96,Methodist Homes,Adult Services,Commissioning & Contracts,Client Care Contributions
Milton Keynes Council,14-Oct-22,51500804196,-£639.44,Greenswan Consultant Limited t/a Pinelodge Care Home,Adult Services,Commissioning & Contracts,Client Care Contributions
Milton Keynes Council,14-Oct-22,51500803918,-£638.12,Avery Homes (Nelson) Limited re Milton Court Care Home,Adult Services,Commissioning & Contracts,Client Care Contributions
Milton Keynes Council,14-Oct-22,51500803590,-£627.80,Valuecare Ltd Re: Lathbury Manor,Adult Services,Commissioning & Contracts,Client Care Contributions
Milton Keynes Council,14-Oct-22,51500803816,-£627.80,Acer Healthcare Operations Limited,Adult Services,Commissioning & Contracts,Client Care Contributions
Milton Keynes Council,14-Oct-22,51500803833,-£627.80,Sanctuary Care Ltd Re: Caton House,Adult Services,Commissioning & Contracts,Client Care Contributions
Milton Keynes Council,14-Oct-22,51500804020,-£627.80,Eminence Care Service (Broomfield) Ltd Re:Broomfield Residential Care,Adult Services,Commissioning & Contracts,Client Care Contributions
Milton Keynes Council,14-Oct-22,51500804310,-£627.80,Simply Carehome Ltd,Adult Services,Commissioning & Contracts,Client Care Contributions
Milton Keynes Council,14-Oct-22,51500804195,-£627.00,Royal Bay Care Home Ltd t/a The Old Vicarage,Adult Services,Commissioning & Contracts,Client Care Contributions
Milton Keynes Council,14-Oct-22,51500804067,-£623.80,Olney Care Homes Limited T/a Bay House Residential Care Home,Adult Services,Commissioning & Contracts,Client Care Contributions
Milton Keynes Council,14-Oct-22,51500804019,-£623.76,Eminence Care Service (Broomfield) Ltd Re:Broomfield Residential Care,Adult Services,Commissioning & Contracts,Client Care Contributions
Milton Keynes Council,14-Oct-22,51500804017,-£617.24,Eminence Care Service (Broomfield) Ltd Re:Broomfield Residential Care,Adult Services,Commissioning & Contracts,Client Care Contributions
Milton Keynes Council,14-Oct-22,51500804253,-£616.36,Simply Carehome Ltd,Adult Services,Commissioning & Contracts,Client Care Contributions
Milton Keynes Council,14-Oct-22,51500803917,-£615.80,Avery Homes (Nelson) Limited re Milton Court Care Home,Adult Services,Commissioning & Contracts,Client Care Contributions
Milton Keynes Council,14-Oct-22,51500804184,-£614.28,Avery Homes (Nelson) Limited re Milton Court Care Home,Adult Services,Commissioning & Contracts,Client Care Contributions
Milton Keynes Council,14-Oct-22,51500804291,-£613.91,K Lodge Care Home Limited,Adult Services,Commissioning & Contracts,Client Care Contributions
Milton Keynes Council,14-Oct-22,51500803852,-£612.20,Avery Homes (Nelson) Limited re Milton Court Care Home,Adult Services,Commissioning & Contracts,Client Care Contributions
Milton Keynes Council,14-Oct-22,51500803626,-£610.08,HC-One Oval Limited,Adult Services,Commissioning & Contracts,Client Care Contributions
Milton Keynes Council,14-Oct-22,51500803846,-£605.52,Avery Homes (Nelson) Limited re Milton Court Care Home,Adult Services,Commissioning & Contracts,Client Care Contributions
Milton Keynes Council,14-Oct-22,51500803847,-£603.80,Avery Homes (Nelson) Limited re Milton Court Care Home,Adult Services,Commissioning & Contracts,Client Care Contributions
Milton Keynes Council,14-Oct-22,51500803839,-£603.00,Apex Care Homes Ltd Re Crescent Nursing Home,Adult Services,Commissioning & Contracts,Client Care Contributions
Milton Keynes Council,14-Oct-22,51500803670,-£584.80,HC-One Oval Limited,Adult Services,Commissioning & Contracts,Client Care Contributions
Milton Keynes Council,14-Oct-22,51500803869,-£582.80,Caretech Community Services Ltd,Adult Services,Learning Disability,Client Care Contributions
Milton Keynes Council,14-Oct-22,51500804177,-£577.15,Burlington Care Homes Ltd Re: Burlington Hall Care Home,Adult Services,Commissioning & Contracts,Client Care Contributions
Milton Keynes Council,14-Oct-22,51500803824,-£570.80,First for Care Ltd Re: Esplanade House,Adult Services,Learning Disability,Client Care Contributions
Milton Keynes Council,14-Oct-22,51500803542,-£564.80,Barchester Healthcare Homes Ltd Re: Ashby House Care Home,Adult Services,Commissioning & Contracts,Client Care Contributions
Milton Keynes Council,14-Oct-22,51500803595,-£555.03,Valuecare Ltd Re: Lathbury Manor,Adult Services,Commissioning & Contracts,Client Care Contributions
Milton Keynes Council,14-Oct-22,51500803831,-£551.80,Sanctuary Care Ltd Re: Caton House,Adult Services,Commissioning & Contracts,Client Care Contributions
Milton Keynes Council,14-Oct-22,51500804276,-£535.17,Lansglade Homes Ltd t/a Annandale Lodge,Adult Services,Commissioning & Contracts,Client Care Contributions
Milton Keynes Council,14-Oct-22,51500804261,-£533.56,Shaftesbury Court (High Street) T/A Sanctuary Home Care Limited,Adult Services,Learning Disability,Client Care Contributions
Milton Keynes Council,14-Oct-22,51500804098,-£533.56,Cinnabar Support and Living Ltd Re: The Beeches,Adult Services,Commissioning & Contracts,Client Care Contributions
Milton Keynes Council,14-Oct-22,51500804254,-£515.08,Simply Carehome Ltd,Adult Services,Commissioning & Contracts,Client Care Contributions
Milton Keynes Council,14-Oct-22,51500803646,-£511.82,HC-One Oval Limited,Adult Services,Commissioning & Contracts,Client Care Contributions
Milton Keynes Council,14-Oct-22,51500803474,£502.84,Intrust Care Ltd,Adult Services,Mental Health,Living support grants
Milton Keynes Council,14-Oct-22,51500803107,£503.32,Camphill Milton Keynes Communities,Adult Services,Learning Disability,Living support grants
Milton Keynes Council,14-Oct-22,51500803359,£508.08,Infinate Limited,Adult Services,Learning Disability,Living support grants
Milton Keynes Council,14-Oct-22,51500803408,£509.64,Infinate Limited,Adult Services,Autism,Living support grants
Milton Keynes Council,14-Oct-22,51500803367,£509.64,Infinate Limited,Adult Services,Learning Disability,Living support grants
Milton Keynes Council,14-Oct-22,51500803369,£512.20,Infinate Limited,Adult Services,Learning Disability,Living support grants
Milton Keynes Council,14-Oct-22,51500803003,£518.64,Branch-out MK CIC,Adult Services,Learning Disability,Homecare
Milton Keynes Council,14-Oct-22,51500803002,£518.64,Branch-out MK CIC,Adult Services,Learning Disability,Homecare
Milton Keynes Council,14-Oct-22,51500803004,£518.64,Branch-out MK CIC,Adult Services,Learning Disability,Homecare
Milton Keynes Council,14-Oct-22,51500803040,£518.64,Branch-out MK CIC,Adult Services,Learning Disability,Homecare
Milton Keynes Council,14-Oct-22,51500803399,£535.04,Infinate Limited,Adult Services,Mental Health,Living support grants
Milton Keynes Council,14-Oct-22,51500803225,£540.64,Fremantle Trust,Adult Services,Learning Disability,Living support grants
Milton Keynes Council,14-Oct-22,51500802929,£541.24,Camphill Milton Keynes Communities,Adult Services,Learning Disability,Homecare
Milton Keynes Council,14-Oct-22,51500802904,£541.24,Camphill Milton Keynes Communities,Adult Services,Learning Disability,Homecare
Milton Keynes Council,14-Oct-22,51500802903,£541.24,Camphill Milton Keynes Communities,Adult Services,Learning Disability,Homecare
Milton Keynes Council,14-Oct-22,51500802905,£541.24,Camphill Milton Keynes Communities,Adult Services,Learning Disability,Homecare
Milton Keynes Council,14-Oct-22,51500803304,£542.40,Macintyre Care,Adult Services,Learning Disability,Living support grants
Milton Keynes Council,14-Oct-22,51500803204,£542.44,Fremantle Trust,Adult Services,Learning Disability,Living support grants
Milton Keynes Council,14-Oct-22,51500803345,£542.72,Care Support MK Ltd,Adult Services,Mental Health,Living support grants
Milton Keynes Council,14-Oct-22,51500803342,£542.72,Care Support MK Ltd,Adult Services,Mental Health,Living support grants
Milton Keynes Council,14-Oct-22,51500802994,£551.76,Sanctuary Care Ltd Re: Caton House,Adult Services,Commissioning & Contracts,Homecare
Milton Keynes Council,14-Oct-22,51500802993,£551.76,Sanctuary Care Ltd Re: Caton House,Adult Services,Commissioning & Contracts,Homecare
Milton Keynes Council,14-Oct-22,51500802995,£551.76,Sanctuary Care Ltd Re: Caton House,Adult Services,"Day Services, Short Breaks and Shared Lives",Homecare
Milton Keynes Council,14-Oct-22,51500802371,£562.75,Nationspaces Developments Ltd (20 Goodrington Place),Env & Prop (HRA),Property & Facilities (HRA),Service Charges
Milton Keynes Council,14-Oct-22,51500803226,£582.48,Fremantle Trust,Adult Services,Learning Disability,Living support grants
Milton Keynes Council,14-Oct-22,51500803409,£582.48,Infinate Limited,Adult Services,Autism,Living support grants
Milton Keynes Council,14-Oct-22,51500802120,£594.00,David Smith Associates (Part'ship),Environment & Property,Property,Structural Surveys
Milton Keynes Council,14-Oct-22,51500802339,£600.00,MJ Lever Groundworks Ltd,Environment & Property,Head of Service - Env and Waste,Right of Ways Maintenance
Milton Keynes Council,14-Oct-22,51500804505,£606.00,Redacted Personal Data,Children's Services,"Sufficiency, Access and Attendance",Car mileage and allowances - other
Milton Keynes Council,14-Oct-22,51500802907,£618.56,Camphill Milton Keynes Communities,Adult Services,Learning Disability,Homecare
Milton Keynes Council,14-Oct-22,51500802910,£618.56,Camphill Milton Keynes Communities,Adult Services,Learning Disability,Homecare
Milton Keynes Council,14-Oct-22,51500802916,£618.56,Camphill Milton Keynes Communities,Adult Services,Learning Disability,Homecare
Milton Keynes Council,14-Oct-22,51500802919,£618.56,Camphill Milton Keynes Communities,Adult Services,Learning Disability,Homecare
Milton Keynes Council,14-Oct-22,51500802915,£618.56,Camphill Milton Keynes Communities,Adult Services,Learning Disability,Homecare
Milton Keynes Council,14-Oct-22,51500802917,£618.56,Camphill Milton Keynes Communities,Adult Services,Learning Disability,Homecare
Milton Keynes Council,14-Oct-22,51500802920,£618.56,Camphill Milton Keynes Communities,Adult Services,Learning Disability,Homecare
Milton Keynes Council,14-Oct-22,51500802834,£618.56,MK SNAP,Adult Services,Learning Disability,Homecare
Milton Keynes Council,14-Oct-22,51500802815,£618.56,MK SNAP,Adult Services,Learning Disability,Homecare
Milton Keynes Council,14-Oct-22,51500802814,£618.56,MK SNAP,Adult Services,Learning Disability,Homecare
Milton Keynes Council,14-Oct-22,51500802956,£618.56,Macintyre Care,Adult Services,Learning Disability,Homecare
Milton Keynes Council,14-Oct-22,51500802906,£618.56,Camphill Milton Keynes Communities,Adult Services,Learning Disability,Homecare
Milton Keynes Council,14-Oct-22,51500802911,£618.56,Camphill Milton Keynes Communities,Adult Services,Learning Disability,Homecare
Milton Keynes Council,14-Oct-22,51500802908,£618.56,Camphill Milton Keynes Communities,Adult Services,Learning Disability,Homecare
Milton Keynes Council,14-Oct-22,51500802912,£618.56,Camphill Milton Keynes Communities,Adult Services,Learning Disability,Homecare
Milton Keynes Council,14-Oct-22,51500802914,£618.56,Camphill Milton Keynes Communities,Adult Services,Learning Disability,Homecare
Milton Keynes Council,14-Oct-22,51500802913,£618.56,Camphill Milton Keynes Communities,Adult Services,Learning Disability,Homecare
Milton Keynes Council,14-Oct-22,51500802921,£618.56,Camphill Milton Keynes Communities,Adult Services,Learning Disability,Homecare
Milton Keynes Council,14-Oct-22,51500802813,£618.56,MK SNAP,Adult Services,Learning Disability,Homecare
Milton Keynes Council,14-Oct-22,51500802909,£618.56,Camphill Milton Keynes Communities,Adult Services,Learning Disability,Homecare
Milton Keynes Council,14-Oct-22,51500802918,£618.56,Camphill Milton Keynes Communities,Adult Services,Learning Disability,Homecare
Milton Keynes Council,14-Oct-22,51500803093,£619.16,Camphill Milton Keynes Communities,Adult Services,Learning Disability,Living support grants
Milton Keynes Council,14-Oct-22,51500803301,£619.16,Macintyre Care,Adult Services,Learning Disability,Living support grants
Milton Keynes Council,14-Oct-22,51500803169,£619.16,Fremantle Trust,Adult Services,Learning Disability,Living support grants
Milton Keynes Council,14-Oct-22,51500803153,£619.16,Fremantle Trust,Adult Services,Learning Disability,Living support grants
Milton Keynes Council,14-Oct-22,51500803201,£619.40,Fremantle Trust,Adult Services,Learning Disability,Living support grants
Milton Keynes Council,14-Oct-22,51500798229,£624.00,Richard Buckley t/a R & K Panelcraft,Environment & Property,Head of Service - Env and Waste,Vehicle Repairs and maintenance
Milton Keynes Council,14-Oct-22,51500803015,£647.28,Thrift Activity Farm Ltd,Adult Services,Learning Disability,Homecare
Milton Keynes Council,14-Oct-22,51500803014,£647.28,Thrift Activity Farm Ltd,Adult Services,Learning Disability,Homecare
Milton Keynes Council,14-Oct-22,51500802520,£656.39,Redacted Personal Data,Children's Services,Safeguarding,Other Travel Allowances
Milton Keynes Council,14-Oct-22,51500802569,£660.19,NAS Services Limited,Adult Services,Learning Disability,Direct Payments
Milton Keynes Council,14-Oct-22,51500803132,£660.60,Camphill Milton Keynes Communities,Adult Services,Learning Disability,Living support grants
Milton Keynes Council,14-Oct-22,51500803427,£660.96,Lumsden Support Ltd,Adult Services,Mental Health,Living support grants
Milton Keynes Council,14-Oct-22,51500801359,£661.69,Adam HTT Limited T/A Adam,Adult Services,Physical Disability,Homecare
Milton Keynes Council,14-Oct-22,51500802384,£665.00,Redacted Personal Data,Children's Services,"Sufficiency, Access and Attendance",Car mileage and allowances - other
Milton Keynes Council,14-Oct-22,51500802572,£677.04,Paradigm Homes Charitable Housing Association,Adult Services,Homeless Prevention + Access,Grants
Milton Keynes Council,14-Oct-22,51500803098,£677.21,Camphill Milton Keynes Communities,Adult Services,Learning Disability,Living support grants
Milton Keynes Council,14-Oct-22,51500803551,£678.57,Barchester Healthcare Homes Ltd Re: Ashby House Care Home,Adult Services,Commissioning & Contracts,Residential Care
Milton Keynes Council,14-Oct-22,51500802400,£691.45,Awareness Matters Ltd,Children's Services,Children's Social Work,Books and Multimedia Supplies
Milton Keynes Council,14-Oct-22,51500802930,£695.88,Camphill Milton Keynes Communities,Adult Services,Autism,Homecare
Milton Keynes Council,14-Oct-22,51500802922,£695.88,Camphill Milton Keynes Communities,Adult Services,Learning Disability,Homecare
Milton Keynes Council,14-Oct-22,51500802924,£695.88,Camphill Milton Keynes Communities,Adult Services,Learning Disability,Homecare
Milton Keynes Council,14-Oct-22,51500802957,£695.88,Macintyre Care,Adult Services,Learning Disability,Homecare
Milton Keynes Council,14-Oct-22,51500802925,£695.88,Camphill Milton Keynes Communities,Adult Services,Learning Disability,Homecare
Milton Keynes Council,14-Oct-22,51500803065,£696.72,Autism Care UK Limited,Adult Services,Learning Disability,Living support grants
Milton Keynes Council,14-Oct-22,51500803114,£696.80,Camphill Milton Keynes Communities,Adult Services,Learning Disability,Living support grants
Milton Keynes Council,14-Oct-22,51500803197,£696.80,Fremantle Trust,Adult Services,Learning Disability,Living support grants
Milton Keynes Council,14-Oct-22,51500802996,£697.80,Lansdowne Care Services,Adult Services,Learning Disability,Homecare
Milton Keynes Council,14-Oct-22,51500803118,£723.28,Camphill Milton Keynes Communities,Adult Services,Learning Disability,Living support grants
Milton Keynes Council,14-Oct-22,51500803117,£723.28,Camphill Milton Keynes Communities,Adult Services,Learning Disability,Living support grants
Milton Keynes Council,14-Oct-22,51500803134,£723.28,Camphill Milton Keynes Communities,Adult Services,Learning Disability,Living support grants
Milton Keynes Council,14-Oct-22,51500803414,£723.28,Infinate Limited,Adult Services,Autism,Living support grants
Milton Keynes Council,14-Oct-22,51500803140,£723.28,Camphill Milton Keynes Communities,Adult Services,Physical Disability,Living support grants
Milton Keynes Council,14-Oct-22,51500803137,£723.28,Camphill Milton Keynes Communities,Adult Services,Autism,Living support grants
Milton Keynes Council,14-Oct-22,51500803215,£723.32,Fremantle Trust,Adult Services,Learning Disability,Living support grants
Milton Keynes Council,14-Oct-22,51500803223,£723.32,Fremantle Trust,Adult Services,Learning Disability,Living support grants
Milton Keynes Council,14-Oct-22,51500803068,£723.32,Autism Care UK Limited,Adult Services,Learning Disability,Living support grants
Milton Keynes Council,14-Oct-22,51500803071,£723.32,Autism Care UK Limited,Adult Services,Learning Disability,Living support grants
Milton Keynes Council,14-Oct-22,51500803073,£723.32,Autism Care UK Limited,Adult Services,Learning Disability,Living support grants
Milton Keynes Council,14-Oct-22,51500803075,£723.32,Autism Care UK Limited,Adult Services,Learning Disability,Living support grants
Milton Keynes Council,14-Oct-22,51500803224,£723.32,Fremantle Trust,Adult Services,Learning Disability,Living support grants
Milton Keynes Council,14-Oct-22,51500803379,£728.00,Infinate Limited,Adult Services,Learning Disability,Living support grants
Milton Keynes Council,14-Oct-22,51500801361,£730.12,Adam HTT Limited T/A Adam,Adult Services,Learning Disability,Domiciliary Care
Milton Keynes Council,14-Oct-22,51500803230,£731.80,Fremantle Trust,Adult Services,Learning Disability,Living support grants
Milton Keynes Council,14-Oct-22,51500797823,£733.00,Houghton Close Surgery,Public Health,NHS Health Check Programme,Professional Fees and Hired Services
Milton Keynes Council,14-Oct-22,51500803512,£733.20,Infinate Limited,Adult Services,Learning Disability,Living support grants
Milton Keynes Council,14-Oct-22,51500803147,£735.28,Fremantle Trust,Adult Services,Learning Disability,Living support grants
Milton Keynes Council,14-Oct-22,51500798300,£746.40,Lovemore Music t/a Heritage and Caswells,Children's Services,"Sufficiency, Access and Attendance",Educational equipment
Milton Keynes Council,14-Oct-22,51500802583,£750.00,Redacted Personal Data,Children's Services,Children's Centres Services,Building Cleaning
Milton Keynes Council,14-Oct-22,51500803905,£757.58,Avery Homes (Nelson) Limited re Milton Court Care Home,Adult Services,Commissioning & Contracts,Residential Care
Milton Keynes Council,14-Oct-22,51500803506,£763.93,Fremantle Trust,Adult Services,Learning Disability,Living support grants
Milton Keynes Council,14-Oct-22,51500803116,£772.28,Camphill Milton Keynes Communities,Adult Services,Learning Disability,Living support grants
Milton Keynes Council,14-Oct-22,51500802958,£773.20,Macintyre Care,Adult Services,Learning Disability,Homecare
Milton Keynes Council,14-Oct-22,51500802822,£773.20,MK SNAP,Adult Services,Learning Disability,Homecare
Milton Keynes Council,14-Oct-22,51500802927,£773.20,Camphill Milton Keynes Communities,Adult Services,Learning Disability,Homecare
Milton Keynes Council,14-Oct-22,51500802959,£773.20,Macintyre Care,Adult Services,Learning Disability,Homecare
Milton Keynes Council,14-Oct-22,51500802816,£773.20,MK SNAP,Adult Services,Learning Disability,Homecare
Milton Keynes Council,14-Oct-22,51500802821,£773.20,MK SNAP,Adult Services,Learning Disability,Homecare
Milton Keynes Council,14-Oct-22,51500802836,£773.20,MK SNAP,Adult Services,Learning Disability,Homecare
Milton Keynes Council,14-Oct-22,51500803145,£773.60,Fremantle Trust,Adult Services,Learning Disability,Living support grants
Milton Keynes Council,14-Oct-22,51500803467,£773.60,Intrust Care Ltd,Adult Services,Learning Disability,Living support grants
Milton Keynes Council,14-Oct-22,51500803115,£774.24,Camphill Milton Keynes Communities,Adult Services,Learning Disability,Living support grants
Milton Keynes Council,14-Oct-22,51500803199,£774.24,Fremantle Trust,Adult Services,Learning Disability,Living support grants
Milton Keynes Council,14-Oct-22,51500803200,£774.24,Fremantle Trust,Adult Services,Learning Disability,Living support grants
Milton Keynes Council,14-Oct-22,51500802960,£788.32,Macintyre Care,Adult Services,Learning Disability,Homecare
Milton Keynes Council,14-Oct-22,51500801372,£791.18,Adam HTT Limited T/A Adam,Adult Services,Mental Health,Domiciliary Care
Milton Keynes Council,14-Oct-22,51500802666,£798.20,Crosslands Day Nursery,Children's Services,High Needs Block,Professional Fees and Hired Services
Milton Keynes Council,14-Oct-22,51500803360,£800.96,Infinate Limited,Adult Services,Learning Disability,Living support grants
Milton Keynes Council,14-Oct-22,51500803520,£830.68,Fremantle Trust,Adult Services,Learning Disability,Living support grants
Milton Keynes Council,14-Oct-22,51500803521,£830.68,Fremantle Trust,Adult Services,Learning Disability,Living support grants
Milton Keynes Council,14-Oct-22,51500803428,£835.84,Lumsden Support Ltd,Adult Services,Mental Health,Living support grants
Milton Keynes Council,14-Oct-22,51500803430,£835.84,Lumsden Living Limited,Adult Services,Mental Health,Living support grants
Milton Keynes Council,14-Oct-22,51500803431,£835.84,Lumsden Living Limited,Adult Services,Mental Health,Living support grants
Milton Keynes Council,14-Oct-22,51500803404,£837.32,Infinate Limited,Adult Services,Autism,Living support grants
Milton Keynes Council,14-Oct-22,51500803258,£850.68,Fremantle Trust,Adult Services,Learning Disability,Living support grants
Milton Keynes Council,14-Oct-22,51500803471,£850.96,Intrust Care Ltd,Adult Services,Autism,Living support grants
Milton Keynes Council,14-Oct-22,51500803130,£850.96,Camphill Milton Keynes Communities,Adult Services,Learning Disability,Living support grants
Milton Keynes Council,14-Oct-22,51500803240,£850.96,Fremantle Trust,Adult Services,Learning Disability,Living support grants
Milton Keynes Council,14-Oct-22,51500803087,£851.36,Camphill Milton Keynes Communities,Adult Services,Learning Disability,Living support grants
Milton Keynes Council,14-Oct-22,51500803174,£851.44,Fremantle Trust,Adult Services,Learning Disability,Living support grants
Milton Keynes Council,14-Oct-22,51500803188,£851.68,Fremantle Trust,Adult Services,Learning Disability,Living support grants
Milton Keynes Council,14-Oct-22,51500803432,£857.24,Lumsden Living Limited,Adult Services,Autism,Living support grants
Milton Keynes Council,14-Oct-22,51500803018,£863.04,Thrift Activity Farm Ltd,Adult Services,Learning Disability,Homecare
Milton Keynes Council,14-Oct-22,51500803019,£863.04,Thrift Activity Farm Ltd,Adult Services,Learning Disability,Homecare
Milton Keynes Council,14-Oct-22,51500803021,£863.04,Thrift Activity Farm Ltd,Adult Services,Learning Disability,Homecare
Milton Keynes Council,14-Oct-22,51500803218,£868.00,Fremantle Trust,Adult Services,Learning Disability,Living support grants
Milton Keynes Council,14-Oct-22,51500803214,£868.00,Fremantle Trust,Adult Services,Learning Disability,Living support grants
Milton Keynes Council,14-Oct-22,51500803213,£868.00,Fremantle Trust,Adult Services,Learning Disability,Living support grants
Milton Keynes Council,14-Oct-22,51500798293,£870.00,Cleanaway Property Services Limited,Adult Services (HRA),Housing Operations (HRA),Professional Fees and Hired Services
Milton Keynes Council,14-Oct-22,51500803371,£873.60,Infinate Limited,Adult Services,Learning Disability,Living support grants
Milton Keynes Council,14-Oct-22,51500803368,£877.80,Infinate Limited,Adult Services,Learning Disability,Living support grants
Milton Keynes Council,14-Oct-22,51500804277,£882.71,K Lodge Care Home Limited,Adult Services,Commissioning & Contracts,Residential Care
Milton Keynes Council,14-Oct-22,51500802961,£886.44,Macintyre Care,Adult Services,Learning Disability,Homecare
Milton Keynes Council,14-Oct-22,51500803455,£904.80,Precious Homes Support Limited,Adult Services,Mental Health,Living support grants
Milton Keynes Council,14-Oct-22,51500804410,£910.00,Northampton Saints Foundation,Children's Services,High Needs Block,Independent School Placements
Milton Keynes Council,14-Oct-22,51500803282,£920.78,Social Care Solutions Ltd,Adult Services,Learning Disability,Living support grants
Milton Keynes Council,14-Oct-22,51500802382,£926.40,Verifile Limited,Finance & Resources - Services,HR,Professional Fees and Hired Services
Milton Keynes Council,14-Oct-22,51500802969,£928.56,Macintyre Care,Adult Services,Learning Disability,Homecare
Milton Keynes Council,14-Oct-22,51500802933,£928.56,Macintyre Care,Adult Services,Learning Disability,Homecare
Milton Keynes Council,14-Oct-22,51500802971,£928.56,Macintyre Care,Adult Services,Learning Disability,Homecare
Milton Keynes Council,14-Oct-22,51500803294,£939.44,Macintyre Care,Adult Services,Learning Disability,Living support grants
Milton Keynes Council,14-Oct-22,51500803268,£951.36,Fremantle Trust,Adult Services,Learning Disability,Living support grants
Milton Keynes Council,14-Oct-22,51500803488,£970.75,Infinate Limited,Adult Services,Mental Health,Living support grants
Milton Keynes Council,14-Oct-22,51500803470,£972.72,Intrust Care Ltd,Adult Services,Learning Disability,Living support grants
Milton Keynes Council,14-Oct-22,51500800938,£975.00,Redacted Personal Data,Customer and Community Services,Policy & Performance,Rents and Leases
Milton Keynes Council,14-Oct-22,51500803658,£996.10,HC-One Oval Limited,Adult Services,Commissioning & Contracts,Residential Care
Milton Keynes Council,14-Oct-22,51500803649,£996.10,HC-One Oval Limited,Adult Services,Commissioning & Contracts,Residential Care
Milton Keynes Council,14-Oct-22,51500803328,£999.88,Care Support MK Ltd,Adult Services,Learning Disability,Living support grants
Milton Keynes Council,14-Oct-22,51500804504,"£1,003.20",Redacted Personal Data,Children's Services,"Sufficiency, Access and Attendance",Car mileage and allowances - other
Milton Keynes Council,14-Oct-22,51500803239,"£1,005.68",Fremantle Trust,Adult Services,Learning Disability,Living support grants
Milton Keynes Council,14-Oct-22,51500803079,"£1,006.16",Camphill Milton Keynes Communities,Adult Services,Learning Disability,Living support grants
Milton Keynes Council,14-Oct-22,51500803361,"£1,019.32",Infinate Limited,Adult Services,Learning Disability,Living support grants
Milton Keynes Council,14-Oct-22,51500803242,"£1,041.16",Fremantle Trust,Adult Services,Learning Disability,Living support grants
Milton Keynes Council,14-Oct-22,51500803158,"£1,044.84",Fremantle Trust,Adult Services,Learning Disability,Living support grants
Milton Keynes Council,14-Oct-22,51500803233,"£1,055.64",Fremantle Trust,Adult Services,Learning Disability,Living support grants
Milton Keynes Council,14-Oct-22,51500803020,"£1,078.80",Thrift Activity Farm Ltd,Adult Services,Learning Disability,Homecare
Milton Keynes Council,14-Oct-22,51500803151,"£1,083.52",Fremantle Trust,Adult Services,Learning Disability,Living support grants
Milton Keynes Council,14-Oct-22,51500803423,"£1,084.44",Infinate Limited,Adult Services,Mental Health,Living support grants
Milton Keynes Council,14-Oct-22,51500803120,"£1,084.88",Camphill Milton Keynes Communities,Adult Services,Learning Disability,Living support grants
Milton Keynes Council,14-Oct-22,51500803362,"£1,084.88",Infinate Limited,Adult Services,Learning Disability,Living support grants
Milton Keynes Council,14-Oct-22,51500803481,"£1,084.88",Destiny International Care Ltd,Adult Services,Autism,Living support grants
Milton Keynes Council,14-Oct-22,51500803480,"£1,084.88",Favour Health Ltd,Adult Services,Autism,Living support grants
Milton Keynes Council,14-Oct-22,51500803478,"£1,084.88",Favour Health Ltd,Adult Services,Learning Disability,Living support grants
Milton Keynes Council,14-Oct-22,51500803390,"£1,084.88",Infinate Limited,Adult Services,Learning Disability,Living support grants
Milton Keynes Council,14-Oct-22,51500803305,"£1,084.92",Macintyre Care,Adult Services,Learning Disability,Living support grants
Milton Keynes Council,14-Oct-22,51500803382,"£1,084.92",Infinate Limited,Adult Services,Learning Disability,Living support grants
Milton Keynes Council,14-Oct-22,51500803121,"£1,084.92",Camphill Milton Keynes Communities,Adult Services,Learning Disability,Living support grants
Milton Keynes Council,14-Oct-22,51500803365,"£1,084.92",Infinate Limited,Adult Services,Learning Disability,Living support grants
Milton Keynes Council,14-Oct-22,51500803126,"£1,085.04",Camphill Milton Keynes Communities,Adult Services,Learning Disability,Living support grants
Milton Keynes Council,14-Oct-22,51500803127,"£1,085.04",Camphill Milton Keynes Communities,Adult Services,Learning Disability,Living support grants
Milton Keynes Council,14-Oct-22,51500803128,"£1,085.04",Camphill Milton Keynes Communities,Adult Services,Learning Disability,Living support grants
Milton Keynes Council,14-Oct-22,51500803323,"£1,085.04",Care Support MK Ltd,Adult Services,Learning Disability,Living support grants
Milton Keynes Council,14-Oct-22,51500803321,"£1,085.04",Care Support MK Ltd,Adult Services,Learning Disability,Living support grants
Milton Keynes Council,14-Oct-22,51500803220,"£1,085.04",Fremantle Trust,Adult Services,Learning Disability,Living support grants
Milton Keynes Council,14-Oct-22,51500803366,"£1,085.04",Infinate Limited,Adult Services,Learning Disability,Living support grants
Milton Keynes Council,14-Oct-22,51500803494,"£1,087.24",Infinate Limited,Adult Services,Mental Health,Living support grants
Milton Keynes Council,14-Oct-22,51500803497,"£1,087.24",Infinate Limited,Adult Services,Mental Health,Living support grants
Milton Keynes Council,14-Oct-22,51500803491,"£1,087.24",Infinate Limited,Adult Services,Mental Health,Living support grants
Milton Keynes Council,14-Oct-22,51500803412,"£1,092.12",Infinate Limited,Adult Services,Autism,Living support grants
Milton Keynes Council,14-Oct-22,51500803410,"£1,092.60",Infinate Limited,Adult Services,Autism,Living support grants
Milton Keynes Council,14-Oct-22,51500803229,"£1,097.56",Fremantle Trust,Adult Services,Learning Disability,Living support grants
Milton Keynes Council,14-Oct-22,51500800930,"£1,100.00",Redacted Personal Data,Customer and Community Services,Policy & Performance,Rents and Leases
Milton Keynes Council,14-Oct-22,51500803307,"£1,102.40",Macintyre Care,Adult Services,Learning Disability,Living support grants
Milton Keynes Council,14-Oct-22,51500801363,"£1,103.93",Adam HTT Limited T/A Adam,Adult Services,Autism,Domiciliary Care
Milton Keynes Council,14-Oct-22,51500803446,"£1,106.68",Precious Homes Support Limited,Adult Services,Learning Disability,Living support grants
Milton Keynes Council,14-Oct-22,51500803227,"£1,110.81",Fremantle Trust,Adult Services,Learning Disability,Living support grants
Milton Keynes Council,14-Oct-22,51500804233,"£1,114.96",Randall Care Homes Ltd,Adult Services,Mental Health,Residential Care
Milton Keynes Council,14-Oct-22,51500803141,"£1,121.16",Camphill Milton Keynes Communities,Adult Services,Learning Disability,Living support grants
Milton Keynes Council,14-Oct-22,51500802535,"£1,131.84",Wilkin Chapman LLP,Finance & Resources - Services,Revenues and Benefits Service,Debt Recovery
Milton Keynes Council,14-Oct-22,51500802506,"£1,150.00",Phoenix Rising MK C.I.C,Children's Services,High Needs Block,Professional Fees and Hired Services
Milton Keynes Council,14-Oct-22,51500801974,"£1,155.50",Liquid Recruitment Solutions Limited,Env & Prop (HRA),Property & Facilities (HRA),Agency Staff
Milton Keynes Council,14-Oct-22,51500803295,"£1,160.92",Macintyre Care,Adult Services,Learning Disability,Living support grants
Milton Keynes Council,14-Oct-22,51500803184,"£1,161.40",Fremantle Trust,Adult Services,Learning Disability,Living support grants
Milton Keynes Council,14-Oct-22,51500803181,"£1,161.40",Fremantle Trust,Adult Services,Learning Disability,Living support grants
Milton Keynes Council,14-Oct-22,51500803164,"£1,161.84",Fremantle Trust,Adult Services,Learning Disability,Living support grants
Milton Keynes Council,14-Oct-22,51500803384,"£1,164.92",Infinate Limited,Adult Services,Learning Disability,Living support grants
Milton Keynes Council,14-Oct-22,51500802665,"£1,178.88",Ducklings Pre-School Group,Children's Services,High Needs Block,Professional Fees and Hired Services
Milton Keynes Council,14-Oct-22,51500803591,"£1,214.29",Valuecare Ltd Re: Lathbury Manor,Adult Services,Commissioning & Contracts,Residential Care
Milton Keynes Council,14-Oct-22,51500802674,"£1,215.72",Woodlands Day Nursery,Children's Services,High Needs Block,Professional Fees and Hired Services
Milton Keynes Council,14-Oct-22,51500803238,"£1,237.76",Fremantle Trust,Adult Services,Learning Disability,Living support grants
Milton Keynes Council,14-Oct-22,51500803438,"£1,237.76",Turning Point (Services) Ltd,Adult Services,Mental Health,Living support grants
Milton Keynes Council,14-Oct-22,51500801976,"£1,238.04",Liquid Recruitment Solutions Limited,Env & Prop (HRA),Property & Facilities (HRA),Agency Staff
Milton Keynes Council,14-Oct-22,51500802972,"£1,238.08",Macintyre Care,Adult Services,Learning Disability,Homecare
Milton Keynes Council,14-Oct-22,51500802934,"£1,238.08",Macintyre Care,Adult Services,Learning Disability,Homecare
Milton Keynes Council,14-Oct-22,51500803104,"£1,238.84",Camphill Milton Keynes Communities,Adult Services,Learning Disability,Living support grants
Milton Keynes Council,14-Oct-22,51500803103,"£1,238.84",Camphill Milton Keynes Communities,Adult Services,Learning Disability,Living support grants
Milton Keynes Council,14-Oct-22,51500803243,"£1,239.88",Fremantle Trust,Adult Services,Learning Disability,Living support grants
Milton Keynes Council,14-Oct-22,51500803451,"£1,299.84",Precious Homes Support Limited,Adult Services,Learning Disability,Living support grants
Milton Keynes Council,14-Oct-22,51500803462,"£1,309.96",Next Step Support Limited,Adult Services,Mental Health,Living support grants
Milton Keynes Council,14-Oct-22,51500803352,"£1,310.56",Infinate Limited,Adult Services,Learning Disability,Living support grants
Milton Keynes Council,14-Oct-22,51500803302,"£1,315.92",Macintyre Care,Adult Services,Learning Disability,Living support grants
Milton Keynes Council,14-Oct-22,51500803298,"£1,316.04",Macintyre Care,Adult Services,Learning Disability,Living support grants
Milton Keynes Council,14-Oct-22,51500803179,"£1,316.24",Fremantle Trust,Adult Services,Learning Disability,Living support grants
Milton Keynes Council,14-Oct-22,51500803426,"£1,321.84",Lumsden Support Ltd,Adult Services,Learning Disability,Living support grants
Milton Keynes Council,14-Oct-22,51500802672,"£1,326.24",Acorn Day Nursery at New Bradwell,Children's Services,High Needs Block,Professional Fees and Hired Services
Milton Keynes Council,14-Oct-22,51500802671,"£1,326.24",Little Oaks Community Nursery,Children's Services,High Needs Block,Professional Fees and Hired Services
Milton Keynes Council,14-Oct-22,51500802673,"£1,326.24",Woodlands Day Nursery,Children's Services,High Needs Block,Professional Fees and Hired Services
Milton Keynes Council,14-Oct-22,51500803450,"£1,354.44",Precious Homes Support Limited,Adult Services,Learning Disability,Living support grants
Milton Keynes Council,14-Oct-22,51500803088,"£1,354.44",Camphill Milton Keynes Communities,Adult Services,Learning Disability,Living support grants
Milton Keynes Council,14-Oct-22,51500803429,"£1,372.40",Lumsden Living Limited,Adult Services,Mental Health,Living support grants
Milton Keynes Council,14-Oct-22,51500803085,"£1,393.12",Camphill Milton Keynes Communities,Adult Services,Learning Disability,Living support grants
Milton Keynes Council,14-Oct-22,51500803246,"£1,393.44",Fremantle Trust,Adult Services,Learning Disability,Living support grants
Milton Keynes Council,14-Oct-22,51500803101,"£1,393.68",Camphill Milton Keynes Communities,Adult Services,Learning Disability,Living support grants
Milton Keynes Council,14-Oct-22,51500804264,"£1,414.29",Lansglade Homes Ltd t/a Annandale Lodge,Adult Services,Commissioning & Contracts,Nursing Care
Milton Keynes Council,14-Oct-22,51500803441,"£1,415.12",Living Horizon Ltd,Adult Services,Autism,Living support grants
Milton Keynes Council,14-Oct-22,51500803237,"£1,431.16",Fremantle Trust,Adult Services,Learning Disability,Living support grants
Milton Keynes Council,14-Oct-22,51500789809,"£1,440.00",Steven Butler Eric Butler t/a JTS Services,Adult Services,Mental Health,Storage and Archiving
Milton Keynes Council,14-Oct-22,51500803274,"£1,451.17",Fremantle Trust,Adult Services,Learning Disability,Living support grants
Milton Keynes Council,14-Oct-22,51500803168,"£1,456.28",Fremantle Trust,Adult Services,Learning Disability,Living support grants
Milton Keynes Council,14-Oct-22,51500804271,"£1,457.14",Lansglade Homes Ltd t/a Annandale Lodge,Adult Services,Commissioning & Contracts,Nursing Care
Milton Keynes Council,14-Oct-22,51500803444,"£1,459.68",Precious Homes Support Limited,Adult Services,Learning Disability,Living support grants
Milton Keynes Council,14-Oct-22,51500803160,"£1,470.68",Fremantle Trust,Adult Services,Learning Disability,Living support grants
Milton Keynes Council,14-Oct-22,51500803105,"£1,471.12",Camphill Milton Keynes Communities,Adult Services,Learning Disability,Living support grants
Milton Keynes Council,14-Oct-22,51500803163,"£1,471.56",Fremantle Trust,Adult Services,Learning Disability,Living support grants
Milton Keynes Council,14-Oct-22,51500802670,"£1,473.60",Aristo-Tots Nursery School,Children's Services,High Needs Block,Professional Fees and Hired Services
Milton Keynes Council,14-Oct-22,51500803074,"£1,489.64",Autism Care UK Limited,Adult Services,Learning Disability,Living support grants
Milton Keynes Council,14-Oct-22,51500803344,"£1,490.00",Care Support MK Ltd,Adult Services,Mental Health,Living support grants
Milton Keynes Council,14-Oct-22,51500802729,"£1,500.00",Bryson House Ltd t/a My Homecare Milton Keynes,Adult Services,Commissioning & Contracts,Domiciliary Care
Milton Keynes Council,14-Oct-22,51500802726,"£1,500.00",Higher Height Care LTD,Adult Services,Commissioning & Contracts,Domiciliary Care
Milton Keynes Council,14-Oct-22,51500802730,"£1,500.00",Westminster Homecare Ltd,Adult Services,Commissioning & Contracts,Domiciliary Care
Milton Keynes Council,14-Oct-22,51500802725,"£1,500.00",Harmony Home Care Services Limited,Adult Services,Commissioning & Contracts,Domiciliary Care
Milton Keynes Council,14-Oct-22,51500802731,"£1,500.00",Sevacare (UK) Ltd,Adult Services,Commissioning & Contracts,Domiciliary Care
Milton Keynes Council,14-Oct-22,51500802724,"£1,500.00",Calverton Factors Limited Re: ACS Care Services Limited,Adult Services,Commissioning & Contracts,Domiciliary Care
Milton Keynes Council,14-Oct-22,51500802728,"£1,500.00",Gemini Exclusive Care Ltd,Adult Services,Commissioning & Contracts,Domiciliary Care
Milton Keynes Council,14-Oct-22,51500802727,"£1,500.00",Emiran and Associates Limited t/a Emiran Healthcare,Adult Services,Commissioning & Contracts,Domiciliary Care
Milton Keynes Council,14-Oct-22,51500802717,"£1,500.00",Gold Care Management Services Ltd Re: Bletchley House,Adult Services,Commissioning & Contracts,Residential Care
Milton Keynes Council,14-Oct-22,51500802722,"£1,500.00",Excelcare Holdings PLC re:Castlemead Court Care Centre,Adult Services,Commissioning & Contracts,Residential Care
Milton Keynes Council,14-Oct-22,51500802710,"£1,500.00",Parklands Nursing Home,Adult Services,Commissioning & Contracts,Residential Care
Milton Keynes Council,14-Oct-22,51500802716,"£1,500.00",Country Court Care Homes 3 OPCO Ltd,Adult Services,Commissioning & Contracts,Residential Care
Milton Keynes Council,14-Oct-22,51500802720,"£1,500.00",Excelcare Holdings PLC Re: Neath Hill Care Home,Adult Services,Commissioning & Contracts,Residential Care
Milton Keynes Council,14-Oct-22,51500802721,"£1,500.00",Excelcare Holdings PLC Re: Dovecote Manor,Adult Services,Commissioning & Contracts,Residential Care
Milton Keynes Council,14-Oct-22,51500802712,"£1,500.00",Cinnabar Support and Living Ltd Re: The Stratfords Residential Home,Adult Services,Commissioning & Contracts,Residential Care
Milton Keynes Council,14-Oct-22,51500802723,"£1,500.00",Greensleeves Homes Trust Re: Tickford Abbey,Adult Services,Commissioning & Contracts,Residential Care
Milton Keynes Council,14-Oct-22,51500802713,"£1,500.00",Acer Healthcare Operations Limited,Adult Services,Commissioning & Contracts,Residential Care
Milton Keynes Council,14-Oct-22,51500802714,"£1,500.00",HC-One Oval Limited,Adult Services,Commissioning & Contracts,Residential Care
Milton Keynes Council,14-Oct-22,51500802711,"£1,500.00",Cinnabar Support and Living Ltd Re: The Beeches,Adult Services,Commissioning & Contracts,Residential Care
Milton Keynes Council,14-Oct-22,51500802719,"£1,500.00",Excelcare Holdings PLC Re: The Willows Care Centre,Adult Services,Commissioning & Contracts,Residential Care
Milton Keynes Council,14-Oct-22,51500802718,"£1,500.00",London Excel (Ferngrove Care),Adult Services,Commissioning & Contracts,Residential Care
Milton Keynes Council,14-Oct-22,51500802715,"£1,500.00",Sanctuary Care Ltd Re: Caton House,Adult Services,Commissioning & Contracts,Residential Care
Milton Keynes Council,14-Oct-22,51500803205,"£1,519.92",Fremantle Trust,Adult Services,Learning Disability,Living support grants
Milton Keynes Council,14-Oct-22,51500803549,"£1,524.34",Barchester Healthcare Homes Ltd Re: Ashby House Care Home,Adult Services,Commissioning & Contracts,Client Care Contributions
Milton Keynes Council,14-Oct-22,51500803406,"£1,528.92",Infinate Limited,Adult Services,Autism,Living support grants
Milton Keynes Council,14-Oct-22,51500803354,"£1,528.96",Infinate Limited,Adult Services,Learning Disability,Living support grants
Milton Keynes Council,14-Oct-22,51500803138,"£1,547.52",Camphill Milton Keynes Communities,Adult Services,Mental Health,Living support grants
Milton Keynes Council,14-Oct-22,51500802935,"£1,547.60",Macintyre Care,Adult Services,Learning Disability,Homecare
Milton Keynes Council,14-Oct-22,51500803094,"£1,547.92",Camphill Milton Keynes Communities,Adult Services,Learning Disability,Living support grants
Milton Keynes Council,14-Oct-22,51500803299,"£1,547.92",Macintyre Care,Adult Services,Learning Disability,Living support grants
Milton Keynes Council,14-Oct-22,51500803309,"£1,547.92",Care Support MK Ltd,Adult Services,Learning Disability,Living support grants
Milton Keynes Council,14-Oct-22,51500803180,"£1,548.08",Fremantle Trust,Adult Services,Learning Disability,Living support grants
Milton Keynes Council,14-Oct-22,51500803303,"£1,548.20",Macintyre Care,Adult Services,Learning Disability,Living support grants
Milton Keynes Council,14-Oct-22,51500803398,"£1,556.28",Infinate Limited,Adult Services,Mental Health,Living support grants
Milton Keynes Council,14-Oct-22,51500802500,"£1,562.81",Redacted Personal Data,Children's Services,Safeguarding,Other Travel Allowances
Milton Keynes Council,14-Oct-22,51500803251,"£1,585.88",Fremantle Trust,Adult Services,Learning Disability,Living support grants
Milton Keynes Council,14-Oct-22,51500802095,"£1,586.14",Milton Keynes Village Practice,Public Health,NHS Health Check Programme,Professional Fees and Hired Services
Milton Keynes Council,14-Oct-22,51500803078,"£1,586.60",Camphill Milton Keynes Communities,Adult Services,Learning Disability,Living support grants
Milton Keynes Council,14-Oct-22,51500803228,"£1,610.04",Fremantle Trust,Adult Services,Learning Disability,Living support grants
Milton Keynes Council,14-Oct-22,51500803659,"£1,613.15",HC-One Oval Limited,Adult Services,Commissioning & Contracts,Residential Care
Milton Keynes Council,14-Oct-22,51500803435,"£1,646.92",Mentaur Community Support Ltd,Adult Services,Autism,Living support grants
Milton Keynes Council,14-Oct-22,51500803099,"£1,663.88",Camphill Milton Keynes Communities,Adult Services,Learning Disability,Living support grants
Milton Keynes Council,14-Oct-22,51500803102,"£1,672.96",Camphill Milton Keynes Communities,Adult Services,Learning Disability,Living support grants
Milton Keynes Council,14-Oct-22,51500803392,"£1,674.60",Infinate Limited,Adult Services,Learning Disability,Living support grants
Milton Keynes Council,14-Oct-22,51500804154,"£1,696.43",Avery Homes (Nelson) Limited re Milton Court Care Home,Adult Services,Mental Health,Residential Care
Milton Keynes Council,14-Oct-22,51500803468,"£1,701.92",Intrust Care Ltd,Adult Services,Learning Disability,Living support grants
Milton Keynes Council,14-Oct-22,51500803183,"£1,702.68",Fremantle Trust,Adult Services,Learning Disability,Living support grants
Milton Keynes Council,14-Oct-22,51500803096,"£1,702.68",Camphill Milton Keynes Communities,Adult Services,Learning Disability,Living support grants
Milton Keynes Council,14-Oct-22,51500803514,"£1,710.80",Infinate Limited,Adult Services,Learning Disability,Living support grants
Milton Keynes Council,14-Oct-22,51500803082,"£1,718.12",Camphill Milton Keynes Communities,Adult Services,Learning Disability,Living support grants
Milton Keynes Council,14-Oct-22,51500800898,"£1,721.50",EVASSA Ltd,Children's Services,Education Improvement and Effectiveness Service,Consultancy
Milton Keynes Council,14-Oct-22,51500803483,"£1,725.12",Sunrise Care Ltd,Adult Services,Mental Health,Living support grants
Milton Keynes Council,14-Oct-22,51500803461,"£1,747.00",Next Step Support Limited,Adult Services,Mental Health,Living support grants
Milton Keynes Council,14-Oct-22,51500804205,"£1,772.48",Simply Carehome Ltd,Adult Services,Commissioning & Contracts,Nursing Care
Milton Keynes Council,14-Oct-22,51500803109,"£1,780.80",Camphill Milton Keynes Communities,Adult Services,Learning Disability,Living support grants
Milton Keynes Council,14-Oct-22,51500803194,"£1,780.80",Fremantle Trust,Adult Services,Learning Disability,Living support grants
Milton Keynes Council,14-Oct-22,51500803348,"£1,783.76",Infinate Limited,Adult Services,Learning Disability,Living support grants
Milton Keynes Council,14-Oct-22,51500803090,"£1,805.88",Camphill Milton Keynes Communities,Adult Services,Learning Disability,Living support grants
Milton Keynes Council,14-Oct-22,51500797773,"£1,809.60",B Kent Electrical Ltd,Environment & Property,Property,Building Repair and Maintenance
Milton Keynes Council,14-Oct-22,51500797776,"£1,813.20",B Kent Electrical Ltd,Environment & Property,Property,Building Repair and Maintenance
Milton Keynes Council,14-Oct-22,51500803089,"£1,813.80",Camphill Milton Keynes Communities,Adult Services,Learning Disability,Living support grants
Milton Keynes Council,14-Oct-22,51500804327,"£1,818.57",K Lodge Care Home Limited,Adult Services,Commissioning & Contracts,Residential Care
Milton Keynes Council,14-Oct-22,51500803143,"£1,819.08",Fremantle Trust,Adult Services,Learning Disability,Living support grants
Milton Keynes Council,14-Oct-22,51500803353,"£1,820.20",Infinate Limited,Adult Services,Learning Disability,Living support grants
Milton Keynes Council,14-Oct-22,51500803135,"£1,857.96",Camphill Milton Keynes Communities,Adult Services,Learning Disability,Living support grants
Milton Keynes Council,14-Oct-22,51500803486,"£1,864.93",Infinate Limited,Adult Services,Mental Health,Living support grants
Milton Keynes Council,14-Oct-22,51500803750,"£1,882.04",Apex Care Homes Ltd Re Crescent Nursing Home,Adult Services,Mental Health,Residential Care
Milton Keynes Council,14-Oct-22,51500803256,"£1,885.00",Fremantle Trust,Adult Services,Learning Disability,Living support grants
Milton Keynes Council,14-Oct-22,51500803465,"£1,888.12",Next Step Support Limited,Adult Services,Mental Health,Living support grants
Milton Keynes Council,14-Oct-22,51500804155,"£1,900.00",Avery Homes (Nelson) Limited re Milton Court Care Home,Adult Services,Mental Health,Residential Care
Milton Keynes Council,14-Oct-22,51500803166,"£1,936.64",Fremantle Trust,Adult Services,Learning Disability,Living support grants
Milton Keynes Council,14-Oct-22,51500802965,"£1,970.80",Macintyre Care,Adult Services,Learning Disability,Homecare
Milton Keynes Council,14-Oct-22,51500803185,"£1,974.36",Fremantle Trust,Adult Services,Learning Disability,Living support grants
Milton Keynes Council,14-Oct-22,51500803187,"£1,974.40",Fremantle Trust,Adult Services,Learning Disability,Living support grants
Milton Keynes Council,14-Oct-22,51500803457,"£1,976.84",Protea Care Homes (Kent) Ltd,Adult Services,Mental Health,Living support grants
Milton Keynes Council,14-Oct-22,51500803885,"£1,984.00",Sanctuary Care Ltd Re: Caton House,Adult Services,Commissioning & Contracts,Residential Care
Milton Keynes Council,14-Oct-22,51500802577,"£1,984.56",Wilkin Chapman LLP,Finance & Resources - Services,Revenues and Benefits Service,Debt Recovery
Milton Keynes Council,14-Oct-22,51500804302,"£1,991.00",Gracewell of Maids Moreton,Adult Services,Commissioning & Contracts,Residential Care
Milton Keynes Council,14-Oct-22,51500803108,"£2,051.80",Camphill Milton Keynes Communities,Adult Services,Learning Disability,Living support grants
Milton Keynes Council,14-Oct-22,51500803394,"£2,056.48",Infinate Limited,Adult Services,Mental Health,Living support grants
Milton Keynes Council,14-Oct-22,51500803889,"£2,064.29",Avery Homes (Nelson) Limited re Milton Court Care Home,Adult Services,Commissioning & Contracts,Nursing Care
Milton Keynes Council,14-Oct-22,51500803136,"£2,073.72",Camphill Milton Keynes Communities,Adult Services,Autism,Living support grants
Milton Keynes Council,14-Oct-22,51500803532,"£2,075.91",Next Step Support Limited,Adult Services,Mental Health,Living support grants
Milton Keynes Council,14-Oct-22,51500803489,"£2,088.72",Infinate Limited,Adult Services,Mental Health,Living support grants
Milton Keynes Council,14-Oct-22,51500803482,"£2,088.72",Destiny International Care Ltd,Adult Services,Autism,Living support grants
Milton Keynes Council,14-Oct-22,51500803495,"£2,088.72",Infinate Limited,Adult Services,Mental Health,Living support grants
Milton Keynes Council,14-Oct-22,51500803492,"£2,088.72",Infinate Limited,Adult Services,Mental Health,Living support grants
Milton Keynes Council,14-Oct-22,51500803479,"£2,088.72",Favour Health Ltd,Adult Services,Autism,Living support grants
Milton Keynes Council,14-Oct-22,51500803162,"£2,090.80",Fremantle Trust,Adult Services,Learning Disability,Living support grants
Milton Keynes Council,14-Oct-22,51500804267,"£2,120.60",Shaftesbury Court (High Street) T/A Sanctuary Home Care Limited,Adult Services,Learning Disability,Client Care Contributions
Milton Keynes Council,14-Oct-22,51500804269,"£2,120.60",Shaftesbury Court (High Street) T/A Sanctuary Home Care Limited,Adult Services,Learning Disability,Client Care Contributions
Milton Keynes Council,14-Oct-22,51500804268,"£2,120.60",Shaftesbury Court (High Street) T/A Sanctuary Home Care Limited,Adult Services,Learning Disability,Client Care Contributions
Milton Keynes Council,14-Oct-22,51500803391,"£2,166.08",Infinate Limited,Adult Services,Learning Disability,Living support grants
Milton Keynes Council,14-Oct-22,51500803235,"£2,166.08",Fremantle Trust,Adult Services,Learning Disability,Living support grants
Milton Keynes Council,14-Oct-22,51500803473,"£2,166.08",Intrust Care Ltd,Adult Services,Mental Health,Living support grants
Milton Keynes Council,14-Oct-22,51500803084,"£2,167.04",Camphill Milton Keynes Communities,Adult Services,Learning Disability,Living support grants
Milton Keynes Council,14-Oct-22,51500803320,"£2,169.80",Care Support MK Ltd,Adult Services,Learning Disability,Living support grants
Milton Keynes Council,14-Oct-22,51500803422,"£2,169.80",Infinate Limited,Adult Services,Mental Health,Living support grants
Milton Keynes Council,14-Oct-22,51500803319,"£2,169.80",Care Support MK Ltd,Adult Services,Learning Disability,Living support grants
Milton Keynes Council,14-Oct-22,51500803335,"£2,169.84",Care Support MK Ltd,Adult Services,Learning Disability,Living support grants
Milton Keynes Council,14-Oct-22,51500803324,"£2,169.92",Care Support MK Ltd,Adult Services,Learning Disability,Living support grants
Milton Keynes Council,14-Oct-22,51500803333,"£2,169.92",Care Support MK Ltd,Adult Services,Learning Disability,Living support grants
Milton Keynes Council,14-Oct-22,51500803364,"£2,169.92",Infinate Limited,Adult Services,Learning Disability,Living support grants
Milton Keynes Council,14-Oct-22,51500803067,"£2,169.92",Autism Care UK Limited,Adult Services,Learning Disability,Living support grants
Milton Keynes Council,14-Oct-22,51500803266,"£2,169.92",Fremantle Trust,Adult Services,Learning Disability,Living support grants
Milton Keynes Council,14-Oct-22,51500803325,"£2,169.92",Care Support MK Ltd,Adult Services,Learning Disability,Living support grants
Milton Keynes Council,14-Oct-22,51500803330,"£2,169.92",Care Support MK Ltd,Adult Services,Learning Disability,Living support grants
Milton Keynes Council,14-Oct-22,51500803322,"£2,170.04",Care Support MK Ltd,Adult Services,Learning Disability,Living support grants
Milton Keynes Council,14-Oct-22,51500803460,"£2,180.16",Parkcare Homes No 2 Ltd t/a Aire House,Adult Services,Mental Health,Living support grants
Milton Keynes Council,14-Oct-22,51500803083,"£2,190.28",Camphill Milton Keynes Communities,Adult Services,Learning Disability,Living support grants
Milton Keynes Council,14-Oct-22,51500803443,"£2,194.72",Living Horizon Ltd,Adult Services,Mental Health,Living support grants
Milton Keynes Council,14-Oct-22,51500803234,"£2,204.76",Fremantle Trust,Adult Services,Learning Disability,Living support grants
Milton Keynes Council,14-Oct-22,51500803284,"£2,214.29",Central & North West London NHS Foundation Trust,Adult Services,Mental Health,Living support grants
Milton Keynes Council,14-Oct-22,51500803131,"£2,223.36",Camphill Milton Keynes Communities,Adult Services,Learning Disability,Living support grants
Milton Keynes Council,14-Oct-22,51500803327,"£2,227.12",Care Support MK Ltd,Adult Services,Learning Disability,Living support grants
Milton Keynes Council,14-Oct-22,51500803439,"£2,227.52",Living Horizon Ltd,Adult Services,Mental Health,Living support grants
Milton Keynes Council,14-Oct-22,51500790601,"£2,291.82",Kingsfield Computer Products Ltd,Finance & Resources - Services,ICT,Mobile Phones
Milton Keynes Council,14-Oct-22,51500803363,"£2,293.44",Infinate Limited,Adult Services,Learning Disability,Living support grants
Milton Keynes Council,14-Oct-22,51500804279,"£2,295.06",K Lodge Care Home Limited,Adult Services,Commissioning & Contracts,Residential Care
Milton Keynes Council,14-Oct-22,51500803343,"£2,302.88",Care Support MK Ltd,Adult Services,Mental Health,Living support grants
Milton Keynes Council,14-Oct-22,51500803341,"£2,302.88",Care Support MK Ltd,Adult Services,Mental Health,Living support grants
Milton Keynes Council,14-Oct-22,51500803453,"£2,303.04",Precious Homes Support Limited,Adult Services,Learning Disability,Living support grants
Milton Keynes Council,14-Oct-22,51500804106,"£2,305.40",Tyringham Care Ltd,Adult Services,Mental Health,Residential Care
Milton Keynes Council,14-Oct-22,51500803501,"£2,306.52",Fremantle Trust,Adult Services,Learning Disability,Living support grants
Milton Keynes Council,14-Oct-22,51500803499,"£2,306.52",Fremantle Trust,Adult Services,Learning Disability,Living support grants
Milton Keynes Council,14-Oct-22,51500803279,"£2,306.52",Fremantle Trust,Adult Services,Learning Disability,Living support grants
Milton Keynes Council,14-Oct-22,51500803277,"£2,306.52",Fremantle Trust,Adult Services,Learning Disability,Living support grants
Milton Keynes Council,14-Oct-22,51500803281,"£2,306.52",Fremantle Trust,Adult Services,Learning Disability,Living support grants
Milton Keynes Council,14-Oct-22,51500803275,"£2,306.52",Fremantle Trust,Adult Services,Learning Disability,Living support grants
Milton Keynes Council,14-Oct-22,51500802668,"£2,357.76",Little Oaks Community Nursery,Children's Services,High Needs Block,Professional Fees and Hired Services
Milton Keynes Council,14-Oct-22,51500803904,"£2,367.43",Avery Homes (Nelson) Limited re Milton Court Care Home,Adult Services,Commissioning & Contracts,Residential Care
Milton Keynes Council,14-Oct-22,51500803504,"£2,385.87",Macintyre Care,Adult Services,Learning Disability,Living support grants
Milton Keynes Council,14-Oct-22,51500803440,"£2,396.32",Living Horizon Ltd,Adult Services,Mental Health,Living support grants
Milton Keynes Council,14-Oct-22,51500803133,"£2,400.80",Camphill Milton Keynes Communities,Adult Services,Learning Disability,Living support grants
Milton Keynes Council,14-Oct-22,51500803909,"£2,428.57",Avery Homes (Nelson) Limited re Milton Court Care Home,Adult Services,Commissioning & Contracts,Residential Care
Milton Keynes Council,14-Oct-22,51500803906,"£2,428.57",Avery Homes (Nelson) Limited re Milton Court Care Home,Adult Services,Commissioning & Contracts,Residential Care
Milton Keynes Council,14-Oct-22,51500803259,"£2,429.96",Fremantle Trust,Adult Services,Learning Disability,Living support grants
Milton Keynes Council,14-Oct-22,51500803874,"£2,435.71",Burlington Care Homes Ltd Re: Burlington Hall Care Home,Adult Services,Commissioning & Contracts,Residential Care
Milton Keynes Council,14-Oct-22,51500803477,"£2,436.84",Favour Health Ltd,Adult Services,Learning Disability,Living support grants
Milton Keynes Council,14-Oct-22,51500803081,"£2,437.96",Camphill Milton Keynes Communities,Adult Services,Learning Disability,Living support grants
Milton Keynes Council,14-Oct-22,51500803112,"£2,437.96",Camphill Milton Keynes Communities,Adult Services,Learning Disability,Living support grants
Milton Keynes Council,14-Oct-22,51500803340,"£2,442.60",Care Support MK Ltd,Adult Services,Learning Disability,Living support grants
Milton Keynes Council,14-Oct-22,51500803463,"£2,450.56",Next Step Support Limited,Adult Services,Mental Health,Living support grants
Milton Keynes Council,14-Oct-22,51500804215,"£2,463.52",Gold Care Management Services Ltd Re: Bletchley House,Adult Services,Commissioning & Contracts,Residential Care
Milton Keynes Council,14-Oct-22,51500803665,"£2,467.18",HC-One Oval Limited,Adult Services,Commissioning & Contracts,Residential Care
Milton Keynes Council,14-Oct-22,51500804278,"£2,471.60",K Lodge Care Home Limited,Adult Services,Commissioning & Contracts,Residential Care
Milton Keynes Council,14-Oct-22,51500803100,"£2,476.56",Camphill Milton Keynes Communities,Adult Services,Learning Disability,Living support grants
Milton Keynes Council,14-Oct-22,51500803296,"£2,476.64",Macintyre Care,Adult Services,Learning Disability,Living support grants
Milton Keynes Council,14-Oct-22,51500803249,"£2,477.28",Fremantle Trust,Adult Services,Learning Disability,Living support grants
Milton Keynes Council,14-Oct-22,51500803884,"£2,480.00",Sanctuary Care Ltd Re: Caton House,Adult Services,Commissioning & Contracts,Residential Care
Milton Keynes Council,14-Oct-22,51500803900,"£2,485.71",Avery Homes (Nelson) Limited re Milton Court Care Home,Adult Services,Commissioning & Contracts,Residential Care
Milton Keynes Council,14-Oct-22,51500804361,"£2,488.57",GCH (Hertfordshire) Ltd,Adult Services,Commissioning & Contracts,Residential Care
Milton Keynes Council,14-Oct-22,51500803602,"£2,514.96",Greensleeves Homes Trust Re: Tickford Abbey,Adult Services,Commissioning & Contracts,Residential Care
Milton Keynes Council,14-Oct-22,51500803651,"£2,535.52",HC-One Oval Limited,Adult Services,Commissioning & Contracts,Residential Care
Milton Keynes Council,14-Oct-22,51500803654,"£2,535.52",HC-One Oval Limited,Adult Services,Commissioning & Contracts,Residential Care
Milton Keynes Council,14-Oct-22,51500803656,"£2,535.52",HC-One Oval Limited,Adult Services,Commissioning & Contracts,Residential Care
Milton Keynes Council,14-Oct-22,51500803657,"£2,535.52",HC-One Oval Limited,Adult Services,Commissioning & Contracts,Residential Care
Milton Keynes Council,14-Oct-22,51500803653,"£2,535.52",HC-One Oval Limited,Adult Services,Commissioning & Contracts,Residential Care
Milton Keynes Council,14-Oct-22,51500803655,"£2,535.52",HC-One Oval Limited,Adult Services,Commissioning & Contracts,Residential Care
Milton Keynes Council,14-Oct-22,51500803652,"£2,535.52",HC-One Oval Limited,Adult Services,Commissioning & Contracts,Residential Care
Milton Keynes Council,14-Oct-22,51500803650,"£2,535.52",HC-One Oval Limited,Adult Services,Commissioning & Contracts,Residential Care
Milton Keynes Council,14-Oct-22,51500803283,"£2,546.43",Central & North West London NHS Foundation Trust,Adult Services,Mental Health,Living support grants
Milton Keynes Council,14-Oct-22,51500803413,"£2,548.28",Infinate Limited,Adult Services,Autism,Living support grants
Milton Keynes Council,14-Oct-22,51500803387,"£2,548.28",Infinate Limited,Adult Services,Learning Disability,Living support grants
Milton Keynes Council,14-Oct-22,51500803263,"£2,554.64",Fremantle Trust,Adult Services,Learning Disability,Living support grants
Milton Keynes Council,14-Oct-22,51500803095,"£2,570.72",Camphill Milton Keynes Communities,Adult Services,Learning Disability,Living support grants
Milton Keynes Council,14-Oct-22,51500803178,"£2,593.04",Fremantle Trust,Adult Services,Learning Disability,Living support grants
Milton Keynes Council,14-Oct-22,51500803186,"£2,593.36",Fremantle Trust,Adult Services,Learning Disability,Living support grants
Milton Keynes Council,14-Oct-22,51500803080,"£2,599.84",Camphill Milton Keynes Communities,Adult Services,Learning Disability,Living support grants
Milton Keynes Council,14-Oct-22,51500803171,"£2,612.72",Fremantle Trust,Adult Services,Learning Disability,Living support grants
Milton Keynes Council,14-Oct-22,51500803530,"£2,630.24",Precious Homes Support Limited,Adult Services,Learning Disability,Living support grants
Milton Keynes Council,14-Oct-22,51500803526,"£2,630.24",Precious Homes Support Limited,Adult Services,Learning Disability,Living support grants
Milton Keynes Council,14-Oct-22,51500803524,"£2,630.24",Precious Homes Support Limited,Adult Services,Learning Disability,Living support grants
Milton Keynes Council,14-Oct-22,51500803531,"£2,630.24",Precious Homes Support Limited,Adult Services,Learning Disability,Living support grants
Milton Keynes Council,14-Oct-22,51500803528,"£2,630.24",Precious Homes Support Limited,Adult Services,Learning Disability,Living support grants
Milton Keynes Council,14-Oct-22,51500803152,"£2,631.44",Fremantle Trust,Adult Services,Learning Disability,Living support grants
Milton Keynes Council,14-Oct-22,51500803148,"£2,631.44",Fremantle Trust,Adult Services,Learning Disability,Living support grants
Milton Keynes Council,14-Oct-22,51500803252,"£2,632.08",Fremantle Trust,Adult Services,Learning Disability,Living support grants
Milton Keynes Council,14-Oct-22,51500803732,"£2,633.92",Linkage Community Trust,Adult Services,Learning Disability,Residential Care
Milton Keynes Council,14-Oct-22,51500803661,"£2,656.96",HC-One Oval Limited,Adult Services,Commissioning & Contracts,Residential Care
Milton Keynes Council,14-Oct-22,51500803662,"£2,656.96",HC-One Oval Limited,Adult Services,Commissioning & Contracts,Residential Care
Milton Keynes Council,14-Oct-22,51500803663,"£2,656.96",HC-One Oval Limited,Adult Services,Commissioning & Contracts,Residential Care
Milton Keynes Council,14-Oct-22,51500803664,"£2,656.96",HC-One Oval Limited,Adult Services,Commissioning & Contracts,Residential Care
Milton Keynes Council,14-Oct-22,51500803660,"£2,656.96",HC-One Oval Limited,Adult Services,Commissioning & Contracts,Residential Care
Milton Keynes Council,14-Oct-22,51500803150,"£2,670.12",Fremantle Trust,Adult Services,Learning Disability,Living support grants
Milton Keynes Council,14-Oct-22,51500804136,"£2,680.00",Eminence Care Service (Broomfield) Ltd Re:Broomfield Residential Care,Adult Services,Commissioning & Contracts,Residential Care
Milton Keynes Council,14-Oct-22,51500804138,"£2,680.00",Eminence Care Service (Broomfield) Ltd Re:Broomfield Residential Care,Adult Services,Commissioning & Contracts,Residential Care
Milton Keynes Council,14-Oct-22,51500804350,"£2,680.00",Gold Care Management Services Ltd Re: Bletchley House,Adult Services,Commissioning & Contracts,Residential Care
Milton Keynes Council,14-Oct-22,51500803621,"£2,680.00",Greensleeves Homes Trust Re: Tickford Abbey,Adult Services,Commissioning & Contracts,Residential Care
Milton Keynes Council,14-Oct-22,51500803973,"£2,680.00",Avery Homes (Nelson) Limited re Milton Court Care Home,Adult Services,Commissioning & Contracts,Residential Care
Milton Keynes Council,14-Oct-22,51500803929,"£2,680.00",Acer Healthcare Operations Limited,Adult Services,Commissioning & Contracts,Residential Care
Milton Keynes Council,14-Oct-22,51500804358,"£2,680.00",Gold Care Management Services Ltd Re: Bletchley House,Adult Services,Commissioning & Contracts,Residential Care
Milton Keynes Council,14-Oct-22,51500804076,"£2,680.00",Olney Care Homes Limited T/a Bay House Residential Care Home,Adult Services,Commissioning & Contracts,Residential Care
Milton Keynes Council,14-Oct-22,51500804191,"£2,680.00",Avery Homes (Nelson) Limited re Milton Court Care Home,Adult Services,Commissioning & Contracts,Residential Care
Milton Keynes Council,14-Oct-22,51500803980,"£2,680.00",Avery Homes (Nelson) Limited re Milton Court Care Home,Adult Services,Commissioning & Contracts,Residential Care
Milton Keynes Council,14-Oct-22,51500804346,"£2,680.00",Gold Care Management Services Ltd Re: Bletchley House,Adult Services,Commissioning & Contracts,Residential Care
Milton Keynes Council,14-Oct-22,51500804139,"£2,680.00",Eminence Care Service (Broomfield) Ltd Re:Broomfield Residential Care,Adult Services,Commissioning & Contracts,Residential Care
Milton Keynes Council,14-Oct-22,51500803974,"£2,680.00",Avery Homes (Nelson) Limited re Milton Court Care Home,Adult Services,Commissioning & Contracts,Residential Care
Milton Keynes Council,14-Oct-22,51500803975,"£2,680.00",Avery Homes (Nelson) Limited re Milton Court Care Home,Adult Services,Commissioning & Contracts,Residential Care
Milton Keynes Council,14-Oct-22,51500804357,"£2,680.00",Gold Care Management Services Ltd Re: Bletchley House,Adult Services,Commissioning & Contracts,Residential Care
Milton Keynes Council,14-Oct-22,51500804141,"£2,680.00",Eminence Care Service (Broomfield) Ltd Re:Broomfield Residential Care,Adult Services,Commissioning & Contracts,Residential Care
Milton Keynes Council,14-Oct-22,51500804145,"£2,680.00",Eminence Care Service (Broomfield) Ltd Re:Broomfield Residential Care,Adult Services,Commissioning & Contracts,Residential Care
Milton Keynes Council,14-Oct-22,51500803680,"£2,680.00",HC-One Oval Limited,Adult Services,Commissioning & Contracts,Residential Care
Milton Keynes Council,14-Oct-22,51500804150,"£2,680.00",Methodist Homes,Adult Services,Commissioning & Contracts,Residential Care
Milton Keynes Council,14-Oct-22,51500803620,"£2,680.00",Greensleeves Homes Trust Re: Tickford Abbey,Adult Services,Commissioning & Contracts,Residential Care
Milton Keynes Council,14-Oct-22,51500804115,"£2,680.00",Tyringham Care Ltd,Adult Services,Commissioning & Contracts,Residential Care
Milton Keynes Council,14-Oct-22,51500804351,"£2,680.00",Gold Care Management Services Ltd Re: Bletchley House,Adult Services,Commissioning & Contracts,Residential Care
Milton Keynes Council,14-Oct-22,51500803622,"£2,680.00",Greensleeves Homes Trust Re: Tickford Abbey,Adult Services,Commissioning & Contracts,Residential Care
Milton Keynes Council,14-Oct-22,51500804173,"£2,680.00",Eminence Care Service (Broomfield) Ltd Re:Broomfield Residential Care,Adult Services,Commissioning & Contracts,Residential Care
Milton Keynes Council,14-Oct-22,51500803923,"£2,680.00",Burlington Care Homes Ltd Re: Burlington Hall Care Home,Adult Services,Commissioning & Contracts,Residential Care
Milton Keynes Council,14-Oct-22,51500804079,"£2,680.00",Olney Care Homes Limited T/a Bay House Residential Care Home,Adult Services,Commissioning & Contracts,Residential Care
Milton Keynes Council,14-Oct-22,51500804091,"£2,680.00",Olney Care Homes Limited T/a Bay House Residential Care Home,Adult Services,Commissioning & Contracts,Residential Care
Milton Keynes Council,14-Oct-22,51500804090,"£2,680.00",Olney Care Homes Limited T/a Bay House Residential Care Home,Adult Services,Commissioning & Contracts,Residential Care
Milton Keynes Council,14-Oct-22,51500804347,"£2,680.00",Gold Care Management Services Ltd Re: Bletchley House,Adult Services,Commissioning & Contracts,Residential Care
Milton Keynes Council,14-Oct-22,51500804135,"£2,680.00",Eminence Care Service (Broomfield) Ltd Re:Broomfield Residential Care,Adult Services,Commissioning & Contracts,Residential Care
Milton Keynes Council,14-Oct-22,51500804175,"£2,680.00",Eminence Care Service (Broomfield) Ltd Re:Broomfield Residential Care,Adult Services,Commissioning & Contracts,Residential Care
Milton Keynes Council,14-Oct-22,51500804176,"£2,680.00",Eminence Care Service (Broomfield) Ltd Re:Broomfield Residential Care,Adult Services,Commissioning & Contracts,Residential Care
Milton Keynes Council,14-Oct-22,51500804317,"£2,680.00",Simply Carehome Ltd,Adult Services,Commissioning & Contracts,Residential Care
Milton Keynes Council,14-Oct-22,51500803979,"£2,680.00",Avery Homes (Nelson) Limited re Milton Court Care Home,Adult Services,Commissioning & Contracts,Residential Care
Milton Keynes Council,14-Oct-22,51500804174,"£2,680.00",Eminence Care Service (Broomfield) Ltd Re:Broomfield Residential Care,Adult Services,Commissioning & Contracts,Residential Care
Milton Keynes Council,14-Oct-22,51500803978,"£2,680.00",Avery Homes (Nelson) Limited re Milton Court Care Home,Adult Services,Commissioning & Contracts,Residential Care
Milton Keynes Council,14-Oct-22,51500803563,"£2,680.00",Barchester Healthcare Homes Ltd Re: Ashby House Care Home,Adult Services,Commissioning & Contracts,Nursing Care
Milton Keynes Council,14-Oct-22,51500803977,"£2,680.00",Avery Homes (Nelson) Limited re Milton Court Care Home,Adult Services,Commissioning & Contracts,Nursing Care
Milton Keynes Council,14-Oct-22,51500804352,"£2,680.00",Greenswan Consultant Limited t/a Pinelodge Care Home,Adult Services,Commissioning & Contracts,Nursing Care
Milton Keynes Council,14-Oct-22,51500804147,"£2,680.00",Methodist Homes,Adult Services,Commissioning & Contracts,Nursing Care
Milton Keynes Council,14-Oct-22,51500804146,"£2,680.00",Methodist Homes,Adult Services,Commissioning & Contracts,Nursing Care
Milton Keynes Council,14-Oct-22,51500803683,"£2,680.00",HC-One Oval Limited,Adult Services,Commissioning & Contracts,Nursing Care
Milton Keynes Council,14-Oct-22,51500804153,"£2,680.00",SAH Nursing Homes Ltd Re: Rosalyn House,Adult Services,Commissioning & Contracts,Nursing Care
Milton Keynes Council,14-Oct-22,51500803681,"£2,680.00",HC-One Oval Limited,Adult Services,Commissioning & Contracts,Nursing Care
Milton Keynes Council,14-Oct-22,51500803682,"£2,680.00",HC-One Oval Limited,Adult Services,Commissioning & Contracts,Nursing Care
Milton Keynes Council,14-Oct-22,51500803976,"£2,680.00",Avery Homes (Nelson) Limited re Milton Court Care Home,Adult Services,Commissioning & Contracts,Nursing Care
Milton Keynes Council,14-Oct-22,51500804348,"£2,680.00",Gold Care Management Services Ltd Re: Bletchley House,Adult Services,Commissioning & Contracts,Nursing Care
Milton Keynes Council,14-Oct-22,51500803684,"£2,680.00",HC-One Oval Limited,Adult Services,Commissioning & Contracts,Residential Care
Milton Keynes Council,14-Oct-22,51500804323,"£2,680.00",Royal Masonic Benevolent Institution Care Company t/a Cornwallis Court,Adult Services,Commissioning & Contracts,Residential Care
Milton Keynes Council,14-Oct-22,51500804148,"£2,680.00",Methodist Homes,Adult Services,Commissioning & Contracts,Residential Care
Milton Keynes Council,14-Oct-22,51500804151,"£2,680.00",Methodist Homes,Adult Services,Commissioning & Contracts,Residential Care
Milton Keynes Council,14-Oct-22,51500804349,"£2,680.00",Gold Care Management Services Ltd Re: Bletchley House,Adult Services,Commissioning & Contracts,Residential Care
Milton Keynes Council,14-Oct-22,51500804152,"£2,680.00",Methodist Homes,Adult Services,Commissioning & Contracts,Nursing Care
Milton Keynes Council,14-Oct-22,51500804078,"£2,680.00",Olney Care Homes Limited T/a Bay House Residential Care Home,Adult Services,Commissioning & Contracts,Residential Care
Milton Keynes Council,14-Oct-22,51500804077,"£2,680.00",Olney Care Homes Limited T/a Bay House Residential Care Home,Adult Services,Commissioning & Contracts,Residential Care
Milton Keynes Council,14-Oct-22,51500804137,"£2,680.00",Eminence Care Service (Broomfield) Ltd Re:Broomfield Residential Care,Adult Services,Commissioning & Contracts,Residential Care
Milton Keynes Council,14-Oct-22,51500804190,"£2,680.00",Avery Homes (Nelson) Limited re Milton Court Care Home,Adult Services,Commissioning & Contracts,Residential Care
Milton Keynes Council,14-Oct-22,51500804316,"£2,680.00",Simply Carehome Ltd,Adult Services,Commissioning & Contracts,Residential Care
Milton Keynes Council,14-Oct-22,51500804142,"£2,680.00",Eminence Care Service (Broomfield) Ltd Re:Broomfield Residential Care,Adult Services,Commissioning & Contracts,Residential Care
Milton Keynes Council,14-Oct-22,51500804140,"£2,680.00",Eminence Care Service (Broomfield) Ltd Re:Broomfield Residential Care,Adult Services,Commissioning & Contracts,Residential Care
Milton Keynes Council,14-Oct-22,51500804144,"£2,680.00",Eminence Care Service (Broomfield) Ltd Re:Broomfield Residential Care,Adult Services,Commissioning & Contracts,Residential Care
Milton Keynes Council,14-Oct-22,51500804143,"£2,680.00",Eminence Care Service (Broomfield) Ltd Re:Broomfield Residential Care,Adult Services,Commissioning & Contracts,Residential Care
Milton Keynes Council,14-Oct-22,51500804134,"£2,680.00",Eminence Care Service (Broomfield) Ltd Re:Broomfield Residential Care,Adult Services,Commissioning & Contracts,Residential Care
Milton Keynes Council,14-Oct-22,51500804149,"£2,680.00",Methodist Homes,Adult Services,Commissioning & Contracts,Residential Care
Milton Keynes Council,14-Oct-22,51500803971,"£2,680.00",Avery Homes (Nelson) Limited re Milton Court Care Home,Adult Services,Commissioning & Contracts,Residential Care
Milton Keynes Council,14-Oct-22,51500803972,"£2,680.00",Avery Homes (Nelson) Limited re Milton Court Care Home,Adult Services,Commissioning & Contracts,Residential Care
Milton Keynes Council,14-Oct-22,51500804210,"£2,684.64",Runwood Homes Ltd,Adult Services,Commissioning & Contracts,Residential Care
Milton Keynes Council,14-Oct-22,51500804214,"£2,684.88",Gold Care Management Services Ltd Re: Bletchley House,Adult Services,Commissioning & Contracts,Residential Care
Milton Keynes Council,14-Oct-22,51500804102,"£2,686.80",Tyringham Care Ltd,Adult Services,Commissioning & Contracts,Residential Care
Milton Keynes Council,14-Oct-22,51500803744,"£2,688.36",Sanctuary Care Ltd Re: Caton House,Adult Services,Commissioning & Contracts,Nursing Care
Milton Keynes Council,14-Oct-22,51500803285,"£2,688.94",Central & North West London NHS Foundation Trust,Adult Services,Mental Health,Living support grants
Milton Keynes Council,14-Oct-22,51500804052,"£2,699.24",Olney Care Homes Limited T/a Bay House Residential Care Home,Adult Services,Commissioning & Contracts,Residential Care
Milton Keynes Council,14-Oct-22,51500803198,"£2,708.84",Fremantle Trust,Adult Services,Learning Disability,Living support grants
Milton Keynes Council,14-Oct-22,51500803189,"£2,709.92",Fremantle Trust,Adult Services,Learning Disability,Living support grants
Milton Keynes Council,14-Oct-22,51500804051,"£2,724.56",Olney Care Homes Limited T/a Bay House Residential Care Home,Adult Services,Commissioning & Contracts,Residential Care
Milton Keynes Council,14-Oct-22,51500803722,"£2,724.84",Methodist Homes,Adult Services,Commissioning & Contracts,Nursing Care
Milton Keynes Council,14-Oct-22,51500804245,"£2,730.32",DES Healthcare Ltd,Adult Services,Commissioning & Contracts,Residential Care
Milton Keynes Council,14-Oct-22,51500803883,"£2,741.14",Sanctuary Care Ltd Re: Caton House,Adult Services,Commissioning & Contracts,Residential Care
Milton Keynes Council,14-Oct-22,51500803600,"£2,751.60",Greensleeves Homes Trust Re: Tickford Abbey,Adult Services,Commissioning & Contracts,Residential Care
Milton Keynes Council,14-Oct-22,51500803713,"£2,753.00",Eminence Care Service (Broomfield) Ltd Re:Broomfield Residential Care,Adult Services,Commissioning & Contracts,Residential Care
Milton Keynes Council,14-Oct-22,51500803759,"£2,753.00",Avery Homes (Nelson) Limited re Milton Court Care Home,Adult Services,Commissioning & Contracts,Nursing Care
Milton Keynes Council,14-Oct-22,51500804209,"£2,765.40",Simply Carehome Ltd,Adult Services,Commissioning & Contracts,Residential Care
Milton Keynes Council,14-Oct-22,51500803459,"£2,779.20",Key2 Futures Limited,Adult Services,Mental Health,Living support grants
Milton Keynes Council,14-Oct-22,51500803755,"£2,781.88",Avery Homes (Nelson) Limited re Milton Court Care Home,Adult Services,Commissioning & Contracts,Residential Care
Milton Keynes Council,14-Oct-22,51500803505,"£2,783.52",Macintyre Care,Adult Services,Learning Disability,Living support grants
Milton Keynes Council,14-Oct-22,51500804192,"£2,785.71",Avery Homes (Nelson) Limited re Milton Court Care Home,Adult Services,Commissioning & Contracts,Residential Care
Milton Keynes Council,14-Oct-22,51500803159,"£2,786.28",Fremantle Trust,Adult Services,Learning Disability,Living support grants
Milton Keynes Council,14-Oct-22,51500803758,"£2,800.00",Avery Homes (Nelson) Limited re Milton Court Care Home,Adult Services,Commissioning & Contracts,Residential Care
Milton Keynes Council,14-Oct-22,51500804207,"£2,800.32",Simply Carehome Ltd,Adult Services,Commissioning & Contracts,Residential Care
Milton Keynes Council,14-Oct-22,51500803405,"£2,809.92",Infinate Limited,Adult Services,Autism,Living support grants
Milton Keynes Council,14-Oct-22,51500803419,"£2,817.68",Infinate Limited,Adult Services,Mental Health,Living support grants
